Organisation Name,Organisation Code,Unique Ref No ,Effective Date,Directorate,Supplier Name ,Payment Date,Net amount,Purpose of Spend,"Procurements Classification 
(Higher level)","Procurements Classification 
(Lower level)",CAPITAL / REVENUE
Walsall Council,http://opendatacommunities.org/id/metropolitan-district-council/walsall ,WC155-1,31.10.2023,RESOURCES AND TRANSFORMATION,11KBW,03/10/2023,"2,600.00",6610-External Legal Fees,SUPPLIES & SERVICES,SERVICES,REVENUE
Walsall Council,http://opendatacommunities.org/id/metropolitan-district-council/walsall ,WC155-2,31.10.2023,CHILDRENS CAPITAL,24/7 TECHNOLOGY LTD,24/10/2023,465.00,7155-Purchase of Furniture & Equipment,CAPITAL,"VEHICLES,PLANT,EQUIPMENT & MACHINERY",CAPITAL
Walsall Council,http://opendatacommunities.org/id/metropolitan-district-council/walsall ,WC155-3,31.10.2023,CHILDRENS,247 CARS (WILLENHALL) LIMITED,17/10/2023,"1,075.40",1220-Professional Fees & Services,SUPPLIES & SERVICES,SERVICES,REVENUE
Walsall Council,http://opendatacommunities.org/id/metropolitan-district-council/walsall ,WC155-4,31.10.2023,CHILDRENS,247 CARS (WILLENHALL) LIMITED,09/10/2023,"1,584.05",6241-Hire of Vehicle with Driver,TRANSPORT,DIRECT TRANSPORT COSTS,REVENUE
Walsall Council,http://opendatacommunities.org/id/metropolitan-district-council/walsall ,WC155-5,31.10.2023,CHILDRENS,247 CARS (WILLENHALL) LIMITED,09/10/2023,"1,476.80",6241-Hire of Vehicle with Driver,TRANSPORT,DIRECT TRANSPORT COSTS,REVENUE
Walsall Council,http://opendatacommunities.org/id/metropolitan-district-council/walsall ,WC155-6,31.10.2023,CHILDRENS,247 CARS (WILLENHALL) LIMITED,09/10/2023,"1,476.80",6241-Hire of Vehicle with Driver,TRANSPORT,DIRECT TRANSPORT COSTS,REVENUE
Walsall Council,http://opendatacommunities.org/id/metropolitan-district-council/walsall ,WC155-7,31.10.2023,CHILDRENS,247 CARS (WILLENHALL) LIMITED,09/10/2023,"1,476.80",6241-Hire of Vehicle with Driver,TRANSPORT,DIRECT TRANSPORT COSTS,REVENUE
Walsall Council,http://opendatacommunities.org/id/metropolitan-district-council/walsall ,WC155-8,31.10.2023,CHILDRENS,247 CARS (WILLENHALL) LIMITED,09/10/2023,"1,044.12",6241-Hire of Vehicle with Driver,TRANSPORT,DIRECT TRANSPORT COSTS,REVENUE
Walsall Council,http://opendatacommunities.org/id/metropolitan-district-council/walsall ,WC155-9,31.10.2023,CHILDRENS,247 CARS (WILLENHALL) LIMITED,09/10/2023,624.78,6241-Hire of Vehicle with Driver,TRANSPORT,DIRECT TRANSPORT COSTS,REVENUE
Walsall Council,http://opendatacommunities.org/id/metropolitan-district-council/walsall ,WC155-10,31.10.2023,CHILDRENS,247 CARS (WILLENHALL) LIMITED,09/10/2023,"1,827.66",6241-Hire of Vehicle with Driver,TRANSPORT,DIRECT TRANSPORT COSTS,REVENUE
Walsall Council,http://opendatacommunities.org/id/metropolitan-district-council/walsall ,WC155-11,31.10.2023,CHILDRENS,247 CARS (WILLENHALL) LIMITED,09/10/2023,864.50,6241-Hire of Vehicle with Driver,TRANSPORT,DIRECT TRANSPORT COSTS,REVENUE
Walsall Council,http://opendatacommunities.org/id/metropolitan-district-council/walsall ,WC155-12,31.10.2023,CHILDRENS,247 CARS (WILLENHALL) LIMITED,09/10/2023,"1,476.80",6241-Hire of Vehicle with Driver,TRANSPORT,DIRECT TRANSPORT COSTS,REVENUE
Walsall Council,http://opendatacommunities.org/id/metropolitan-district-council/walsall ,WC155-13,31.10.2023,CHILDRENS,247 CARS (WILLENHALL) LIMITED,09/10/2023,"1,476.80",6241-Hire of Vehicle with Driver,TRANSPORT,DIRECT TRANSPORT COSTS,REVENUE
Walsall Council,http://opendatacommunities.org/id/metropolitan-district-council/walsall ,WC155-14,31.10.2023,CHILDRENS,247 CARS (WILLENHALL) LIMITED,09/10/2023,"1,476.80",6241-Hire of Vehicle with Driver,TRANSPORT,DIRECT TRANSPORT COSTS,REVENUE
Walsall Council,http://opendatacommunities.org/id/metropolitan-district-council/walsall ,WC155-15,31.10.2023,CHILDRENS,247 CARS (WILLENHALL) LIMITED,09/10/2023,"1,476.80",6241-Hire of Vehicle with Driver,TRANSPORT,DIRECT TRANSPORT COSTS,REVENUE
Walsall Council,http://opendatacommunities.org/id/metropolitan-district-council/walsall ,WC155-16,31.10.2023,CHILDRENS,247 CARS (WILLENHALL) LIMITED,09/10/2023,"1,040.00",6241-Hire of Vehicle with Driver,TRANSPORT,DIRECT TRANSPORT COSTS,REVENUE
Walsall Council,http://opendatacommunities.org/id/metropolitan-district-council/walsall ,WC155-17,31.10.2023,CHILDRENS,247 CARS (WILLENHALL) LIMITED,09/10/2023,"1,387.50",6241-Hire of Vehicle with Driver,TRANSPORT,DIRECT TRANSPORT COSTS,REVENUE
Walsall Council,http://opendatacommunities.org/id/metropolitan-district-council/walsall ,WC155-18,31.10.2023,CHILDRENS,247 CARS (WILLENHALL) LIMITED,09/10/2023,"1,387.50",6241-Hire of Vehicle with Driver,TRANSPORT,DIRECT TRANSPORT COSTS,REVENUE
Walsall Council,http://opendatacommunities.org/id/metropolitan-district-council/walsall ,WC155-19,31.10.2023,CHILDRENS,247 CARS (WILLENHALL) LIMITED,09/10/2023,"1,660.10",6241-Hire of Vehicle with Driver,TRANSPORT,DIRECT TRANSPORT COSTS,REVENUE
Walsall Council,http://opendatacommunities.org/id/metropolitan-district-council/walsall ,WC155-20,31.10.2023,CHILDRENS,247 CARS (WILLENHALL) LIMITED,09/10/2023,"1,387.50",6241-Hire of Vehicle with Driver,TRANSPORT,DIRECT TRANSPORT COSTS,REVENUE
Walsall Council,http://opendatacommunities.org/id/metropolitan-district-council/walsall ,WC155-21,31.10.2023,CHILDRENS,247 CARS (WILLENHALL) LIMITED,09/10/2023,"1,387.50",6241-Hire of Vehicle with Driver,TRANSPORT,DIRECT TRANSPORT COSTS,REVENUE
Walsall Council,http://opendatacommunities.org/id/metropolitan-district-council/walsall ,WC155-22,31.10.2023,CHILDRENS,247 CARS (WILLENHALL) LIMITED,09/10/2023,"1,476.80",6241-Hire of Vehicle with Driver,TRANSPORT,DIRECT TRANSPORT COSTS,REVENUE
Walsall Council,http://opendatacommunities.org/id/metropolitan-district-council/walsall ,WC155-23,31.10.2023,CHILDRENS,247 CARS (WILLENHALL) LIMITED,09/10/2023,"2,008.87",6241-Hire of Vehicle with Driver,TRANSPORT,DIRECT TRANSPORT COSTS,REVENUE
Walsall Council,http://opendatacommunities.org/id/metropolitan-district-council/walsall ,WC155-24,31.10.2023,CHILDRENS,247 CARS (WILLENHALL) LIMITED,09/10/2023,"1,229.80",6241-Hire of Vehicle with Driver,TRANSPORT,DIRECT TRANSPORT COSTS,REVENUE
Walsall Council,http://opendatacommunities.org/id/metropolitan-district-council/walsall ,WC155-25,31.10.2023,CHILDRENS,247 CARS (WILLENHALL) LIMITED,09/10/2023,"1,252.55",6241-Hire of Vehicle with Driver,TRANSPORT,DIRECT TRANSPORT COSTS,REVENUE
Walsall Council,http://opendatacommunities.org/id/metropolitan-district-council/walsall ,WC155-26,31.10.2023,CHILDRENS,247 CARS (WILLENHALL) LIMITED,09/10/2023,986.22,6241-Hire of Vehicle with Driver,TRANSPORT,DIRECT TRANSPORT COSTS,REVENUE
Walsall Council,http://opendatacommunities.org/id/metropolitan-district-council/walsall ,WC155-27,31.10.2023,CHILDRENS,247 CARS (WILLENHALL) LIMITED,09/10/2023,"2,086.50",6241-Hire of Vehicle with Driver,TRANSPORT,DIRECT TRANSPORT COSTS,REVENUE
Walsall Council,http://opendatacommunities.org/id/metropolitan-district-council/walsall ,WC155-28,31.10.2023,CHILDRENS,247 CARS (WILLENHALL) LIMITED,09/10/2023,890.00,6241-Hire of Vehicle with Driver,TRANSPORT,DIRECT TRANSPORT COSTS,REVENUE
Walsall Council,http://opendatacommunities.org/id/metropolitan-district-council/walsall ,WC155-29,31.10.2023,CHILDRENS,247 CARS (WILLENHALL) LIMITED,09/10/2023,253.20,6241-Hire of Vehicle with Driver,TRANSPORT,DIRECT TRANSPORT COSTS,REVENUE
Walsall Council,http://opendatacommunities.org/id/metropolitan-district-council/walsall ,WC155-30,31.10.2023,CHILDRENS,247 CARS (WILLENHALL) LIMITED,09/10/2023,"1,731.00",6241-Hire of Vehicle with Driver,TRANSPORT,DIRECT TRANSPORT COSTS,REVENUE
Walsall Council,http://opendatacommunities.org/id/metropolitan-district-council/walsall ,WC155-31,31.10.2023,CHILDRENS,247 CARS (WILLENHALL) LIMITED,09/10/2023,"1,431.43",6241-Hire of Vehicle with Driver,TRANSPORT,DIRECT TRANSPORT COSTS,REVENUE
Walsall Council,http://opendatacommunities.org/id/metropolitan-district-council/walsall ,WC155-32,31.10.2023,CHILDRENS,247 CARS (WILLENHALL) LIMITED,09/10/2023,"1,128.80",6241-Hire of Vehicle with Driver,TRANSPORT,DIRECT TRANSPORT COSTS,REVENUE
Walsall Council,http://opendatacommunities.org/id/metropolitan-district-council/walsall ,WC155-33,31.10.2023,CHILDRENS,247 CARS (WILLENHALL) LIMITED,09/10/2023,"1,476.80",6241-Hire of Vehicle with Driver,TRANSPORT,DIRECT TRANSPORT COSTS,REVENUE
Walsall Council,http://opendatacommunities.org/id/metropolitan-district-council/walsall ,WC155-34,31.10.2023,CHILDRENS,247 CARS (WILLENHALL) LIMITED,09/10/2023,"2,280.00",6241-Hire of Vehicle with Driver,TRANSPORT,DIRECT TRANSPORT COSTS,REVENUE
Walsall Council,http://opendatacommunities.org/id/metropolitan-district-council/walsall ,WC155-35,31.10.2023,CHILDRENS,247 CARS (WILLENHALL) LIMITED,09/10/2023,"2,280.57",6241-Hire of Vehicle with Driver,TRANSPORT,DIRECT TRANSPORT COSTS,REVENUE
Walsall Council,http://opendatacommunities.org/id/metropolitan-district-council/walsall ,WC155-36,31.10.2023,CHILDRENS,247 CARS (WILLENHALL) LIMITED,09/10/2023,"2,487.45",6241-Hire of Vehicle with Driver,TRANSPORT,DIRECT TRANSPORT COSTS,REVENUE
Walsall Council,http://opendatacommunities.org/id/metropolitan-district-council/walsall ,WC155-37,31.10.2023,CHILDRENS,247 CARS (WILLENHALL) LIMITED,09/10/2023,"1,777.40",6241-Hire of Vehicle with Driver,TRANSPORT,DIRECT TRANSPORT COSTS,REVENUE
Walsall Council,http://opendatacommunities.org/id/metropolitan-district-council/walsall ,WC155-38,31.10.2023,CHILDRENS,247 CARS (WILLENHALL) LIMITED,09/10/2023,"1,476.80",6241-Hire of Vehicle with Driver,TRANSPORT,DIRECT TRANSPORT COSTS,REVENUE
Walsall Council,http://opendatacommunities.org/id/metropolitan-district-council/walsall ,WC155-39,31.10.2023,CHILDRENS,247 CARS (WILLENHALL) LIMITED,09/10/2023,"1,391.00",6241-Hire of Vehicle with Driver,TRANSPORT,DIRECT TRANSPORT COSTS,REVENUE
Walsall Council,http://opendatacommunities.org/id/metropolitan-district-council/walsall ,WC155-40,31.10.2023,CHILDRENS,247 CARS (WILLENHALL) LIMITED,09/10/2023,"1,339.00",6241-Hire of Vehicle with Driver,TRANSPORT,DIRECT TRANSPORT COSTS,REVENUE
Walsall Council,http://opendatacommunities.org/id/metropolitan-district-council/walsall ,WC155-41,31.10.2023,CHILDRENS,247 CARS (WILLENHALL) LIMITED,09/10/2023,"1,183.00",6241-Hire of Vehicle with Driver,TRANSPORT,DIRECT TRANSPORT COSTS,REVENUE
Walsall Council,http://opendatacommunities.org/id/metropolitan-district-council/walsall ,WC155-42,31.10.2023,CHILDRENS,247 CARS (WILLENHALL) LIMITED,09/10/2023,"1,111.20",6241-Hire of Vehicle with Driver,TRANSPORT,DIRECT TRANSPORT COSTS,REVENUE
Walsall Council,http://opendatacommunities.org/id/metropolitan-district-council/walsall ,WC155-43,31.10.2023,RESOURCES AND TRANSFORMATION,3 SPIRIT UK TRAINING & CONSULTANCY,11/10/2023,700.00,6625-Consultant Fees,SUPPLIES & SERVICES,SERVICES,REVENUE
Walsall Council,http://opendatacommunities.org/id/metropolitan-district-council/walsall ,WC155-44,31.10.2023,RESOURCES AND TRANSFORMATION,3 SPIRIT UK TRAINING & CONSULTANCY,17/10/2023,700.00,6625-Consultant Fees,SUPPLIES & SERVICES,SERVICES,REVENUE
Walsall Council,http://opendatacommunities.org/id/metropolitan-district-council/walsall ,WC155-45,31.10.2023,CHILDRENS,5 CARE SERVICES LTD,20/10/2023,"2,520.00",6220-Professional Fees & Services,SUPPLIES & SERVICES,SERVICES,REVENUE
Walsall Council,http://opendatacommunities.org/id/metropolitan-district-council/walsall ,WC155-46,31.10.2023,CHILDRENS,5 CARE SERVICES LTD,30/10/2023,288.00,6220-Professional Fees & Services,SUPPLIES & SERVICES,SERVICES,REVENUE
Walsall Council,http://opendatacommunities.org/id/metropolitan-district-council/walsall ,WC155-47,31.10.2023,CHILDRENS,5 CARE SERVICES LTD,27/10/2023,"2,520.00",6220-Professional Fees & Services,SUPPLIES & SERVICES,SERVICES,REVENUE
Walsall Council,http://opendatacommunities.org/id/metropolitan-district-council/walsall ,WC155-48,31.10.2023,CHILDRENS,5 CARE SERVICES LTD,31/10/2023,252.00,6220-Professional Fees & Services,SUPPLIES & SERVICES,SERVICES,REVENUE
Walsall Council,http://opendatacommunities.org/id/metropolitan-district-council/walsall ,WC155-49,31.10.2023,CHILDRENS,5 CARE SERVICES LTD,20/10/2023,"2,520.00",6220-Professional Fees & Services,SUPPLIES & SERVICES,SERVICES,REVENUE
Walsall Council,http://opendatacommunities.org/id/metropolitan-district-council/walsall ,WC155-50,31.10.2023,ADULT SOCIAL CARE,5 CARE SERVICES LTD,10/10/2023,774.00,6541-Domiciliary Care,THIRD PARTY PAYMENTS,PRIVATE CONTRACTOR,REVENUE
Walsall Council,http://opendatacommunities.org/id/metropolitan-district-council/walsall ,WC155-51,31.10.2023,ADULT SOCIAL CARE,5 CARE SERVICES LTD,10/10/2023,283.50,6541-Domiciliary Care,THIRD PARTY PAYMENTS,PRIVATE CONTRACTOR,REVENUE
Walsall Council,http://opendatacommunities.org/id/metropolitan-district-council/walsall ,WC155-52,31.10.2023,ADULT SOCIAL CARE,5 CARE SERVICES LTD,10/10/2023,648.00,6541-Domiciliary Care,THIRD PARTY PAYMENTS,PRIVATE CONTRACTOR,REVENUE
Walsall Council,http://opendatacommunities.org/id/metropolitan-district-council/walsall ,WC155-53,31.10.2023,ADULT SOCIAL CARE,5 CARE SERVICES LTD,10/10/2023,360.00,6541-Domiciliary Care,THIRD PARTY PAYMENTS,PRIVATE CONTRACTOR,REVENUE
Walsall Council,http://opendatacommunities.org/id/metropolitan-district-council/walsall ,WC155-54,31.10.2023,ADULT SOCIAL CARE,5 CARE SERVICES LTD,10/10/2023,360.00,6541-Domiciliary Care,THIRD PARTY PAYMENTS,PRIVATE CONTRACTOR,REVENUE
Walsall Council,http://opendatacommunities.org/id/metropolitan-district-council/walsall ,WC155-55,31.10.2023,ADULT SOCIAL CARE,5 CARE SERVICES LTD,10/10/2023,378.00,6541-Domiciliary Care,THIRD PARTY PAYMENTS,PRIVATE CONTRACTOR,REVENUE
Walsall Council,http://opendatacommunities.org/id/metropolitan-district-council/walsall ,WC155-56,31.10.2023,ADULT SOCIAL CARE,5 CARE SERVICES LTD,10/10/2023,567.00,6541-Domiciliary Care,THIRD PARTY PAYMENTS,PRIVATE CONTRACTOR,REVENUE
Walsall Council,http://opendatacommunities.org/id/metropolitan-district-council/walsall ,WC155-57,31.10.2023,ADULT SOCIAL CARE,5 CARE SERVICES LTD,10/10/2023,"1,008.00",6541-Domiciliary Care,THIRD PARTY PAYMENTS,PRIVATE CONTRACTOR,REVENUE
Walsall Council,http://opendatacommunities.org/id/metropolitan-district-council/walsall ,WC155-58,31.10.2023,ADULT SOCIAL CARE,5 CARE SERVICES LTD,10/10/2023,657.00,6541-Domiciliary Care,THIRD PARTY PAYMENTS,PRIVATE CONTRACTOR,REVENUE
Walsall Council,http://opendatacommunities.org/id/metropolitan-district-council/walsall ,WC155-59,31.10.2023,ADULT SOCIAL CARE,5 CARE SERVICES LTD,10/10/2023,283.50,6541-Domiciliary Care,THIRD PARTY PAYMENTS,PRIVATE CONTRACTOR,REVENUE
Walsall Council,http://opendatacommunities.org/id/metropolitan-district-council/walsall ,WC155-60,31.10.2023,ADULT SOCIAL CARE,5 CARE SERVICES LTD,10/10/2023,"1,386.00",6541-Domiciliary Care,THIRD PARTY PAYMENTS,PRIVATE CONTRACTOR,REVENUE
Walsall Council,http://opendatacommunities.org/id/metropolitan-district-council/walsall ,WC155-61,31.10.2023,ADULT SOCIAL CARE,5 CARE SERVICES LTD,10/10/2023,324.00,6541-Domiciliary Care,THIRD PARTY PAYMENTS,PRIVATE CONTRACTOR,REVENUE
Walsall Council,http://opendatacommunities.org/id/metropolitan-district-council/walsall ,WC155-62,31.10.2023,ADULT SOCIAL CARE,5 CARE SERVICES LTD,10/10/2023,651.00,6541-Domiciliary Care,THIRD PARTY PAYMENTS,PRIVATE CONTRACTOR,REVENUE
Walsall Council,http://opendatacommunities.org/id/metropolitan-district-council/walsall ,WC155-63,31.10.2023,ADULT SOCIAL CARE,5 CARE SERVICES LTD,10/10/2023,-315.12,6541-Domiciliary Care,THIRD PARTY PAYMENTS,PRIVATE CONTRACTOR,REVENUE
Walsall Council,http://opendatacommunities.org/id/metropolitan-district-council/walsall ,WC155-64,31.10.2023,ADULT SOCIAL CARE,5 CARE SERVICES LTD,10/10/2023,378.00,6541-Domiciliary Care,THIRD PARTY PAYMENTS,PRIVATE CONTRACTOR,REVENUE
Walsall Council,http://opendatacommunities.org/id/metropolitan-district-council/walsall ,WC155-65,31.10.2023,ADULT SOCIAL CARE,5 CARE SERVICES LTD,10/10/2023,567.00,6541-Domiciliary Care,THIRD PARTY PAYMENTS,PRIVATE CONTRACTOR,REVENUE
Walsall Council,http://opendatacommunities.org/id/metropolitan-district-council/walsall ,WC155-66,31.10.2023,ADULT SOCIAL CARE,5 CARE SERVICES LTD,10/10/2023,-423.00,6541-Domiciliary Care,THIRD PARTY PAYMENTS,PRIVATE CONTRACTOR,REVENUE
Walsall Council,http://opendatacommunities.org/id/metropolitan-district-council/walsall ,WC155-67,31.10.2023,ADULT SOCIAL CARE,5 CARE SERVICES LTD,10/10/2023,504.00,6541-Domiciliary Care,THIRD PARTY PAYMENTS,PRIVATE CONTRACTOR,REVENUE
Walsall Council,http://opendatacommunities.org/id/metropolitan-district-council/walsall ,WC155-68,31.10.2023,ADULT SOCIAL CARE,5 CARE SERVICES LTD,10/10/2023,283.50,6541-Domiciliary Care,THIRD PARTY PAYMENTS,PRIVATE CONTRACTOR,REVENUE
Walsall Council,http://opendatacommunities.org/id/metropolitan-district-council/walsall ,WC155-69,31.10.2023,ADULT SOCIAL CARE,5 CARE SERVICES LTD,10/10/2023,819.00,6541-Domiciliary Care,THIRD PARTY PAYMENTS,PRIVATE CONTRACTOR,REVENUE
Walsall Council,http://opendatacommunities.org/id/metropolitan-district-council/walsall ,WC155-70,31.10.2023,ADULT SOCIAL CARE,5 CARE SERVICES LTD,10/10/2023,756.00,6541-Domiciliary Care,THIRD PARTY PAYMENTS,PRIVATE CONTRACTOR,REVENUE
Walsall Council,http://opendatacommunities.org/id/metropolitan-district-council/walsall ,WC155-71,31.10.2023,ADULT SOCIAL CARE,5 CARE SERVICES LTD,10/10/2023,328.50,6541-Domiciliary Care,THIRD PARTY PAYMENTS,PRIVATE CONTRACTOR,REVENUE
Walsall Council,http://opendatacommunities.org/id/metropolitan-district-council/walsall ,WC155-72,31.10.2023,ADULT SOCIAL CARE,5 CARE SERVICES LTD,10/10/2023,-630.00,6541-Domiciliary Care,THIRD PARTY PAYMENTS,PRIVATE CONTRACTOR,REVENUE
Walsall Council,http://opendatacommunities.org/id/metropolitan-district-council/walsall ,WC155-73,31.10.2023,ADULT SOCIAL CARE,5 CARE SERVICES LTD,10/10/2023,666.00,6541-Domiciliary Care,THIRD PARTY PAYMENTS,PRIVATE CONTRACTOR,REVENUE
Walsall Council,http://opendatacommunities.org/id/metropolitan-district-council/walsall ,WC155-74,31.10.2023,ADULT SOCIAL CARE,5 CARE SERVICES LTD,10/10/2023,567.00,6541-Domiciliary Care,THIRD PARTY PAYMENTS,PRIVATE CONTRACTOR,REVENUE
Walsall Council,http://opendatacommunities.org/id/metropolitan-district-council/walsall ,WC155-75,31.10.2023,ADULT SOCIAL CARE,5 CARE SERVICES LTD,10/10/2023,"1,053.00",6541-Domiciliary Care,THIRD PARTY PAYMENTS,PRIVATE CONTRACTOR,REVENUE
Walsall Council,http://opendatacommunities.org/id/metropolitan-district-council/walsall ,WC155-76,31.10.2023,ADULT SOCIAL CARE,5 CARE SERVICES LTD,10/10/2023,283.50,6541-Domiciliary Care,THIRD PARTY PAYMENTS,PRIVATE CONTRACTOR,REVENUE
Walsall Council,http://opendatacommunities.org/id/metropolitan-district-council/walsall ,WC155-77,31.10.2023,ADULT SOCIAL CARE,5 CARE SERVICES LTD,10/10/2023,603.00,6541-Domiciliary Care,THIRD PARTY PAYMENTS,PRIVATE CONTRACTOR,REVENUE
Walsall Council,http://opendatacommunities.org/id/metropolitan-district-council/walsall ,WC155-78,31.10.2023,ADULT SOCIAL CARE,5 CARE SERVICES LTD,10/10/2023,486.00,6541-Domiciliary Care,THIRD PARTY PAYMENTS,PRIVATE CONTRACTOR,REVENUE
Walsall Council,http://opendatacommunities.org/id/metropolitan-district-council/walsall ,WC155-79,31.10.2023,ADULT SOCIAL CARE,5 CARE SERVICES LTD,10/10/2023,"1,512.00",6541-Domiciliary Care,THIRD PARTY PAYMENTS,PRIVATE CONTRACTOR,REVENUE
Walsall Council,http://opendatacommunities.org/id/metropolitan-district-council/walsall ,WC155-80,31.10.2023,ADULT SOCIAL CARE,5 CARE SERVICES LTD,10/10/2023,"1,116.00",6541-Domiciliary Care,THIRD PARTY PAYMENTS,PRIVATE CONTRACTOR,REVENUE
Walsall Council,http://opendatacommunities.org/id/metropolitan-district-council/walsall ,WC155-81,31.10.2023,ADULT SOCIAL CARE,5 CARE SERVICES LTD,10/10/2023,294.00,6541-Domiciliary Care,THIRD PARTY PAYMENTS,PRIVATE CONTRACTOR,REVENUE
Walsall Council,http://opendatacommunities.org/id/metropolitan-district-council/walsall ,WC155-82,31.10.2023,ADULT SOCIAL CARE,5 CARE SERVICES LTD,10/10/2023,630.00,6541-Domiciliary Care,THIRD PARTY PAYMENTS,PRIVATE CONTRACTOR,REVENUE
Walsall Council,http://opendatacommunities.org/id/metropolitan-district-council/walsall ,WC155-83,31.10.2023,ADULT SOCIAL CARE,5 CARE SERVICES LTD,10/10/2023,567.00,6541-Domiciliary Care,THIRD PARTY PAYMENTS,PRIVATE CONTRACTOR,REVENUE
Walsall Council,http://opendatacommunities.org/id/metropolitan-district-council/walsall ,WC155-84,31.10.2023,ADULT SOCIAL CARE,5 CARE SERVICES LTD,10/10/2023,567.00,6541-Domiciliary Care,THIRD PARTY PAYMENTS,PRIVATE CONTRACTOR,REVENUE
Walsall Council,http://opendatacommunities.org/id/metropolitan-district-council/walsall ,WC155-85,31.10.2023,ADULT SOCIAL CARE,5 CARE SERVICES LTD,10/10/2023,-342.00,6541-Domiciliary Care,THIRD PARTY PAYMENTS,PRIVATE CONTRACTOR,REVENUE
Walsall Council,http://opendatacommunities.org/id/metropolitan-district-council/walsall ,WC155-86,31.10.2023,ADULT SOCIAL CARE,5 CARE SERVICES LTD,10/10/2023,756.00,6541-Domiciliary Care,THIRD PARTY PAYMENTS,PRIVATE CONTRACTOR,REVENUE
Walsall Council,http://opendatacommunities.org/id/metropolitan-district-council/walsall ,WC155-87,31.10.2023,ADULT SOCIAL CARE,5 CARE SERVICES LTD,10/10/2023,328.50,6541-Domiciliary Care,THIRD PARTY PAYMENTS,PRIVATE CONTRACTOR,REVENUE
Walsall Council,http://opendatacommunities.org/id/metropolitan-district-council/walsall ,WC155-88,31.10.2023,ADULT SOCIAL CARE,5 CARE SERVICES LTD,10/10/2023,360.00,6541-Domiciliary Care,THIRD PARTY PAYMENTS,PRIVATE CONTRACTOR,REVENUE
Walsall Council,http://opendatacommunities.org/id/metropolitan-district-council/walsall ,WC155-89,31.10.2023,ADULT SOCIAL CARE,5 CARE SERVICES LTD,10/10/2023,378.00,6541-Domiciliary Care,THIRD PARTY PAYMENTS,PRIVATE CONTRACTOR,REVENUE
Walsall Council,http://opendatacommunities.org/id/metropolitan-district-council/walsall ,WC155-90,31.10.2023,ADULT SOCIAL CARE,5 CARE SERVICES LTD,10/10/2023,567.00,6541-Domiciliary Care,THIRD PARTY PAYMENTS,PRIVATE CONTRACTOR,REVENUE
Walsall Council,http://opendatacommunities.org/id/metropolitan-district-council/walsall ,WC155-91,31.10.2023,ADULT SOCIAL CARE,5 CARE SERVICES LTD,10/10/2023,"1,008.00",6541-Domiciliary Care,THIRD PARTY PAYMENTS,PRIVATE CONTRACTOR,REVENUE
Walsall Council,http://opendatacommunities.org/id/metropolitan-district-council/walsall ,WC155-92,31.10.2023,ADULT SOCIAL CARE,5 CARE SERVICES LTD,10/10/2023,630.00,6541-Domiciliary Care,THIRD PARTY PAYMENTS,PRIVATE CONTRACTOR,REVENUE
Walsall Council,http://opendatacommunities.org/id/metropolitan-district-council/walsall ,WC155-93,31.10.2023,ADULT SOCIAL CARE,5 CARE SERVICES LTD,10/10/2023,567.00,6541-Domiciliary Care,THIRD PARTY PAYMENTS,PRIVATE CONTRACTOR,REVENUE
Walsall Council,http://opendatacommunities.org/id/metropolitan-district-council/walsall ,WC155-94,31.10.2023,ADULT SOCIAL CARE,5 CARE SERVICES LTD,10/10/2023,567.00,6541-Domiciliary Care,THIRD PARTY PAYMENTS,PRIVATE CONTRACTOR,REVENUE
Walsall Council,http://opendatacommunities.org/id/metropolitan-district-council/walsall ,WC155-95,31.10.2023,ADULT SOCIAL CARE,5 CARE SERVICES LTD,10/10/2023,378.00,6541-Domiciliary Care,THIRD PARTY PAYMENTS,PRIVATE CONTRACTOR,REVENUE
Walsall Council,http://opendatacommunities.org/id/metropolitan-district-council/walsall ,WC155-96,31.10.2023,ADULT SOCIAL CARE,5 CARE SERVICES LTD,10/10/2023,567.00,6541-Domiciliary Care,THIRD PARTY PAYMENTS,PRIVATE CONTRACTOR,REVENUE
Walsall Council,http://opendatacommunities.org/id/metropolitan-district-council/walsall ,WC155-97,31.10.2023,ADULT SOCIAL CARE,5 CARE SERVICES LTD,10/10/2023,283.50,6541-Domiciliary Care,THIRD PARTY PAYMENTS,PRIVATE CONTRACTOR,REVENUE
Walsall Council,http://opendatacommunities.org/id/metropolitan-district-council/walsall ,WC155-98,31.10.2023,ADULT SOCIAL CARE,5 CARE SERVICES LTD,10/10/2023,432.00,6541-Domiciliary Care,THIRD PARTY PAYMENTS,PRIVATE CONTRACTOR,REVENUE
Walsall Council,http://opendatacommunities.org/id/metropolitan-district-council/walsall ,WC155-99,31.10.2023,ADULT SOCIAL CARE,5 CARE SERVICES LTD,10/10/2023,360.00,6541-Domiciliary Care,THIRD PARTY PAYMENTS,PRIVATE CONTRACTOR,REVENUE
Walsall Council,http://opendatacommunities.org/id/metropolitan-district-council/walsall ,WC155-100,31.10.2023,ADULT SOCIAL CARE,5 CARE SERVICES LTD,10/10/2023,774.00,6541-Domiciliary Care,THIRD PARTY PAYMENTS,PRIVATE CONTRACTOR,REVENUE
Walsall Council,http://opendatacommunities.org/id/metropolitan-district-council/walsall ,WC155-101,31.10.2023,ADULT SOCIAL CARE,5 CARE SERVICES LTD,10/10/2023,283.50,6541-Domiciliary Care,THIRD PARTY PAYMENTS,PRIVATE CONTRACTOR,REVENUE
Walsall Council,http://opendatacommunities.org/id/metropolitan-district-council/walsall ,WC155-102,31.10.2023,ADULT SOCIAL CARE,5 CARE SERVICES LTD,10/10/2023,"1,386.00",6541-Domiciliary Care,THIRD PARTY PAYMENTS,PRIVATE CONTRACTOR,REVENUE
Walsall Council,http://opendatacommunities.org/id/metropolitan-district-council/walsall ,WC155-103,31.10.2023,ADULT SOCIAL CARE,5 CARE SERVICES LTD,10/10/2023,324.00,6541-Domiciliary Care,THIRD PARTY PAYMENTS,PRIVATE CONTRACTOR,REVENUE
Walsall Council,http://opendatacommunities.org/id/metropolitan-district-council/walsall ,WC155-104,31.10.2023,ADULT SOCIAL CARE,5 CARE SERVICES LTD,10/10/2023,651.00,6541-Domiciliary Care,THIRD PARTY PAYMENTS,PRIVATE CONTRACTOR,REVENUE
Walsall Council,http://opendatacommunities.org/id/metropolitan-district-council/walsall ,WC155-105,31.10.2023,ADULT SOCIAL CARE,5 CARE SERVICES LTD,10/10/2023,283.50,6541-Domiciliary Care,THIRD PARTY PAYMENTS,PRIVATE CONTRACTOR,REVENUE
Walsall Council,http://opendatacommunities.org/id/metropolitan-district-council/walsall ,WC155-106,31.10.2023,ADULT SOCIAL CARE,5 CARE SERVICES LTD,10/10/2023,819.00,6541-Domiciliary Care,THIRD PARTY PAYMENTS,PRIVATE CONTRACTOR,REVENUE
Walsall Council,http://opendatacommunities.org/id/metropolitan-district-council/walsall ,WC155-107,31.10.2023,ADULT SOCIAL CARE,5 CARE SERVICES LTD,10/10/2023,486.00,6541-Domiciliary Care,THIRD PARTY PAYMENTS,PRIVATE CONTRACTOR,REVENUE
Walsall Council,http://opendatacommunities.org/id/metropolitan-district-council/walsall ,WC155-108,31.10.2023,ADULT SOCIAL CARE,5 CARE SERVICES LTD,10/10/2023,603.00,6541-Domiciliary Care,THIRD PARTY PAYMENTS,PRIVATE CONTRACTOR,REVENUE
Walsall Council,http://opendatacommunities.org/id/metropolitan-district-council/walsall ,WC155-109,31.10.2023,ADULT SOCIAL CARE,5 CARE SERVICES LTD,10/10/2023,486.00,6541-Domiciliary Care,THIRD PARTY PAYMENTS,PRIVATE CONTRACTOR,REVENUE
Walsall Council,http://opendatacommunities.org/id/metropolitan-district-council/walsall ,WC155-110,31.10.2023,ADULT SOCIAL CARE,5 CARE SERVICES LTD,10/10/2023,"1,512.00",6541-Domiciliary Care,THIRD PARTY PAYMENTS,PRIVATE CONTRACTOR,REVENUE
Walsall Council,http://opendatacommunities.org/id/metropolitan-district-council/walsall ,WC155-111,31.10.2023,ADULT SOCIAL CARE,5 CARE SERVICES LTD,10/10/2023,294.00,6541-Domiciliary Care,THIRD PARTY PAYMENTS,PRIVATE CONTRACTOR,REVENUE
Walsall Council,http://opendatacommunities.org/id/metropolitan-district-council/walsall ,WC155-112,31.10.2023,ADULT SOCIAL CARE,5 CARE SERVICES LTD,10/10/2023,324.00,6541-Domiciliary Care,THIRD PARTY PAYMENTS,PRIVATE CONTRACTOR,REVENUE
Walsall Council,http://opendatacommunities.org/id/metropolitan-district-council/walsall ,WC155-113,31.10.2023,ADULT SOCIAL CARE,5 CARE SERVICES LTD,10/10/2023,567.00,6541-Domiciliary Care,THIRD PARTY PAYMENTS,PRIVATE CONTRACTOR,REVENUE
Walsall Council,http://opendatacommunities.org/id/metropolitan-district-council/walsall ,WC155-114,31.10.2023,ADULT SOCIAL CARE,5 CARE SERVICES LTD,10/10/2023,504.00,6541-Domiciliary Care,THIRD PARTY PAYMENTS,PRIVATE CONTRACTOR,REVENUE
Walsall Council,http://opendatacommunities.org/id/metropolitan-district-council/walsall ,WC155-115,31.10.2023,ADULT SOCIAL CARE,5 CARE SERVICES LTD,10/10/2023,738.00,6541-Domiciliary Care,THIRD PARTY PAYMENTS,PRIVATE CONTRACTOR,REVENUE
Walsall Council,http://opendatacommunities.org/id/metropolitan-district-council/walsall ,WC155-116,31.10.2023,ADULT SOCIAL CARE,5 CARE SERVICES LTD,10/10/2023,567.00,6541-Domiciliary Care,THIRD PARTY PAYMENTS,PRIVATE CONTRACTOR,REVENUE
Walsall Council,http://opendatacommunities.org/id/metropolitan-district-council/walsall ,WC155-117,31.10.2023,ADULT SOCIAL CARE,5 CARE SERVICES LTD,10/10/2023,"1,053.00",6541-Domiciliary Care,THIRD PARTY PAYMENTS,PRIVATE CONTRACTOR,REVENUE
Walsall Council,http://opendatacommunities.org/id/metropolitan-district-council/walsall ,WC155-118,31.10.2023,ADULT SOCIAL CARE,5 CARE SERVICES LTD,10/10/2023,283.50,6541-Domiciliary Care,THIRD PARTY PAYMENTS,PRIVATE CONTRACTOR,REVENUE
Walsall Council,http://opendatacommunities.org/id/metropolitan-district-council/walsall ,WC155-119,31.10.2023,ADULT SOCIAL CARE,5 CARE SERVICES LTD,10/10/2023,414.00,6541-Domiciliary Care,THIRD PARTY PAYMENTS,PRIVATE CONTRACTOR,REVENUE
Walsall Council,http://opendatacommunities.org/id/metropolitan-district-council/walsall ,WC155-120,31.10.2023,ADULT SOCIAL CARE,5 CARE SERVICES LTD,19/10/2023,297.00,6554-Professional Services-Priv Contractor & Other Agencies,THIRD PARTY PAYMENTS,PRIVATE CONTRACTOR,REVENUE
Walsall Council,http://opendatacommunities.org/id/metropolitan-district-council/walsall ,WC155-121,31.10.2023,ADULT SOCIAL CARE,5 CARE SERVICES LTD,19/10/2023,522.00,6554-Professional Services-Priv Contractor & Other Agencies,THIRD PARTY PAYMENTS,PRIVATE CONTRACTOR,REVENUE
Walsall Council,http://opendatacommunities.org/id/metropolitan-district-council/walsall ,WC155-122,31.10.2023,ADULT SOCIAL CARE,5 CARE SERVICES LTD,19/10/2023,357.00,6554-Professional Services-Priv Contractor & Other Agencies,THIRD PARTY PAYMENTS,PRIVATE CONTRACTOR,REVENUE
Walsall Council,http://opendatacommunities.org/id/metropolitan-district-council/walsall ,WC155-123,31.10.2023,ADULT SOCIAL CARE,5 CARE SERVICES LTD,23/10/2023,283.50,6541-Domiciliary Care,THIRD PARTY PAYMENTS,PRIVATE CONTRACTOR,REVENUE
Walsall Council,http://opendatacommunities.org/id/metropolitan-district-council/walsall ,WC155-124,31.10.2023,ADULT SOCIAL CARE,5 CARE SERVICES LTD,23/10/2023,648.00,6541-Domiciliary Care,THIRD PARTY PAYMENTS,PRIVATE CONTRACTOR,REVENUE
Walsall Council,http://opendatacommunities.org/id/metropolitan-district-council/walsall ,WC155-125,31.10.2023,ADULT SOCIAL CARE,5 CARE SERVICES LTD,23/10/2023,774.00,6541-Domiciliary Care,THIRD PARTY PAYMENTS,PRIVATE CONTRACTOR,REVENUE
Walsall Council,http://opendatacommunities.org/id/metropolitan-district-council/walsall ,WC155-126,31.10.2023,ADULT SOCIAL CARE,5 CARE SERVICES LTD,23/10/2023,756.00,6541-Domiciliary Care,THIRD PARTY PAYMENTS,PRIVATE CONTRACTOR,REVENUE
Walsall Council,http://opendatacommunities.org/id/metropolitan-district-council/walsall ,WC155-127,31.10.2023,ADULT SOCIAL CARE,5 CARE SERVICES LTD,23/10/2023,328.50,6541-Domiciliary Care,THIRD PARTY PAYMENTS,PRIVATE CONTRACTOR,REVENUE
Walsall Council,http://opendatacommunities.org/id/metropolitan-district-council/walsall ,WC155-128,31.10.2023,ADULT SOCIAL CARE,5 CARE SERVICES LTD,23/10/2023,-463.30,6541-Domiciliary Care,THIRD PARTY PAYMENTS,PRIVATE CONTRACTOR,REVENUE
Walsall Council,http://opendatacommunities.org/id/metropolitan-district-council/walsall ,WC155-129,31.10.2023,ADULT SOCIAL CARE,5 CARE SERVICES LTD,23/10/2023,567.00,6541-Domiciliary Care,THIRD PARTY PAYMENTS,PRIVATE CONTRACTOR,REVENUE
Walsall Council,http://opendatacommunities.org/id/metropolitan-district-council/walsall ,WC155-130,31.10.2023,ADULT SOCIAL CARE,5 CARE SERVICES LTD,23/10/2023,360.00,6541-Domiciliary Care,THIRD PARTY PAYMENTS,PRIVATE CONTRACTOR,REVENUE
Walsall Council,http://opendatacommunities.org/id/metropolitan-district-council/walsall ,WC155-131,31.10.2023,ADULT SOCIAL CARE,5 CARE SERVICES LTD,23/10/2023,378.00,6541-Domiciliary Care,THIRD PARTY PAYMENTS,PRIVATE CONTRACTOR,REVENUE
Walsall Council,http://opendatacommunities.org/id/metropolitan-district-council/walsall ,WC155-132,31.10.2023,ADULT SOCIAL CARE,5 CARE SERVICES LTD,23/10/2023,567.00,6541-Domiciliary Care,THIRD PARTY PAYMENTS,PRIVATE CONTRACTOR,REVENUE
Walsall Council,http://opendatacommunities.org/id/metropolitan-district-council/walsall ,WC155-133,31.10.2023,ADULT SOCIAL CARE,5 CARE SERVICES LTD,23/10/2023,"1,008.00",6541-Domiciliary Care,THIRD PARTY PAYMENTS,PRIVATE CONTRACTOR,REVENUE
Walsall Council,http://opendatacommunities.org/id/metropolitan-district-council/walsall ,WC155-134,31.10.2023,ADULT SOCIAL CARE,5 CARE SERVICES LTD,23/10/2023,283.50,6541-Domiciliary Care,THIRD PARTY PAYMENTS,PRIVATE CONTRACTOR,REVENUE
Walsall Council,http://opendatacommunities.org/id/metropolitan-district-council/walsall ,WC155-135,31.10.2023,ADULT SOCIAL CARE,5 CARE SERVICES LTD,23/10/2023,"1,386.00",6541-Domiciliary Care,THIRD PARTY PAYMENTS,PRIVATE CONTRACTOR,REVENUE
Walsall Council,http://opendatacommunities.org/id/metropolitan-district-council/walsall ,WC155-136,31.10.2023,ADULT SOCIAL CARE,5 CARE SERVICES LTD,23/10/2023,324.00,6541-Domiciliary Care,THIRD PARTY PAYMENTS,PRIVATE CONTRACTOR,REVENUE
Walsall Council,http://opendatacommunities.org/id/metropolitan-district-council/walsall ,WC155-137,31.10.2023,ADULT SOCIAL CARE,5 CARE SERVICES LTD,23/10/2023,651.00,6541-Domiciliary Care,THIRD PARTY PAYMENTS,PRIVATE CONTRACTOR,REVENUE
Walsall Council,http://opendatacommunities.org/id/metropolitan-district-council/walsall ,WC155-138,31.10.2023,ADULT SOCIAL CARE,5 CARE SERVICES LTD,23/10/2023,630.00,6541-Domiciliary Care,THIRD PARTY PAYMENTS,PRIVATE CONTRACTOR,REVENUE
Walsall Council,http://opendatacommunities.org/id/metropolitan-district-council/walsall ,WC155-139,31.10.2023,ADULT SOCIAL CARE,5 CARE SERVICES LTD,23/10/2023,567.00,6541-Domiciliary Care,THIRD PARTY PAYMENTS,PRIVATE CONTRACTOR,REVENUE
Walsall Council,http://opendatacommunities.org/id/metropolitan-district-council/walsall ,WC155-140,31.10.2023,ADULT SOCIAL CARE,5 CARE SERVICES LTD,23/10/2023,567.00,6541-Domiciliary Care,THIRD PARTY PAYMENTS,PRIVATE CONTRACTOR,REVENUE
Walsall Council,http://opendatacommunities.org/id/metropolitan-district-council/walsall ,WC155-141,31.10.2023,ADULT SOCIAL CARE,5 CARE SERVICES LTD,23/10/2023,504.00,6541-Domiciliary Care,THIRD PARTY PAYMENTS,PRIVATE CONTRACTOR,REVENUE
Walsall Council,http://opendatacommunities.org/id/metropolitan-district-council/walsall ,WC155-142,31.10.2023,ADULT SOCIAL CARE,5 CARE SERVICES LTD,23/10/2023,378.00,6541-Domiciliary Care,THIRD PARTY PAYMENTS,PRIVATE CONTRACTOR,REVENUE
Walsall Council,http://opendatacommunities.org/id/metropolitan-district-council/walsall ,WC155-143,31.10.2023,ADULT SOCIAL CARE,5 CARE SERVICES LTD,23/10/2023,567.00,6541-Domiciliary Care,THIRD PARTY PAYMENTS,PRIVATE CONTRACTOR,REVENUE
Walsall Council,http://opendatacommunities.org/id/metropolitan-district-council/walsall ,WC155-144,31.10.2023,ADULT SOCIAL CARE,5 CARE SERVICES LTD,23/10/2023,283.50,6541-Domiciliary Care,THIRD PARTY PAYMENTS,PRIVATE CONTRACTOR,REVENUE
Walsall Council,http://opendatacommunities.org/id/metropolitan-district-council/walsall ,WC155-145,31.10.2023,ADULT SOCIAL CARE,5 CARE SERVICES LTD,23/10/2023,819.00,6541-Domiciliary Care,THIRD PARTY PAYMENTS,PRIVATE CONTRACTOR,REVENUE
Walsall Council,http://opendatacommunities.org/id/metropolitan-district-council/walsall ,WC155-146,31.10.2023,ADULT SOCIAL CARE,5 CARE SERVICES LTD,23/10/2023,567.00,6541-Domiciliary Care,THIRD PARTY PAYMENTS,PRIVATE CONTRACTOR,REVENUE
Walsall Council,http://opendatacommunities.org/id/metropolitan-district-council/walsall ,WC155-147,31.10.2023,ADULT SOCIAL CARE,5 CARE SERVICES LTD,23/10/2023,283.50,6541-Domiciliary Care,THIRD PARTY PAYMENTS,PRIVATE CONTRACTOR,REVENUE
Walsall Council,http://opendatacommunities.org/id/metropolitan-district-council/walsall ,WC155-148,31.10.2023,ADULT SOCIAL CARE,5 CARE SERVICES LTD,23/10/2023,256.50,6541-Domiciliary Care,THIRD PARTY PAYMENTS,PRIVATE CONTRACTOR,REVENUE
Walsall Council,http://opendatacommunities.org/id/metropolitan-district-council/walsall ,WC155-149,31.10.2023,ADULT SOCIAL CARE,5 CARE SERVICES LTD,23/10/2023,666.00,6541-Domiciliary Care,THIRD PARTY PAYMENTS,PRIVATE CONTRACTOR,REVENUE
Walsall Council,http://opendatacommunities.org/id/metropolitan-district-council/walsall ,WC155-150,31.10.2023,ADULT SOCIAL CARE,5 CARE SERVICES LTD,23/10/2023,603.00,6541-Domiciliary Care,THIRD PARTY PAYMENTS,PRIVATE CONTRACTOR,REVENUE
Walsall Council,http://opendatacommunities.org/id/metropolitan-district-council/walsall ,WC155-151,31.10.2023,ADULT SOCIAL CARE,5 CARE SERVICES LTD,23/10/2023,486.00,6541-Domiciliary Care,THIRD PARTY PAYMENTS,PRIVATE CONTRACTOR,REVENUE
Walsall Council,http://opendatacommunities.org/id/metropolitan-district-council/walsall ,WC155-152,31.10.2023,ADULT SOCIAL CARE,5 CARE SERVICES LTD,23/10/2023,792.00,6541-Domiciliary Care,THIRD PARTY PAYMENTS,PRIVATE CONTRACTOR,REVENUE
Walsall Council,http://opendatacommunities.org/id/metropolitan-district-council/walsall ,WC155-153,31.10.2023,ADULT SOCIAL CARE,5 CARE SERVICES LTD,23/10/2023,294.00,6541-Domiciliary Care,THIRD PARTY PAYMENTS,PRIVATE CONTRACTOR,REVENUE
Walsall Council,http://opendatacommunities.org/id/metropolitan-district-council/walsall ,WC155-154,31.10.2023,ADULT SOCIAL CARE,5 CARE SERVICES LTD,23/10/2023,288.00,6541-Domiciliary Care,THIRD PARTY PAYMENTS,PRIVATE CONTRACTOR,REVENUE
Walsall Council,http://opendatacommunities.org/id/metropolitan-district-council/walsall ,WC155-155,31.10.2023,ADULT SOCIAL CARE,5 CARE SERVICES LTD,23/10/2023,567.00,6541-Domiciliary Care,THIRD PARTY PAYMENTS,PRIVATE CONTRACTOR,REVENUE
Walsall Council,http://opendatacommunities.org/id/metropolitan-district-council/walsall ,WC155-156,31.10.2023,ADULT SOCIAL CARE,5 CARE SERVICES LTD,23/10/2023,666.00,6541-Domiciliary Care,THIRD PARTY PAYMENTS,PRIVATE CONTRACTOR,REVENUE
Walsall Council,http://opendatacommunities.org/id/metropolitan-district-council/walsall ,WC155-157,31.10.2023,ADULT SOCIAL CARE,5 CARE SERVICES LTD,23/10/2023,567.00,6541-Domiciliary Care,THIRD PARTY PAYMENTS,PRIVATE CONTRACTOR,REVENUE
Walsall Council,http://opendatacommunities.org/id/metropolitan-district-council/walsall ,WC155-158,31.10.2023,ADULT SOCIAL CARE,5 CARE SERVICES LTD,23/10/2023,"1,053.00",6541-Domiciliary Care,THIRD PARTY PAYMENTS,PRIVATE CONTRACTOR,REVENUE
Walsall Council,http://opendatacommunities.org/id/metropolitan-district-council/walsall ,WC155-159,31.10.2023,ADULT SOCIAL CARE,5 CARE SERVICES LTD,23/10/2023,283.50,6541-Domiciliary Care,THIRD PARTY PAYMENTS,PRIVATE CONTRACTOR,REVENUE
Walsall Council,http://opendatacommunities.org/id/metropolitan-district-council/walsall ,WC155-160,31.10.2023,ADULT SOCIAL CARE,5 CARE SERVICES LTD,23/10/2023,567.00,6541-Domiciliary Care,THIRD PARTY PAYMENTS,PRIVATE CONTRACTOR,REVENUE
Walsall Council,http://opendatacommunities.org/id/metropolitan-district-council/walsall ,WC155-161,31.10.2023,ADULT SOCIAL CARE,5 CARE SERVICES LTD,23/10/2023,360.00,6541-Domiciliary Care,THIRD PARTY PAYMENTS,PRIVATE CONTRACTOR,REVENUE
Walsall Council,http://opendatacommunities.org/id/metropolitan-district-council/walsall ,WC155-162,31.10.2023,ADULT SOCIAL CARE,5 CARE SERVICES LTD,23/10/2023,378.00,6541-Domiciliary Care,THIRD PARTY PAYMENTS,PRIVATE CONTRACTOR,REVENUE
Walsall Council,http://opendatacommunities.org/id/metropolitan-district-council/walsall ,WC155-163,31.10.2023,ADULT SOCIAL CARE,5 CARE SERVICES LTD,23/10/2023,567.00,6541-Domiciliary Care,THIRD PARTY PAYMENTS,PRIVATE CONTRACTOR,REVENUE
Walsall Council,http://opendatacommunities.org/id/metropolitan-district-council/walsall ,WC155-164,31.10.2023,ADULT SOCIAL CARE,5 CARE SERVICES LTD,23/10/2023,"1,008.00",6541-Domiciliary Care,THIRD PARTY PAYMENTS,PRIVATE CONTRACTOR,REVENUE
Walsall Council,http://opendatacommunities.org/id/metropolitan-district-council/walsall ,WC155-165,31.10.2023,ADULT SOCIAL CARE,5 CARE SERVICES LTD,23/10/2023,774.00,6541-Domiciliary Care,THIRD PARTY PAYMENTS,PRIVATE CONTRACTOR,REVENUE
Walsall Council,http://opendatacommunities.org/id/metropolitan-district-council/walsall ,WC155-166,31.10.2023,ADULT SOCIAL CARE,5 CARE SERVICES LTD,23/10/2023,283.50,6541-Domiciliary Care,THIRD PARTY PAYMENTS,PRIVATE CONTRACTOR,REVENUE
Walsall Council,http://opendatacommunities.org/id/metropolitan-district-council/walsall ,WC155-167,31.10.2023,ADULT SOCIAL CARE,5 CARE SERVICES LTD,23/10/2023,283.50,6541-Domiciliary Care,THIRD PARTY PAYMENTS,PRIVATE CONTRACTOR,REVENUE
Walsall Council,http://opendatacommunities.org/id/metropolitan-district-council/walsall ,WC155-168,31.10.2023,ADULT SOCIAL CARE,5 CARE SERVICES LTD,23/10/2023,432.00,6541-Domiciliary Care,THIRD PARTY PAYMENTS,PRIVATE CONTRACTOR,REVENUE
Walsall Council,http://opendatacommunities.org/id/metropolitan-district-council/walsall ,WC155-169,31.10.2023,ADULT SOCIAL CARE,5 CARE SERVICES LTD,23/10/2023,378.00,6541-Domiciliary Care,THIRD PARTY PAYMENTS,PRIVATE CONTRACTOR,REVENUE
Walsall Council,http://opendatacommunities.org/id/metropolitan-district-council/walsall ,WC155-170,31.10.2023,ADULT SOCIAL CARE,5 CARE SERVICES LTD,23/10/2023,567.00,6541-Domiciliary Care,THIRD PARTY PAYMENTS,PRIVATE CONTRACTOR,REVENUE
Walsall Council,http://opendatacommunities.org/id/metropolitan-district-council/walsall ,WC155-171,31.10.2023,ADULT SOCIAL CARE,5 CARE SERVICES LTD,23/10/2023,"1,386.00",6541-Domiciliary Care,THIRD PARTY PAYMENTS,PRIVATE CONTRACTOR,REVENUE
Walsall Council,http://opendatacommunities.org/id/metropolitan-district-council/walsall ,WC155-172,31.10.2023,ADULT SOCIAL CARE,5 CARE SERVICES LTD,23/10/2023,324.00,6541-Domiciliary Care,THIRD PARTY PAYMENTS,PRIVATE CONTRACTOR,REVENUE
Walsall Council,http://opendatacommunities.org/id/metropolitan-district-council/walsall ,WC155-173,31.10.2023,ADULT SOCIAL CARE,5 CARE SERVICES LTD,23/10/2023,651.00,6541-Domiciliary Care,THIRD PARTY PAYMENTS,PRIVATE CONTRACTOR,REVENUE
Walsall Council,http://opendatacommunities.org/id/metropolitan-district-council/walsall ,WC155-174,31.10.2023,ADULT SOCIAL CARE,5 CARE SERVICES LTD,23/10/2023,567.00,6541-Domiciliary Care,THIRD PARTY PAYMENTS,PRIVATE CONTRACTOR,REVENUE
Walsall Council,http://opendatacommunities.org/id/metropolitan-district-council/walsall ,WC155-175,31.10.2023,ADULT SOCIAL CARE,5 CARE SERVICES LTD,23/10/2023,504.00,6541-Domiciliary Care,THIRD PARTY PAYMENTS,PRIVATE CONTRACTOR,REVENUE
Walsall Council,http://opendatacommunities.org/id/metropolitan-district-council/walsall ,WC155-176,31.10.2023,ADULT SOCIAL CARE,5 CARE SERVICES LTD,23/10/2023,603.00,6541-Domiciliary Care,THIRD PARTY PAYMENTS,PRIVATE CONTRACTOR,REVENUE
Walsall Council,http://opendatacommunities.org/id/metropolitan-district-council/walsall ,WC155-177,31.10.2023,ADULT SOCIAL CARE,5 CARE SERVICES LTD,23/10/2023,283.50,6541-Domiciliary Care,THIRD PARTY PAYMENTS,PRIVATE CONTRACTOR,REVENUE
Walsall Council,http://opendatacommunities.org/id/metropolitan-district-council/walsall ,WC155-178,31.10.2023,ADULT SOCIAL CARE,5 CARE SERVICES LTD,23/10/2023,819.00,6541-Domiciliary Care,THIRD PARTY PAYMENTS,PRIVATE CONTRACTOR,REVENUE
Walsall Council,http://opendatacommunities.org/id/metropolitan-district-council/walsall ,WC155-179,31.10.2023,ADULT SOCIAL CARE,5 CARE SERVICES LTD,23/10/2023,756.00,6541-Domiciliary Care,THIRD PARTY PAYMENTS,PRIVATE CONTRACTOR,REVENUE
Walsall Council,http://opendatacommunities.org/id/metropolitan-district-council/walsall ,WC155-180,31.10.2023,ADULT SOCIAL CARE,5 CARE SERVICES LTD,23/10/2023,328.50,6541-Domiciliary Care,THIRD PARTY PAYMENTS,PRIVATE CONTRACTOR,REVENUE
Walsall Council,http://opendatacommunities.org/id/metropolitan-district-council/walsall ,WC155-181,31.10.2023,ADULT SOCIAL CARE,5 CARE SERVICES LTD,23/10/2023,666.00,6541-Domiciliary Care,THIRD PARTY PAYMENTS,PRIVATE CONTRACTOR,REVENUE
Walsall Council,http://opendatacommunities.org/id/metropolitan-district-council/walsall ,WC155-182,31.10.2023,ADULT SOCIAL CARE,5 CARE SERVICES LTD,23/10/2023,486.00,6541-Domiciliary Care,THIRD PARTY PAYMENTS,PRIVATE CONTRACTOR,REVENUE
Walsall Council,http://opendatacommunities.org/id/metropolitan-district-council/walsall ,WC155-183,31.10.2023,ADULT SOCIAL CARE,5 CARE SERVICES LTD,23/10/2023,294.00,6541-Domiciliary Care,THIRD PARTY PAYMENTS,PRIVATE CONTRACTOR,REVENUE
Walsall Council,http://opendatacommunities.org/id/metropolitan-district-council/walsall ,WC155-184,31.10.2023,ADULT SOCIAL CARE,5 CARE SERVICES LTD,23/10/2023,315.00,6541-Domiciliary Care,THIRD PARTY PAYMENTS,PRIVATE CONTRACTOR,REVENUE
Walsall Council,http://opendatacommunities.org/id/metropolitan-district-council/walsall ,WC155-185,31.10.2023,ADULT SOCIAL CARE,5 CARE SERVICES LTD,23/10/2023,567.00,6541-Domiciliary Care,THIRD PARTY PAYMENTS,PRIVATE CONTRACTOR,REVENUE
Walsall Council,http://opendatacommunities.org/id/metropolitan-district-council/walsall ,WC155-186,31.10.2023,ADULT SOCIAL CARE,5 CARE SERVICES LTD,23/10/2023,567.00,6541-Domiciliary Care,THIRD PARTY PAYMENTS,PRIVATE CONTRACTOR,REVENUE
Walsall Council,http://opendatacommunities.org/id/metropolitan-district-council/walsall ,WC155-187,31.10.2023,ADULT SOCIAL CARE,5 CARE SERVICES LTD,23/10/2023,481.50,6541-Domiciliary Care,THIRD PARTY PAYMENTS,PRIVATE CONTRACTOR,REVENUE
Walsall Council,http://opendatacommunities.org/id/metropolitan-district-council/walsall ,WC155-188,31.10.2023,ADULT SOCIAL CARE,5 CARE SERVICES LTD,23/10/2023,256.50,6541-Domiciliary Care,THIRD PARTY PAYMENTS,PRIVATE CONTRACTOR,REVENUE
Walsall Council,http://opendatacommunities.org/id/metropolitan-district-council/walsall ,WC155-189,31.10.2023,ADULT SOCIAL CARE,5 CARE SERVICES LTD,23/10/2023,486.00,6541-Domiciliary Care,THIRD PARTY PAYMENTS,PRIVATE CONTRACTOR,REVENUE
Walsall Council,http://opendatacommunities.org/id/metropolitan-district-council/walsall ,WC155-190,31.10.2023,ADULT SOCIAL CARE,5 CARE SERVICES LTD,23/10/2023,810.00,6541-Domiciliary Care,THIRD PARTY PAYMENTS,PRIVATE CONTRACTOR,REVENUE
Walsall Council,http://opendatacommunities.org/id/metropolitan-district-council/walsall ,WC155-191,31.10.2023,ADULT SOCIAL CARE,5 CARE SERVICES LTD,23/10/2023,567.00,6541-Domiciliary Care,THIRD PARTY PAYMENTS,PRIVATE CONTRACTOR,REVENUE
Walsall Council,http://opendatacommunities.org/id/metropolitan-district-council/walsall ,WC155-192,31.10.2023,ADULT SOCIAL CARE,5 CARE SERVICES LTD,23/10/2023,"1,053.00",6541-Domiciliary Care,THIRD PARTY PAYMENTS,PRIVATE CONTRACTOR,REVENUE
Walsall Council,http://opendatacommunities.org/id/metropolitan-district-council/walsall ,WC155-193,31.10.2023,ADULT SOCIAL CARE,5 CARE SERVICES LTD,23/10/2023,283.50,6541-Domiciliary Care,THIRD PARTY PAYMENTS,PRIVATE CONTRACTOR,REVENUE
Walsall Council,http://opendatacommunities.org/id/metropolitan-district-council/walsall ,WC155-194,31.10.2023,ADULT SOCIAL CARE,5 CARE SERVICES LTD,23/10/2023,630.00,6541-Domiciliary Care,THIRD PARTY PAYMENTS,PRIVATE CONTRACTOR,REVENUE
Walsall Council,http://opendatacommunities.org/id/metropolitan-district-council/walsall ,WC155-195,31.10.2023,ADULT SOCIAL CARE,5 CARE SERVICES LTD,23/10/2023,567.00,6541-Domiciliary Care,THIRD PARTY PAYMENTS,PRIVATE CONTRACTOR,REVENUE
Walsall Council,http://opendatacommunities.org/id/metropolitan-district-council/walsall ,WC155-196,31.10.2023,ADULT SOCIAL CARE,5 CARE SERVICES LTD,23/10/2023,567.00,6541-Domiciliary Care,THIRD PARTY PAYMENTS,PRIVATE CONTRACTOR,REVENUE
Walsall Council,http://opendatacommunities.org/id/metropolitan-district-council/walsall ,WC155-197,31.10.2023,CHILDRENS,5 CARE SERVICES LTD,27/10/2023,"2,520.00",6220-Professional Fees & Services,SUPPLIES & SERVICES,SERVICES,REVENUE
Walsall Council,http://opendatacommunities.org/id/metropolitan-district-council/walsall ,WC155-198,31.10.2023,"ECONOMY, ENVIRONMENT & COMMUNITIES",A & A SERVICES WEST MIDLANDS,25/10/2023,"4,000.00",6430-Grants to Other Orgs,SUPPLIES & SERVICES,GRANTS (EXP) & SUBSCRIPTIONS,REVENUE
Walsall Council,http://opendatacommunities.org/id/metropolitan-district-council/walsall ,WC155-199,31.10.2023,RESOURCES AND TRANSFORMATION,A D T FIRE AND SECURITY PLC,11/10/2023,286.62,6310-Security & Alarm Maintenance,PREMISES,REPAIRS & MAINTENANCE,REVENUE
Walsall Council,http://opendatacommunities.org/id/metropolitan-district-council/walsall ,WC155-200,31.10.2023,RESOURCES AND TRANSFORMATION,A D T FIRE AND SECURITY PLC,24/10/2023,"1,532.50",6310-Security & Alarm Maintenance,PREMISES,REPAIRS & MAINTENANCE,REVENUE
Walsall Council,http://opendatacommunities.org/id/metropolitan-district-council/walsall ,WC155-201,31.10.2023,"ECONOMY, ENVIRONMENT & COMMUNITIES",A F BLAKEMORE & SON LTD,12/10/2023,550.38,6413-Food & Drink Supplies,SUPPLIES & SERVICES,CATERING,REVENUE
Walsall Council,http://opendatacommunities.org/id/metropolitan-district-council/walsall ,WC155-202,31.10.2023,"ECONOMY, ENVIRONMENT & COMMUNITIES",A F BLAKEMORE & SON LTD,12/10/2023,912.92,6413-Food & Drink Supplies,SUPPLIES & SERVICES,CATERING,REVENUE
Walsall Council,http://opendatacommunities.org/id/metropolitan-district-council/walsall ,WC155-203,31.10.2023,CHILDRENS,A+ TUTORING SERVICES,03/10/2023,280.00,1220-Professional Fees & Services,SUPPLIES & SERVICES,SERVICES,REVENUE
Walsall Council,http://opendatacommunities.org/id/metropolitan-district-council/walsall ,WC155-204,31.10.2023,CHILDRENS,A1 WALSALL RADIO CARS,09/10/2023,"2,520.00",6241-Hire of Vehicle with Driver,TRANSPORT,DIRECT TRANSPORT COSTS,REVENUE
Walsall Council,http://opendatacommunities.org/id/metropolitan-district-council/walsall ,WC155-205,31.10.2023,CHILDRENS,A1 WALSALL RADIO CARS,09/10/2023,576.00,6241-Hire of Vehicle with Driver,TRANSPORT,DIRECT TRANSPORT COSTS,REVENUE
Walsall Council,http://opendatacommunities.org/id/metropolitan-district-council/walsall ,WC155-206,31.10.2023,CHILDRENS,A1 WALSALL RADIO CARS,09/10/2023,"1,079.00",6241-Hire of Vehicle with Driver,TRANSPORT,DIRECT TRANSPORT COSTS,REVENUE
Walsall Council,http://opendatacommunities.org/id/metropolitan-district-council/walsall ,WC155-207,31.10.2023,CHILDRENS,A1 WALSALL RADIO CARS,09/10/2023,"1,620.00",6241-Hire of Vehicle with Driver,TRANSPORT,DIRECT TRANSPORT COSTS,REVENUE
Walsall Council,http://opendatacommunities.org/id/metropolitan-district-council/walsall ,WC155-208,31.10.2023,CHILDRENS,A1 WALSALL RADIO CARS,09/10/2023,"1,575.00",6241-Hire of Vehicle with Driver,TRANSPORT,DIRECT TRANSPORT COSTS,REVENUE
Walsall Council,http://opendatacommunities.org/id/metropolitan-district-council/walsall ,WC155-209,31.10.2023,CHILDRENS,A1 WALSALL RADIO CARS,09/10/2023,665.00,6241-Hire of Vehicle with Driver,TRANSPORT,DIRECT TRANSPORT COSTS,REVENUE
Walsall Council,http://opendatacommunities.org/id/metropolitan-district-council/walsall ,WC155-210,31.10.2023,"ECONOMY, ENVIRONMENT & COMMUNITIES",AAINA COMMUNITY HUB,17/10/2023,"1,250.00",6430-Grants to Other Orgs,SUPPLIES & SERVICES,GRANTS (EXP) & SUBSCRIPTIONS,REVENUE
Walsall Council,http://opendatacommunities.org/id/metropolitan-district-council/walsall ,WC155-211,31.10.2023,"ECONOMY, ENVIRONMENT & COMMUNITIES",AAINA COMMUNITY HUB,23/10/2023,"1,666.67",6430-Grants to Other Orgs,SUPPLIES & SERVICES,GRANTS (EXP) & SUBSCRIPTIONS,REVENUE
Walsall Council,http://opendatacommunities.org/id/metropolitan-district-council/walsall ,WC155-212,31.10.2023,ADULT SOCIAL CARE,REDACTED,05/10/2023,900.96,6541-Direct Payment,THIRD PARTY PAYMENTS,PRIVATE CONTRACTOR,REVENUE
Walsall Council,http://opendatacommunities.org/id/metropolitan-district-council/walsall ,WC155-213,31.10.2023,CHILDRENS,ABACUS FOSTERING LTD,03/10/2023,"2,984.80",6223-Independent Foster Care-Oth Agency Provision,THIRD PARTY PAYMENTS,PRIVATE CONTRACTOR,REVENUE
Walsall Council,http://opendatacommunities.org/id/metropolitan-district-council/walsall ,WC155-214,31.10.2023,CHILDRENS,ABACUS FOSTERING LTD,03/10/2023,"2,818.88",6223-Independent Foster Care-Oth Agency Provision,THIRD PARTY PAYMENTS,PRIVATE CONTRACTOR,REVENUE
Walsall Council,http://opendatacommunities.org/id/metropolitan-district-council/walsall ,WC155-215,31.10.2023,CHILDRENS,ABACUS FOSTERING LTD,03/10/2023,-748.85,6223-Independent Foster Care-Oth Agency Provision,THIRD PARTY PAYMENTS,PRIVATE CONTRACTOR,REVENUE
Walsall Council,http://opendatacommunities.org/id/metropolitan-district-council/walsall ,WC155-216,31.10.2023,CHILDRENS,ABACUS FOSTERING LTD,03/10/2023,"5,614.92",6223-Independent Foster Care-Oth Agency Provision,THIRD PARTY PAYMENTS,PRIVATE CONTRACTOR,REVENUE
Walsall Council,http://opendatacommunities.org/id/metropolitan-district-council/walsall ,WC155-217,31.10.2023,CHILDRENS,ABACUS FOSTERING LTD,03/10/2023,-748.85,6223-Independent Foster Care-Oth Agency Provision,THIRD PARTY PAYMENTS,PRIVATE CONTRACTOR,REVENUE
Walsall Council,http://opendatacommunities.org/id/metropolitan-district-council/walsall ,WC155-218,31.10.2023,CHILDRENS,ABACUS FOSTERING LTD,03/10/2023,"5,534.96",6223-Independent Foster Care-Oth Agency Provision,THIRD PARTY PAYMENTS,PRIVATE CONTRACTOR,REVENUE
Walsall Council,http://opendatacommunities.org/id/metropolitan-district-council/walsall ,WC155-219,31.10.2023,CHILDRENS,ABACUS FOSTERING LTD,30/10/2023,"2,984.80",6223-Independent Foster Care-Oth Agency Provision,THIRD PARTY PAYMENTS,PRIVATE CONTRACTOR,REVENUE
Walsall Council,http://opendatacommunities.org/id/metropolitan-district-council/walsall ,WC155-220,31.10.2023,CHILDRENS,ABACUS FOSTERING LTD,30/10/2023,"2,818.88",6223-Independent Foster Care-Oth Agency Provision,THIRD PARTY PAYMENTS,PRIVATE CONTRACTOR,REVENUE
Walsall Council,http://opendatacommunities.org/id/metropolitan-district-council/walsall ,WC155-221,31.10.2023,CHILDRENS,ABACUS FOSTERING LTD,30/10/2023,"3,198.72",6223-Independent Foster Care-Oth Agency Provision,THIRD PARTY PAYMENTS,PRIVATE CONTRACTOR,REVENUE
Walsall Council,http://opendatacommunities.org/id/metropolitan-district-council/walsall ,WC155-222,31.10.2023,CHILDRENS,ABACUS FOSTERING LTD,30/10/2023,"3,038.80",6223-Independent Foster Care-Oth Agency Provision,THIRD PARTY PAYMENTS,PRIVATE CONTRACTOR,REVENUE
Walsall Council,http://opendatacommunities.org/id/metropolitan-district-council/walsall ,WC155-223,31.10.2023,CHILDRENS CAPITAL,ABACUS PLAYGROUNDS LTD,17/10/2023,"4,195.00",7155-Site Works Contractors,CAPITAL,"NEW CONSTRUCTION,CONVERSION & RENOVATION",CAPITAL
Walsall Council,http://opendatacommunities.org/id/metropolitan-district-council/walsall ,WC155-224,31.10.2023,ADULT SOCIAL CARE,ABBEY HEALTHCARE HOMES LTD,23/10/2023,"3,180.76",6541-Residential,THIRD PARTY PAYMENTS,PRIVATE CONTRACTOR,REVENUE
Walsall Council,http://opendatacommunities.org/id/metropolitan-district-council/walsall ,WC155-225,31.10.2023,ADULT SOCIAL CARE,ABBEY HEALTHCARE HOMES LTD,23/10/2023,"3,180.76",6541-Residential,THIRD PARTY PAYMENTS,PRIVATE CONTRACTOR,REVENUE
Walsall Council,http://opendatacommunities.org/id/metropolitan-district-council/walsall ,WC155-226,31.10.2023,ADULT SOCIAL CARE,ABBEY HEALTHCARE HOMES LTD,23/10/2023,"6,201.60",6541-Residential,THIRD PARTY PAYMENTS,PRIVATE CONTRACTOR,REVENUE
Walsall Council,http://opendatacommunities.org/id/metropolitan-district-council/walsall ,WC155-227,31.10.2023,ADULT SOCIAL CARE,ABBEY HEALTHCARE HOMES LTD,23/10/2023,"2,432.32",6541-Residential,THIRD PARTY PAYMENTS,PRIVATE CONTRACTOR,REVENUE
Walsall Council,http://opendatacommunities.org/id/metropolitan-district-council/walsall ,WC155-228,31.10.2023,CHILDRENS,ABC DAY NURSERY (WILLENHALL) LIMITED,16/10/2023,"4,504.42",1184-Other-Grants to Other Orgs,SUPPLIES & SERVICES,GRANTS (EXP) & SUBSCRIPTIONS,REVENUE
Walsall Council,http://opendatacommunities.org/id/metropolitan-district-council/walsall ,WC155-229,31.10.2023,CHILDRENS,ABC DAY NURSERY (WILLENHALL) LIMITED,16/10/2023,"9,440.55",1184-Other-Grants to Other Orgs,SUPPLIES & SERVICES,GRANTS (EXP) & SUBSCRIPTIONS,REVENUE
Walsall Council,http://opendatacommunities.org/id/metropolitan-district-council/walsall ,WC155-230,31.10.2023,ADULT SOCIAL CARE,REDACTED,05/10/2023,"2,438.24",6541-Direct Payment,THIRD PARTY PAYMENTS,PRIVATE CONTRACTOR,REVENUE
Walsall Council,http://opendatacommunities.org/id/metropolitan-district-council/walsall ,WC155-231,31.10.2023,ADULT SOCIAL CARE,ABILITY HEALTHCARE LTD,19/10/2023,"2,241.00",6541-Domiciliary Care,THIRD PARTY PAYMENTS,PRIVATE CONTRACTOR,REVENUE
Walsall Council,http://opendatacommunities.org/id/metropolitan-district-council/walsall ,WC155-232,31.10.2023,ADULT SOCIAL CARE,ABILITY HEALTHCARE LTD,19/10/2023,"2,016.00",6541-Domiciliary Care,THIRD PARTY PAYMENTS,PRIVATE CONTRACTOR,REVENUE
Walsall Council,http://opendatacommunities.org/id/metropolitan-district-council/walsall ,WC155-233,31.10.2023,ADULT SOCIAL CARE,ABILITY HEALTHCARE LTD,19/10/2023,"1,512.00",6541-Domiciliary Care,THIRD PARTY PAYMENTS,PRIVATE CONTRACTOR,REVENUE
Walsall Council,http://opendatacommunities.org/id/metropolitan-district-council/walsall ,WC155-234,31.10.2023,ADULT SOCIAL CARE,ABILITY HEALTHCARE LTD,19/10/2023,"2,268.00",6541-Domiciliary Care,THIRD PARTY PAYMENTS,PRIVATE CONTRACTOR,REVENUE
Walsall Council,http://opendatacommunities.org/id/metropolitan-district-council/walsall ,WC155-235,31.10.2023,ADULT SOCIAL CARE,ABILITY HEALTHCARE LTD,19/10/2023,"2,322.00",6541-Domiciliary Care,THIRD PARTY PAYMENTS,PRIVATE CONTRACTOR,REVENUE
Walsall Council,http://opendatacommunities.org/id/metropolitan-district-council/walsall ,WC155-236,31.10.2023,ADULT SOCIAL CARE,ABILITY HEALTHCARE LTD,19/10/2023,"2,268.00",6541-Domiciliary Care,THIRD PARTY PAYMENTS,PRIVATE CONTRACTOR,REVENUE
Walsall Council,http://opendatacommunities.org/id/metropolitan-district-council/walsall ,WC155-237,31.10.2023,ADULT SOCIAL CARE,ABILITY HEALTHCARE LTD,19/10/2023,"2,016.00",6541-Domiciliary Care,THIRD PARTY PAYMENTS,PRIVATE CONTRACTOR,REVENUE
Walsall Council,http://opendatacommunities.org/id/metropolitan-district-council/walsall ,WC155-238,31.10.2023,ADULT SOCIAL CARE,ABILITY HEALTHCARE LTD,19/10/2023,"1,134.00",6541-Domiciliary Care,THIRD PARTY PAYMENTS,PRIVATE CONTRACTOR,REVENUE
Walsall Council,http://opendatacommunities.org/id/metropolitan-district-council/walsall ,WC155-239,31.10.2023,ADULT SOCIAL CARE,ABILITY HEALTHCARE LTD,19/10/2023,"1,764.00",6541-Domiciliary Care,THIRD PARTY PAYMENTS,PRIVATE CONTRACTOR,REVENUE
Walsall Council,http://opendatacommunities.org/id/metropolitan-district-council/walsall ,WC155-240,31.10.2023,ADULT SOCIAL CARE,ABILITY HEALTHCARE LTD,19/10/2023,"2,016.00",6541-Domiciliary Care,THIRD PARTY PAYMENTS,PRIVATE CONTRACTOR,REVENUE
Walsall Council,http://opendatacommunities.org/id/metropolitan-district-council/walsall ,WC155-241,31.10.2023,ADULT SOCIAL CARE,ABILITY HEALTHCARE LTD,19/10/2023,"3,528.00",6541-Domiciliary Care,THIRD PARTY PAYMENTS,PRIVATE CONTRACTOR,REVENUE
Walsall Council,http://opendatacommunities.org/id/metropolitan-district-council/walsall ,WC155-242,31.10.2023,ADULT SOCIAL CARE,ABILITY HEALTHCARE LTD,19/10/2023,"2,160.00",6541-Domiciliary Care,THIRD PARTY PAYMENTS,PRIVATE CONTRACTOR,REVENUE
Walsall Council,http://opendatacommunities.org/id/metropolitan-district-council/walsall ,WC155-243,31.10.2023,ADULT SOCIAL CARE,ABILITY HEALTHCARE LTD,19/10/2023,"2,016.00",6541-Domiciliary Care,THIRD PARTY PAYMENTS,PRIVATE CONTRACTOR,REVENUE
Walsall Council,http://opendatacommunities.org/id/metropolitan-district-council/walsall ,WC155-244,31.10.2023,ADULT SOCIAL CARE,ABILITY HEALTHCARE LTD,19/10/2023,486.00,6541-Domiciliary Care,THIRD PARTY PAYMENTS,PRIVATE CONTRACTOR,REVENUE
Walsall Council,http://opendatacommunities.org/id/metropolitan-district-council/walsall ,WC155-245,31.10.2023,ADULT SOCIAL CARE,ABILITY HEALTHCARE LTD,19/10/2023,"1,008.00",6541-Domiciliary Care,THIRD PARTY PAYMENTS,PRIVATE CONTRACTOR,REVENUE
Walsall Council,http://opendatacommunities.org/id/metropolitan-district-council/walsall ,WC155-246,31.10.2023,ADULT SOCIAL CARE,ABILITY HEALTHCARE LTD,19/10/2023,"2,268.00",6541-Domiciliary Care,THIRD PARTY PAYMENTS,PRIVATE CONTRACTOR,REVENUE
Walsall Council,http://opendatacommunities.org/id/metropolitan-district-council/walsall ,WC155-247,31.10.2023,ADULT SOCIAL CARE,ABILITY HEALTHCARE LTD,19/10/2023,"2,772.00",6541-Domiciliary Care,THIRD PARTY PAYMENTS,PRIVATE CONTRACTOR,REVENUE
Walsall Council,http://opendatacommunities.org/id/metropolitan-district-council/walsall ,WC155-248,31.10.2023,ADULT SOCIAL CARE,ABILITY HEALTHCARE LTD,19/10/2023,"2,304.00",6541-Domiciliary Care,THIRD PARTY PAYMENTS,PRIVATE CONTRACTOR,REVENUE
Walsall Council,http://opendatacommunities.org/id/metropolitan-district-council/walsall ,WC155-249,31.10.2023,ADULT SOCIAL CARE,ABILITY HEALTHCARE LTD,19/10/2023,"2,016.00",6541-Domiciliary Care,THIRD PARTY PAYMENTS,PRIVATE CONTRACTOR,REVENUE
Walsall Council,http://opendatacommunities.org/id/metropolitan-district-council/walsall ,WC155-250,31.10.2023,ADULT SOCIAL CARE,ABILITY HEALTHCARE LTD,19/10/2023,"2,016.00",6541-Domiciliary Care,THIRD PARTY PAYMENTS,PRIVATE CONTRACTOR,REVENUE
Walsall Council,http://opendatacommunities.org/id/metropolitan-district-council/walsall ,WC155-251,31.10.2023,ADULT SOCIAL CARE,ABILITY HEALTHCARE LTD,19/10/2023,"1,680.00",6541-Domiciliary Care,THIRD PARTY PAYMENTS,PRIVATE CONTRACTOR,REVENUE
Walsall Council,http://opendatacommunities.org/id/metropolitan-district-council/walsall ,WC155-252,31.10.2023,ADULT SOCIAL CARE,ABILITY HEALTHCARE LTD,19/10/2023,"1,377.00",6541-Domiciliary Care,THIRD PARTY PAYMENTS,PRIVATE CONTRACTOR,REVENUE
Walsall Council,http://opendatacommunities.org/id/metropolitan-district-council/walsall ,WC155-253,31.10.2023,ADULT SOCIAL CARE,ABILITY HEALTHCARE LTD,19/10/2023,"2,268.00",6541-Domiciliary Care,THIRD PARTY PAYMENTS,PRIVATE CONTRACTOR,REVENUE
Walsall Council,http://opendatacommunities.org/id/metropolitan-district-council/walsall ,WC155-254,31.10.2023,ADULT SOCIAL CARE,ABILITY HEALTHCARE LTD,19/10/2023,336.00,6541-Domiciliary Care,THIRD PARTY PAYMENTS,PRIVATE CONTRACTOR,REVENUE
Walsall Council,http://opendatacommunities.org/id/metropolitan-district-council/walsall ,WC155-255,31.10.2023,ADULT SOCIAL CARE,ABILITY HEALTHCARE LTD,19/10/2023,"1,764.00",6541-Domiciliary Care,THIRD PARTY PAYMENTS,PRIVATE CONTRACTOR,REVENUE
Walsall Council,http://opendatacommunities.org/id/metropolitan-district-council/walsall ,WC155-256,31.10.2023,ADULT SOCIAL CARE,ABILITY HEALTHCARE LTD,19/10/2023,"1,344.00",6541-Domiciliary Care,THIRD PARTY PAYMENTS,PRIVATE CONTRACTOR,REVENUE
Walsall Council,http://opendatacommunities.org/id/metropolitan-district-council/walsall ,WC155-257,31.10.2023,ADULT SOCIAL CARE,ABILITY HEALTHCARE LTD,19/10/2023,"2,016.00",6541-Domiciliary Care,THIRD PARTY PAYMENTS,PRIVATE CONTRACTOR,REVENUE
Walsall Council,http://opendatacommunities.org/id/metropolitan-district-council/walsall ,WC155-258,31.10.2023,ADULT SOCIAL CARE,ABILITY HEALTHCARE LTD,19/10/2023,"1,260.00",6541-Domiciliary Care,THIRD PARTY PAYMENTS,PRIVATE CONTRACTOR,REVENUE
Walsall Council,http://opendatacommunities.org/id/metropolitan-district-council/walsall ,WC155-259,31.10.2023,ADULT SOCIAL CARE,ABILITY HEALTHCARE LTD,19/10/2023,"4,212.00",6541-Domiciliary Care,THIRD PARTY PAYMENTS,PRIVATE CONTRACTOR,REVENUE
Walsall Council,http://opendatacommunities.org/id/metropolitan-district-council/walsall ,WC155-260,31.10.2023,ADULT SOCIAL CARE,ABILITY HEALTHCARE LTD,19/10/2023,684.00,6554-Professional Services-Priv Contractor & Other Agencies,THIRD PARTY PAYMENTS,PRIVATE CONTRACTOR,REVENUE
Walsall Council,http://opendatacommunities.org/id/metropolitan-district-council/walsall ,WC155-261,31.10.2023,ADULT SOCIAL CARE,ABILITY HEALTHCARE LTD,19/10/2023,"2,682.00",6554-Professional Services-Priv Contractor & Other Agencies,THIRD PARTY PAYMENTS,PRIVATE CONTRACTOR,REVENUE
Walsall Council,http://opendatacommunities.org/id/metropolitan-district-council/walsall ,WC155-262,31.10.2023,ADULT SOCIAL CARE,ABILITY HEALTHCARE LTD,19/10/2023,324.00,6554-Professional Services-Priv Contractor & Other Agencies,THIRD PARTY PAYMENTS,PRIVATE CONTRACTOR,REVENUE
Walsall Council,http://opendatacommunities.org/id/metropolitan-district-council/walsall ,WC155-263,31.10.2023,ADULT SOCIAL CARE,ABILITY HEALTHCARE LTD,19/10/2023,342.00,6554-Professional Services-Priv Contractor & Other Agencies,THIRD PARTY PAYMENTS,PRIVATE CONTRACTOR,REVENUE
Walsall Council,http://opendatacommunities.org/id/metropolitan-district-council/walsall ,WC155-264,31.10.2023,ADULT SOCIAL CARE,ABILITY SMART LTD,03/10/2023,295.00,6548-External Training,INDIRECT EMPLOYEES,EXTERNAL TRAINING,REVENUE
Walsall Council,http://opendatacommunities.org/id/metropolitan-district-council/walsall ,WC155-265,31.10.2023,CHILDRENS,ABLEWELL CARS,09/10/2023,"1,036.00",6241-Hire of Vehicle with Driver,TRANSPORT,DIRECT TRANSPORT COSTS,REVENUE
Walsall Council,http://opendatacommunities.org/id/metropolitan-district-council/walsall ,WC155-266,31.10.2023,CHILDRENS,ABLEWELL CARS,09/10/2023,884.80,6241-Hire of Vehicle with Driver,TRANSPORT,DIRECT TRANSPORT COSTS,REVENUE
Walsall Council,http://opendatacommunities.org/id/metropolitan-district-council/walsall ,WC155-267,31.10.2023,CHILDRENS,ABLEWELL CARS,09/10/2023,"1,325.40",6241-Hire of Vehicle with Driver,TRANSPORT,DIRECT TRANSPORT COSTS,REVENUE
Walsall Council,http://opendatacommunities.org/id/metropolitan-district-council/walsall ,WC155-268,31.10.2023,CHILDRENS,ABLEWELL CARS,09/10/2023,946.80,6241-Hire of Vehicle with Driver,TRANSPORT,DIRECT TRANSPORT COSTS,REVENUE
Walsall Council,http://opendatacommunities.org/id/metropolitan-district-council/walsall ,WC155-269,31.10.2023,CHILDRENS,ABLEWELL CARS,09/10/2023,"1,363.31",6241-Hire of Vehicle with Driver,TRANSPORT,DIRECT TRANSPORT COSTS,REVENUE
Walsall Council,http://opendatacommunities.org/id/metropolitan-district-council/walsall ,WC155-270,31.10.2023,CHILDRENS,ABLEWELL CARS,09/10/2023,"2,137.50",6241-Hire of Vehicle with Driver,TRANSPORT,DIRECT TRANSPORT COSTS,REVENUE
Walsall Council,http://opendatacommunities.org/id/metropolitan-district-council/walsall ,WC155-271,31.10.2023,CHILDRENS,ABS TAXIS (ALDRIDGE),09/10/2023,"1,306.50",6241-Hire of Vehicle with Driver,TRANSPORT,DIRECT TRANSPORT COSTS,REVENUE
Walsall Council,http://opendatacommunities.org/id/metropolitan-district-council/walsall ,WC155-272,31.10.2023,CHILDRENS,ABS TAXIS (ALDRIDGE),09/10/2023,"1,349.40",6241-Hire of Vehicle with Driver,TRANSPORT,DIRECT TRANSPORT COSTS,REVENUE
Walsall Council,http://opendatacommunities.org/id/metropolitan-district-council/walsall ,WC155-273,31.10.2023,CHILDRENS,ABS TAXIS (ALDRIDGE),09/10/2023,"1,127.00",6241-Hire of Vehicle with Driver,TRANSPORT,DIRECT TRANSPORT COSTS,REVENUE
Walsall Council,http://opendatacommunities.org/id/metropolitan-district-council/walsall ,WC155-274,31.10.2023,CHILDRENS,ABS TAXIS (ALDRIDGE),09/10/2023,"1,283.10",6241-Hire of Vehicle with Driver,TRANSPORT,DIRECT TRANSPORT COSTS,REVENUE
Walsall Council,http://opendatacommunities.org/id/metropolitan-district-council/walsall ,WC155-275,31.10.2023,ADULT SOCIAL CARE,ABSOLUTE HEALTHCARE SWAN HOUSE LTD,23/10/2023,"2,413.36",6541-Residential EMI,THIRD PARTY PAYMENTS,PRIVATE CONTRACTOR,REVENUE
Walsall Council,http://opendatacommunities.org/id/metropolitan-district-council/walsall ,WC155-276,31.10.2023,ADULT SOCIAL CARE,ABSOLUTE HEALTHCARE SWAN HOUSE LTD,23/10/2023,"2,277.32",6541-Residential,THIRD PARTY PAYMENTS,PRIVATE CONTRACTOR,REVENUE
Walsall Council,http://opendatacommunities.org/id/metropolitan-district-council/walsall ,WC155-277,31.10.2023,ADULT SOCIAL CARE,ABSOLUTE HEALTHCARE SWAN HOUSE LTD,23/10/2023,"2,137.32",6541-Residential,THIRD PARTY PAYMENTS,PRIVATE CONTRACTOR,REVENUE
Walsall Council,http://opendatacommunities.org/id/metropolitan-district-council/walsall ,WC155-278,31.10.2023,ADULT SOCIAL CARE,ABSOLUTE HEALTHCARE SWAN HOUSE LTD,23/10/2023,"3,048.96",6541-Nursing,THIRD PARTY PAYMENTS,PRIVATE CONTRACTOR,REVENUE
Walsall Council,http://opendatacommunities.org/id/metropolitan-district-council/walsall ,WC155-279,31.10.2023,ADULT SOCIAL CARE,ABSOLUTE HEALTHCARE SWAN HOUSE LTD,23/10/2023,"3,336.92",6541-Nursing EMI,THIRD PARTY PAYMENTS,PRIVATE CONTRACTOR,REVENUE
Walsall Council,http://opendatacommunities.org/id/metropolitan-district-council/walsall ,WC155-280,31.10.2023,ADULT SOCIAL CARE,ABSOLUTE HEALTHCARE SWAN HOUSE LTD,23/10/2023,"3,600.00",6541-Residential,THIRD PARTY PAYMENTS,PRIVATE CONTRACTOR,REVENUE
Walsall Council,http://opendatacommunities.org/id/metropolitan-district-council/walsall ,WC155-281,31.10.2023,ADULT SOCIAL CARE,ABSOLUTE HEALTHCARE SWAN HOUSE LTD,23/10/2023,"4,056.00",6541-Residential,THIRD PARTY PAYMENTS,PRIVATE CONTRACTOR,REVENUE
Walsall Council,http://opendatacommunities.org/id/metropolitan-district-council/walsall ,WC155-282,31.10.2023,ADULT SOCIAL CARE,ABSOLUTE HEALTHCARE SWAN HOUSE LTD,23/10/2023,"2,137.32",6541-Residential,THIRD PARTY PAYMENTS,PRIVATE CONTRACTOR,REVENUE
Walsall Council,http://opendatacommunities.org/id/metropolitan-district-council/walsall ,WC155-283,31.10.2023,ADULT SOCIAL CARE,ABSOLUTE HEALTHCARE SWAN HOUSE LTD,23/10/2023,"2,413.36",6541-Residential EMI,THIRD PARTY PAYMENTS,PRIVATE CONTRACTOR,REVENUE
Walsall Council,http://opendatacommunities.org/id/metropolitan-district-council/walsall ,WC155-284,31.10.2023,ADULT SOCIAL CARE,ABSOLUTE HEALTHCARE SWAN HOUSE LTD,23/10/2023,"4,000.00",6554-Professional Services-Priv Contractor & Other Agencies,THIRD PARTY PAYMENTS,PRIVATE CONTRACTOR,REVENUE
Walsall Council,http://opendatacommunities.org/id/metropolitan-district-council/walsall ,WC155-285,31.10.2023,ADULT SOCIAL CARE,ABSOLUTE HEALTHCARE SWAN HOUSE LTD,23/10/2023,"2,428.57",6554-Professional Services-Priv Contractor & Other Agencies,THIRD PARTY PAYMENTS,PRIVATE CONTRACTOR,REVENUE
Walsall Council,http://opendatacommunities.org/id/metropolitan-district-council/walsall ,WC155-286,31.10.2023,ADULT SOCIAL CARE,ABSOLUTE HEALTHCARE SWAN HOUSE LTD,23/10/2023,"4,000.00",6541-Nursing EMI,THIRD PARTY PAYMENTS,PRIVATE CONTRACTOR,REVENUE
Walsall Council,http://opendatacommunities.org/id/metropolitan-district-council/walsall ,WC155-287,31.10.2023,ADULT SOCIAL CARE,ABSOLUTE HEALTHCARE SWAN HOUSE LTD,23/10/2023,"2,137.32",6541-Residential,THIRD PARTY PAYMENTS,PRIVATE CONTRACTOR,REVENUE
Walsall Council,http://opendatacommunities.org/id/metropolitan-district-council/walsall ,WC155-288,31.10.2023,ADULT SOCIAL CARE,ABSOLUTE HEALTHCARE SWAN HOUSE LTD,23/10/2023,"2,137.32",6541-Residential,THIRD PARTY PAYMENTS,PRIVATE CONTRACTOR,REVENUE
Walsall Council,http://opendatacommunities.org/id/metropolitan-district-council/walsall ,WC155-289,31.10.2023,ADULT SOCIAL CARE,ABSOLUTE HEALTHCARE SWAN HOUSE LTD,23/10/2023,"1,742.35",6541-Nursing,THIRD PARTY PAYMENTS,PRIVATE CONTRACTOR,REVENUE
Walsall Council,http://opendatacommunities.org/id/metropolitan-district-council/walsall ,WC155-290,31.10.2023,ADULT SOCIAL CARE,ABSOLUTE HEALTHCARE SWAN HOUSE LTD,23/10/2023,"2,413.36",6541-Residential EMI,THIRD PARTY PAYMENTS,PRIVATE CONTRACTOR,REVENUE
Walsall Council,http://opendatacommunities.org/id/metropolitan-district-council/walsall ,WC155-291,31.10.2023,ADULT SOCIAL CARE,ABSOLUTE HEALTHCARE SWAN HOUSE LTD,23/10/2023,"2,137.32",6541-Residential,THIRD PARTY PAYMENTS,PRIVATE CONTRACTOR,REVENUE
Walsall Council,http://opendatacommunities.org/id/metropolitan-district-council/walsall ,WC155-292,31.10.2023,ADULT SOCIAL CARE,ABSOLUTE HEALTHCARE SWAN HOUSE LTD,23/10/2023,"5,240.48",6541-Nursing EMI,THIRD PARTY PAYMENTS,PRIVATE CONTRACTOR,REVENUE
Walsall Council,http://opendatacommunities.org/id/metropolitan-district-council/walsall ,WC155-293,31.10.2023,ADULT SOCIAL CARE,ABSOLUTE HEALTHCARE SWAN HOUSE LTD,23/10/2023,"2,571.43",6554-Professional Services-Priv Contractor & Other Agencies,THIRD PARTY PAYMENTS,PRIVATE CONTRACTOR,REVENUE
Walsall Council,http://opendatacommunities.org/id/metropolitan-district-council/walsall ,WC155-294,31.10.2023,ADULT SOCIAL CARE,ABSOLUTE HEALTHCARE SWAN HOUSE LTD,23/10/2023,"1,114.29",6554-Professional Services-Priv Contractor & Other Agencies,THIRD PARTY PAYMENTS,PRIVATE CONTRACTOR,REVENUE
Walsall Council,http://opendatacommunities.org/id/metropolitan-district-council/walsall ,WC155-295,31.10.2023,ADULT SOCIAL CARE,ABSOLUTE HEALTHCARE SWAN HOUSE LTD,23/10/2023,"1,828.57",6554-Professional Services-Priv Contractor & Other Agencies,THIRD PARTY PAYMENTS,PRIVATE CONTRACTOR,REVENUE
Walsall Council,http://opendatacommunities.org/id/metropolitan-district-council/walsall ,WC155-296,31.10.2023,ADULT SOCIAL CARE,ABSOLUTE HEALTHCARE SWAN HOUSE LTD,23/10/2023,"2,413.36",6541-Residential EMI,THIRD PARTY PAYMENTS,PRIVATE CONTRACTOR,REVENUE
Walsall Council,http://opendatacommunities.org/id/metropolitan-district-council/walsall ,WC155-297,31.10.2023,ADULT SOCIAL CARE,ABSOLUTE HEALTHCARE SWAN HOUSE LTD,23/10/2023,"3,621.43",6554-Professional Services-Priv Contractor & Other Agencies,THIRD PARTY PAYMENTS,PRIVATE CONTRACTOR,REVENUE
Walsall Council,http://opendatacommunities.org/id/metropolitan-district-council/walsall ,WC155-298,31.10.2023,ADULT SOCIAL CARE,ABSOLUTE HEALTHCARE SWAN HOUSE LTD,23/10/2023,696.43,6554-Professional Services-Priv Contractor & Other Agencies,THIRD PARTY PAYMENTS,PRIVATE CONTRACTOR,REVENUE
Walsall Council,http://opendatacommunities.org/id/metropolitan-district-council/walsall ,WC155-299,31.10.2023,ADULT SOCIAL CARE,ABSOLUTE HEALTHCARE SWAN HOUSE LTD,23/10/2023,"2,413.36",6541-Residential EMI,THIRD PARTY PAYMENTS,PRIVATE CONTRACTOR,REVENUE
Walsall Council,http://opendatacommunities.org/id/metropolitan-district-council/walsall ,WC155-300,31.10.2023,ADULT SOCIAL CARE,ABSOLUTE HEALTHCARE SWAN HOUSE LTD,23/10/2023,"3,980.00",6554-Professional Services-Priv Contractor & Other Agencies,THIRD PARTY PAYMENTS,PRIVATE CONTRACTOR,REVENUE
Walsall Council,http://opendatacommunities.org/id/metropolitan-district-council/walsall ,WC155-301,31.10.2023,ADULT SOCIAL CARE,ABSOLUTE HEALTHCARE SWAN HOUSE LTD,23/10/2023,"1,571.43",6554-Professional Services-Priv Contractor & Other Agencies,THIRD PARTY PAYMENTS,PRIVATE CONTRACTOR,REVENUE
Walsall Council,http://opendatacommunities.org/id/metropolitan-district-council/walsall ,WC155-302,31.10.2023,ADULT SOCIAL CARE,ABSOLUTE HEALTHCARE SWAN HOUSE LTD,23/10/2023,"1,100.00",6554-Professional Services-Priv Contractor & Other Agencies,THIRD PARTY PAYMENTS,PRIVATE CONTRACTOR,REVENUE
Walsall Council,http://opendatacommunities.org/id/metropolitan-district-council/walsall ,WC155-303,31.10.2023,ADULT SOCIAL CARE,ABSOLUTE HEALTHCARE SWAN HOUSE LTD,23/10/2023,"9,835.72",6541-Residential EMI,THIRD PARTY PAYMENTS,PRIVATE CONTRACTOR,REVENUE
Walsall Council,http://opendatacommunities.org/id/metropolitan-district-council/walsall ,WC155-304,31.10.2023,CHILDRENS,ABU BAKR NURSERY,16/10/2023,"11,571.00",1184-Other-Grants to Other Orgs,SUPPLIES & SERVICES,GRANTS (EXP) & SUBSCRIPTIONS,REVENUE
Walsall Council,http://opendatacommunities.org/id/metropolitan-district-council/walsall ,WC155-305,31.10.2023,CHILDRENS,ABU BAKR NURSERY,16/10/2023,"9,841.50",1184-Other-Grants to Other Orgs,SUPPLIES & SERVICES,GRANTS (EXP) & SUBSCRIPTIONS,REVENUE
Walsall Council,http://opendatacommunities.org/id/metropolitan-district-council/walsall ,WC155-306,31.10.2023,CHILDRENS,ACADEMY 21 LTD,26/10/2023,"1,098.00",1217-Professional Fees & Services,SUPPLIES & SERVICES,SERVICES,REVENUE
Walsall Council,http://opendatacommunities.org/id/metropolitan-district-council/walsall ,WC155-307,31.10.2023,CHILDRENS,ACADEMY 21 LTD,17/10/2023,"1,368.00",1217-Professional Fees & Services,SUPPLIES & SERVICES,SERVICES,REVENUE
Walsall Council,http://opendatacommunities.org/id/metropolitan-district-council/walsall ,WC155-308,31.10.2023,CHILDRENS,ACCALIA CARE SERVICES LTD,03/10/2023,"21,564.29",6223-External Residential Care-Oth Agency Provision,THIRD PARTY PAYMENTS,PRIVATE CONTRACTOR,REVENUE
Walsall Council,http://opendatacommunities.org/id/metropolitan-district-council/walsall ,WC155-309,31.10.2023,CHILDRENS,ACCALIA CARE SERVICES LTD,30/10/2023,"8,784.29",6223-External Residential Care-Oth Agency Provision,THIRD PARTY PAYMENTS,PRIVATE CONTRACTOR,REVENUE
Walsall Council,http://opendatacommunities.org/id/metropolitan-district-council/walsall ,WC155-310,31.10.2023,CHILDRENS,ACCEPTING BEHAVIOUR LTD,09/10/2023,975.00,1220-Professional Fees & Services,SUPPLIES & SERVICES,SERVICES,REVENUE
Walsall Council,http://opendatacommunities.org/id/metropolitan-district-council/walsall ,WC155-311,31.10.2023,ADULT SOCIAL CARE,ACCESS UK LTD ,05/10/2023,"18,315.00",6551-Professional Fees & Services,SUPPLIES & SERVICES,SERVICES,REVENUE
Walsall Council,http://opendatacommunities.org/id/metropolitan-district-council/walsall ,WC155-312,31.10.2023,ADULT SOCIAL CARE,ACCORD HOUSING ASSOCIATION LIMITED - HOBS MEADOW,23/10/2023,"4,776.84",6541-Residential,THIRD PARTY PAYMENTS,PRIVATE CONTRACTOR,REVENUE
Walsall Council,http://opendatacommunities.org/id/metropolitan-district-council/walsall ,WC155-313,31.10.2023,ADULT SOCIAL CARE,ACCORD HOUSING ASSOCIATION LIMITED - HOBS MEADOW,23/10/2023,"4,776.84",6541-Residential,THIRD PARTY PAYMENTS,PRIVATE CONTRACTOR,REVENUE
Walsall Council,http://opendatacommunities.org/id/metropolitan-district-council/walsall ,WC155-314,31.10.2023,ADULT SOCIAL CARE,ACCORD HOUSING ASSOCIATION LIMITED - HOBS MEADOW,23/10/2023,"4,776.84",6541-Residential,THIRD PARTY PAYMENTS,PRIVATE CONTRACTOR,REVENUE
Walsall Council,http://opendatacommunities.org/id/metropolitan-district-council/walsall ,WC155-315,31.10.2023,ADULT SOCIAL CARE,ACCORD HOUSING ASSOCIATION LIMITED - HOBS MEADOW,23/10/2023,"4,776.84",6541-Residential,THIRD PARTY PAYMENTS,PRIVATE CONTRACTOR,REVENUE
Walsall Council,http://opendatacommunities.org/id/metropolitan-district-council/walsall ,WC155-316,31.10.2023,CHILDRENS,ACE CARS & MINIBUSES LTD,09/10/2023,"1,605.00",6241-Hire of Vehicle with Driver,TRANSPORT,DIRECT TRANSPORT COSTS,REVENUE
Walsall Council,http://opendatacommunities.org/id/metropolitan-district-council/walsall ,WC155-317,31.10.2023,CHILDRENS,ACE CARS & MINIBUSES LTD,09/10/2023,"1,605.00",6241-Hire of Vehicle with Driver,TRANSPORT,DIRECT TRANSPORT COSTS,REVENUE
Walsall Council,http://opendatacommunities.org/id/metropolitan-district-council/walsall ,WC155-318,31.10.2023,CHILDRENS,ACE CARS & MINIBUSES LTD,09/10/2023,"1,605.00",6241-Hire of Vehicle with Driver,TRANSPORT,DIRECT TRANSPORT COSTS,REVENUE
Walsall Council,http://opendatacommunities.org/id/metropolitan-district-council/walsall ,WC155-319,31.10.2023,CHILDRENS,ACE CARS & MINIBUSES LTD,09/10/2023,"1,605.00",6241-Hire of Vehicle with Driver,TRANSPORT,DIRECT TRANSPORT COSTS,REVENUE
Walsall Council,http://opendatacommunities.org/id/metropolitan-district-council/walsall ,WC155-320,31.10.2023,CHILDRENS,ACE CARS & MINIBUSES LTD,09/10/2023,"1,770.00",6241-Hire of Vehicle with Driver,TRANSPORT,DIRECT TRANSPORT COSTS,REVENUE
Walsall Council,http://opendatacommunities.org/id/metropolitan-district-council/walsall ,WC155-321,31.10.2023,CHILDRENS,ACE CARS & MINIBUSES LTD,09/10/2023,"2,377.50",6241-Hire of Vehicle with Driver,TRANSPORT,DIRECT TRANSPORT COSTS,REVENUE
Walsall Council,http://opendatacommunities.org/id/metropolitan-district-council/walsall ,WC155-322,31.10.2023,CHILDRENS,ACE CARS & MINIBUSES LTD,09/10/2023,"2,542.50",6241-Hire of Vehicle with Driver,TRANSPORT,DIRECT TRANSPORT COSTS,REVENUE
Walsall Council,http://opendatacommunities.org/id/metropolitan-district-council/walsall ,WC155-323,31.10.2023,CHILDRENS,ACE CARS & MINIBUSES LTD,09/10/2023,"1,673.00",6241-Hire of Vehicle with Driver,TRANSPORT,DIRECT TRANSPORT COSTS,REVENUE
Walsall Council,http://opendatacommunities.org/id/metropolitan-district-council/walsall ,WC155-324,31.10.2023,CHILDRENS,ACE CARS & MINIBUSES LTD,09/10/2023,"1,840.30",6241-Hire of Vehicle with Driver,TRANSPORT,DIRECT TRANSPORT COSTS,REVENUE
Walsall Council,http://opendatacommunities.org/id/metropolitan-district-council/walsall ,WC155-325,31.10.2023,CHILDRENS,ACE CARS & MINIBUSES LTD,09/10/2023,"1,769.30",6241-Hire of Vehicle with Driver,TRANSPORT,DIRECT TRANSPORT COSTS,REVENUE
Walsall Council,http://opendatacommunities.org/id/metropolitan-district-council/walsall ,WC155-326,31.10.2023,CHILDRENS,ACE CARS & MINIBUSES LTD,09/10/2023,"1,769.30",6241-Hire of Vehicle with Driver,TRANSPORT,DIRECT TRANSPORT COSTS,REVENUE
Walsall Council,http://opendatacommunities.org/id/metropolitan-district-council/walsall ,WC155-327,31.10.2023,CHILDRENS,ACE CARS & MINIBUSES LTD,09/10/2023,"1,605.00",6241-Hire of Vehicle with Driver,TRANSPORT,DIRECT TRANSPORT COSTS,REVENUE
Walsall Council,http://opendatacommunities.org/id/metropolitan-district-council/walsall ,WC155-328,31.10.2023,CHILDRENS,ACE CARS & MINIBUSES LTD,09/10/2023,"1,605.00",6241-Hire of Vehicle with Driver,TRANSPORT,DIRECT TRANSPORT COSTS,REVENUE
Walsall Council,http://opendatacommunities.org/id/metropolitan-district-council/walsall ,WC155-329,31.10.2023,CHILDRENS,ACE CARS & MINIBUSES LTD,09/10/2023,"1,770.00",6241-Hire of Vehicle with Driver,TRANSPORT,DIRECT TRANSPORT COSTS,REVENUE
Walsall Council,http://opendatacommunities.org/id/metropolitan-district-council/walsall ,WC155-330,31.10.2023,CHILDRENS,ACE CARS & MINIBUSES LTD,09/10/2023,"2,375.66",6241-Hire of Vehicle with Driver,TRANSPORT,DIRECT TRANSPORT COSTS,REVENUE
Walsall Council,http://opendatacommunities.org/id/metropolitan-district-council/walsall ,WC155-331,31.10.2023,CHILDRENS,ACE CARS & MINIBUSES LTD,09/10/2023,"1,770.00",6241-Hire of Vehicle with Driver,TRANSPORT,DIRECT TRANSPORT COSTS,REVENUE
Walsall Council,http://opendatacommunities.org/id/metropolitan-district-council/walsall ,WC155-332,31.10.2023,CHILDRENS,ACE CARS & MINIBUSES LTD,09/10/2023,"2,017.80",6241-Hire of Vehicle with Driver,TRANSPORT,DIRECT TRANSPORT COSTS,REVENUE
Walsall Council,http://opendatacommunities.org/id/metropolitan-district-council/walsall ,WC155-333,31.10.2023,CHILDRENS,ACE CARS & MINIBUSES LTD,09/10/2023,"1,876.20",6241-Hire of Vehicle with Driver,TRANSPORT,DIRECT TRANSPORT COSTS,REVENUE
Walsall Council,http://opendatacommunities.org/id/metropolitan-district-council/walsall ,WC155-334,31.10.2023,CHILDRENS,ACE CARS & MINIBUSES LTD,09/10/2023,"1,368.00",6241-Hire of Vehicle with Driver,TRANSPORT,DIRECT TRANSPORT COSTS,REVENUE
Walsall Council,http://opendatacommunities.org/id/metropolitan-district-council/walsall ,WC155-335,31.10.2023,CHILDRENS,ACE CARS & MINIBUSES LTD,09/10/2023,"1,770.00",6241-Hire of Vehicle with Driver,TRANSPORT,DIRECT TRANSPORT COSTS,REVENUE
Walsall Council,http://opendatacommunities.org/id/metropolitan-district-council/walsall ,WC155-336,31.10.2023,CHILDRENS,ACE CARS & MINIBUSES LTD,09/10/2023,"2,459.47",6241-Hire of Vehicle with Driver,TRANSPORT,DIRECT TRANSPORT COSTS,REVENUE
Walsall Council,http://opendatacommunities.org/id/metropolitan-district-council/walsall ,WC155-337,31.10.2023,CHILDRENS,ACE CARS & MINIBUSES LTD,09/10/2023,"1,769.30",6241-Hire of Vehicle with Driver,TRANSPORT,DIRECT TRANSPORT COSTS,REVENUE
Walsall Council,http://opendatacommunities.org/id/metropolitan-district-council/walsall ,WC155-338,31.10.2023,CHILDRENS,ACE CARS & MINIBUSES LTD,09/10/2023,"1,999.27",6241-Hire of Vehicle with Driver,TRANSPORT,DIRECT TRANSPORT COSTS,REVENUE
Walsall Council,http://opendatacommunities.org/id/metropolitan-district-council/walsall ,WC155-339,31.10.2023,CHILDRENS,ACE CARS & MINIBUSES LTD,09/10/2023,"2,336.40",6241-Hire of Vehicle with Driver,TRANSPORT,DIRECT TRANSPORT COSTS,REVENUE
Walsall Council,http://opendatacommunities.org/id/metropolitan-district-council/walsall ,WC155-340,31.10.2023,CHILDRENS,ACE CARS & MINIBUSES LTD,09/10/2023,"1,596.00",6241-Hire of Vehicle with Driver,TRANSPORT,DIRECT TRANSPORT COSTS,REVENUE
Walsall Council,http://opendatacommunities.org/id/metropolitan-district-council/walsall ,WC155-341,31.10.2023,CHILDRENS,ACE CARS & MINIBUSES LTD,09/10/2023,"1,596.00",6241-Hire of Vehicle with Driver,TRANSPORT,DIRECT TRANSPORT COSTS,REVENUE
Walsall Council,http://opendatacommunities.org/id/metropolitan-district-council/walsall ,WC155-342,31.10.2023,CHILDRENS,ACE CARS & MINIBUSES LTD,09/10/2023,"1,673.00",6241-Hire of Vehicle with Driver,TRANSPORT,DIRECT TRANSPORT COSTS,REVENUE
Walsall Council,http://opendatacommunities.org/id/metropolitan-district-council/walsall ,WC155-343,31.10.2023,CHILDRENS,ACE CARS & MINIBUSES LTD,09/10/2023,"1,673.00",6241-Hire of Vehicle with Driver,TRANSPORT,DIRECT TRANSPORT COSTS,REVENUE
Walsall Council,http://opendatacommunities.org/id/metropolitan-district-council/walsall ,WC155-344,31.10.2023,CHILDRENS,ACE CARS & MINIBUSES LTD,09/10/2023,"1,596.00",6241-Hire of Vehicle with Driver,TRANSPORT,DIRECT TRANSPORT COSTS,REVENUE
Walsall Council,http://opendatacommunities.org/id/metropolitan-district-council/walsall ,WC155-345,31.10.2023,CHILDRENS,ACE CARS & MINIBUSES LTD,09/10/2023,"1,284.00",6241-Hire of Vehicle with Driver,TRANSPORT,DIRECT TRANSPORT COSTS,REVENUE
Walsall Council,http://opendatacommunities.org/id/metropolitan-district-council/walsall ,WC155-346,31.10.2023,CHILDRENS,ACE CARS & MINIBUSES LTD,09/10/2023,"1,605.00",6241-Hire of Vehicle with Driver,TRANSPORT,DIRECT TRANSPORT COSTS,REVENUE
Walsall Council,http://opendatacommunities.org/id/metropolitan-district-council/walsall ,WC155-347,31.10.2023,CHILDRENS,ACE CARS & MINIBUSES LTD,09/10/2023,"3,186.00",6241-Hire of Vehicle with Driver,TRANSPORT,DIRECT TRANSPORT COSTS,REVENUE
Walsall Council,http://opendatacommunities.org/id/metropolitan-district-council/walsall ,WC155-348,31.10.2023,CHILDRENS,ACE CARS & MINIBUSES LTD,09/10/2023,"1,605.00",6241-Hire of Vehicle with Driver,TRANSPORT,DIRECT TRANSPORT COSTS,REVENUE
Walsall Council,http://opendatacommunities.org/id/metropolitan-district-council/walsall ,WC155-349,31.10.2023,CHILDRENS,ACE CARS & MINIBUSES LTD,09/10/2023,"1,605.00",6241-Hire of Vehicle with Driver,TRANSPORT,DIRECT TRANSPORT COSTS,REVENUE
Walsall Council,http://opendatacommunities.org/id/metropolitan-district-council/walsall ,WC155-350,31.10.2023,CHILDRENS,ACE CARS & MINIBUSES LTD,09/10/2023,"1,605.00",6241-Hire of Vehicle with Driver,TRANSPORT,DIRECT TRANSPORT COSTS,REVENUE
Walsall Council,http://opendatacommunities.org/id/metropolitan-district-council/walsall ,WC155-351,31.10.2023,CHILDRENS,ACE CARS & MINIBUSES LTD,09/10/2023,"1,770.00",6241-Hire of Vehicle with Driver,TRANSPORT,DIRECT TRANSPORT COSTS,REVENUE
Walsall Council,http://opendatacommunities.org/id/metropolitan-district-council/walsall ,WC155-352,31.10.2023,CHILDRENS,ACE CARS & MINIBUSES LTD,09/10/2023,"1,769.30",6241-Hire of Vehicle with Driver,TRANSPORT,DIRECT TRANSPORT COSTS,REVENUE
Walsall Council,http://opendatacommunities.org/id/metropolitan-district-council/walsall ,WC155-353,31.10.2023,CHILDRENS,ACE CARS & MINIBUSES LTD,09/10/2023,"1,769.30",6241-Hire of Vehicle with Driver,TRANSPORT,DIRECT TRANSPORT COSTS,REVENUE
Walsall Council,http://opendatacommunities.org/id/metropolitan-district-council/walsall ,WC155-354,31.10.2023,CHILDRENS,ACE CARS & MINIBUSES LTD,09/10/2023,"1,769.30",6241-Hire of Vehicle with Driver,TRANSPORT,DIRECT TRANSPORT COSTS,REVENUE
Walsall Council,http://opendatacommunities.org/id/metropolitan-district-council/walsall ,WC155-355,31.10.2023,CHILDRENS,ACE CARS & MINIBUSES LTD,09/10/2023,"2,693.60",6241-Hire of Vehicle with Driver,TRANSPORT,DIRECT TRANSPORT COSTS,REVENUE
Walsall Council,http://opendatacommunities.org/id/metropolitan-district-council/walsall ,WC155-356,31.10.2023,RESOURCES AND TRANSFORMATION,ACE PA HIRE,31/10/2023,670.00,6625-Civic Events,SUPPLIES & SERVICES,EXPENSES,REVENUE
Walsall Council,http://opendatacommunities.org/id/metropolitan-district-council/walsall ,WC155-357,31.10.2023,RESOURCES AND TRANSFORMATION,ACE PA HIRE,31/10/2023,"1,280.00",6625-Civic Events,SUPPLIES & SERVICES,EXPENSES,REVENUE
Walsall Council,http://opendatacommunities.org/id/metropolitan-district-council/walsall ,WC155-358,31.10.2023,CHILDRENS,ACE REMOVALS,27/10/2023,350.00,6223-Professional Fees & Services,SUPPLIES & SERVICES,SERVICES,REVENUE
Walsall Council,http://opendatacommunities.org/id/metropolitan-district-council/walsall ,WC155-359,31.10.2023,ADULT SOCIAL CARE,ACEPAY LTD (COTTAGE NUR HOME),23/10/2023,"2,505.36",6541-Nursing,THIRD PARTY PAYMENTS,PRIVATE CONTRACTOR,REVENUE
Walsall Council,http://opendatacommunities.org/id/metropolitan-district-council/walsall ,WC155-360,31.10.2023,ADULT SOCIAL CARE,ACEPAY LTD (COTTAGE NUR HOME),23/10/2023,"2,505.36",6541-Nursing,THIRD PARTY PAYMENTS,PRIVATE CONTRACTOR,REVENUE
Walsall Council,http://opendatacommunities.org/id/metropolitan-district-council/walsall ,WC155-361,31.10.2023,ADULT SOCIAL CARE,ACEPAY LTD (COTTAGE NUR HOME),23/10/2023,"2,819.08",6541-Nursing EMI,THIRD PARTY PAYMENTS,PRIVATE CONTRACTOR,REVENUE
Walsall Council,http://opendatacommunities.org/id/metropolitan-district-council/walsall ,WC155-362,31.10.2023,ADULT SOCIAL CARE,ACEPAY LTD (COTTAGE NUR HOME),23/10/2023,"2,413.36",6541-Residential EMI,THIRD PARTY PAYMENTS,PRIVATE CONTRACTOR,REVENUE
Walsall Council,http://opendatacommunities.org/id/metropolitan-district-council/walsall ,WC155-363,31.10.2023,ADULT SOCIAL CARE,ACEPAY LTD (COTTAGE NUR HOME),23/10/2023,"2,505.36",6541-Nursing,THIRD PARTY PAYMENTS,PRIVATE CONTRACTOR,REVENUE
Walsall Council,http://opendatacommunities.org/id/metropolitan-district-council/walsall ,WC155-364,31.10.2023,ADULT SOCIAL CARE,ACEPAY LTD (COTTAGE NUR HOME),23/10/2023,"2,505.36",6541-Nursing,THIRD PARTY PAYMENTS,PRIVATE CONTRACTOR,REVENUE
Walsall Council,http://opendatacommunities.org/id/metropolitan-district-council/walsall ,WC155-365,31.10.2023,ADULT SOCIAL CARE,ACEPAY LTD (COTTAGE NUR HOME),23/10/2023,"2,505.36",6541-Nursing,THIRD PARTY PAYMENTS,PRIVATE CONTRACTOR,REVENUE
Walsall Council,http://opendatacommunities.org/id/metropolitan-district-council/walsall ,WC155-366,31.10.2023,ADULT SOCIAL CARE,ACEPAY LTD (COTTAGE NUR HOME),23/10/2023,"2,505.36",6541-Nursing,THIRD PARTY PAYMENTS,PRIVATE CONTRACTOR,REVENUE
Walsall Council,http://opendatacommunities.org/id/metropolitan-district-council/walsall ,WC155-367,31.10.2023,ADULT SOCIAL CARE,ACEPAY LTD (COTTAGE NUR HOME),23/10/2023,"2,505.36",6541-Nursing,THIRD PARTY PAYMENTS,PRIVATE CONTRACTOR,REVENUE
Walsall Council,http://opendatacommunities.org/id/metropolitan-district-council/walsall ,WC155-368,31.10.2023,ADULT SOCIAL CARE,ACEPAY LTD (COTTAGE NUR HOME),23/10/2023,"2,505.36",6541-Nursing,THIRD PARTY PAYMENTS,PRIVATE CONTRACTOR,REVENUE
Walsall Council,http://opendatacommunities.org/id/metropolitan-district-council/walsall ,WC155-369,31.10.2023,ADULT SOCIAL CARE,ACEPAY LTD (COTTAGE NUR HOME),23/10/2023,"2,505.36",6541-Nursing,THIRD PARTY PAYMENTS,PRIVATE CONTRACTOR,REVENUE
Walsall Council,http://opendatacommunities.org/id/metropolitan-district-council/walsall ,WC155-370,31.10.2023,ADULT SOCIAL CARE,ACEPAY LTD (COTTAGE NUR HOME),23/10/2023,"2,819.08",6541-Nursing EMI,THIRD PARTY PAYMENTS,PRIVATE CONTRACTOR,REVENUE
Walsall Council,http://opendatacommunities.org/id/metropolitan-district-council/walsall ,WC155-371,31.10.2023,ADULT SOCIAL CARE,ACEPAY LTD (COTTAGE NUR HOME),23/10/2023,"3,059.08",6541-Nursing EMI,THIRD PARTY PAYMENTS,PRIVATE CONTRACTOR,REVENUE
Walsall Council,http://opendatacommunities.org/id/metropolitan-district-council/walsall ,WC155-372,31.10.2023,ADULT SOCIAL CARE,ACEPAY LTD (COTTAGE NUR HOME),23/10/2023,"2,505.36",6541-Nursing,THIRD PARTY PAYMENTS,PRIVATE CONTRACTOR,REVENUE
Walsall Council,http://opendatacommunities.org/id/metropolitan-district-council/walsall ,WC155-373,31.10.2023,ADULT SOCIAL CARE,ACEPAY LTD (COTTAGE NUR HOME),23/10/2023,"2,819.08",6541-Nursing EMI,THIRD PARTY PAYMENTS,PRIVATE CONTRACTOR,REVENUE
Walsall Council,http://opendatacommunities.org/id/metropolitan-district-council/walsall ,WC155-374,31.10.2023,ADULT SOCIAL CARE,ACEPAY LTD (COTTAGE NUR HOME),23/10/2023,"2,413.36",6541-Residential EMI,THIRD PARTY PAYMENTS,PRIVATE CONTRACTOR,REVENUE
Walsall Council,http://opendatacommunities.org/id/metropolitan-district-council/walsall ,WC155-375,31.10.2023,ADULT SOCIAL CARE,ACEPAY LTD (COTTAGE NUR HOME),23/10/2023,"2,413.36",6541-Residential EMI,THIRD PARTY PAYMENTS,PRIVATE CONTRACTOR,REVENUE
Walsall Council,http://opendatacommunities.org/id/metropolitan-district-council/walsall ,WC155-376,31.10.2023,ADULT SOCIAL CARE,ACEPAY LTD (COTTAGE NUR HOME),23/10/2023,"2,413.36",6541-Residential EMI,THIRD PARTY PAYMENTS,PRIVATE CONTRACTOR,REVENUE
Walsall Council,http://opendatacommunities.org/id/metropolitan-district-council/walsall ,WC155-377,31.10.2023,ADULT SOCIAL CARE,ACEPAY LTD (COTTAGE NUR HOME),23/10/2023,"2,819.08",6541-Nursing EMI,THIRD PARTY PAYMENTS,PRIVATE CONTRACTOR,REVENUE
Walsall Council,http://opendatacommunities.org/id/metropolitan-district-council/walsall ,WC155-378,31.10.2023,ADULT SOCIAL CARE,ACEPAY LTD (COTTAGE NUR HOME),23/10/2023,"2,505.36",6541-Nursing,THIRD PARTY PAYMENTS,PRIVATE CONTRACTOR,REVENUE
Walsall Council,http://opendatacommunities.org/id/metropolitan-district-council/walsall ,WC155-379,31.10.2023,ADULT SOCIAL CARE,ACEPAY LTD (COTTAGE NUR HOME),23/10/2023,"2,819.08",6541-Nursing EMI,THIRD PARTY PAYMENTS,PRIVATE CONTRACTOR,REVENUE
Walsall Council,http://opendatacommunities.org/id/metropolitan-district-council/walsall ,WC155-380,31.10.2023,ADULT SOCIAL CARE,ACHIEVE TOGETHER LIMITED,23/10/2023,"5,506.08",6541-Residential,THIRD PARTY PAYMENTS,PRIVATE CONTRACTOR,REVENUE
Walsall Council,http://opendatacommunities.org/id/metropolitan-district-council/walsall ,WC155-381,31.10.2023,ADULT SOCIAL CARE,ACHIEVE TOGETHER LIMITED,23/10/2023,"9,178.80",6541-Residential,THIRD PARTY PAYMENTS,PRIVATE CONTRACTOR,REVENUE
Walsall Council,http://opendatacommunities.org/id/metropolitan-district-council/walsall ,WC155-382,31.10.2023,ADULT SOCIAL CARE,ACHIEVE TOGETHER LIMITED,23/10/2023,"3,852.80",6541-Residential,THIRD PARTY PAYMENTS,PRIVATE CONTRACTOR,REVENUE
Walsall Council,http://opendatacommunities.org/id/metropolitan-district-council/walsall ,WC155-383,31.10.2023,ADULT SOCIAL CARE,ACHIEVE TOGETHER LIMITED,23/10/2023,"4,920.72",6541-Residential,THIRD PARTY PAYMENTS,PRIVATE CONTRACTOR,REVENUE
Walsall Council,http://opendatacommunities.org/id/metropolitan-district-council/walsall ,WC155-384,31.10.2023,ADULT SOCIAL CARE,ACHIEVE TOGETHER LIMITED,23/10/2023,"6,572.72",6541-Residential,THIRD PARTY PAYMENTS,PRIVATE CONTRACTOR,REVENUE
Walsall Council,http://opendatacommunities.org/id/metropolitan-district-council/walsall ,WC155-385,31.10.2023,CHILDRENS,ACORN CARE & EDUCATION LTD (SALES),17/10/2023,"24,705.00",1220-Top Up Funding -Grants to Schools,SUPPLIES & SERVICES,GRANTS (EXP) & SUBSCRIPTIONS,REVENUE
Walsall Council,http://opendatacommunities.org/id/metropolitan-district-council/walsall ,WC155-386,31.10.2023,CHILDRENS,ACORN CARE & EDUCATION LTD (SALES),17/10/2023,"29,651.67",1220-Top Up Funding -Grants to Schools,SUPPLIES & SERVICES,GRANTS (EXP) & SUBSCRIPTIONS,REVENUE
Walsall Council,http://opendatacommunities.org/id/metropolitan-district-council/walsall ,WC155-387,31.10.2023,CHILDRENS,ACORN CARE & EDUCATION LTD (SALES),09/10/2023,"29,651.66",1220-Professional Fees & Services,SUPPLIES & SERVICES,SERVICES,REVENUE
Walsall Council,http://opendatacommunities.org/id/metropolitan-district-council/walsall ,WC155-388,31.10.2023,CHILDRENS,ACORN CARE & EDUCATION LTD (SALES),17/10/2023,"6,389.13",1220-Professional Fees & Services,SUPPLIES & SERVICES,SERVICES,REVENUE
Walsall Council,http://opendatacommunities.org/id/metropolitan-district-council/walsall ,WC155-389,31.10.2023,CHILDRENS,ACORN CARE & EDUCATION LTD (SALES),25/10/2023,"20,537.16",1220-Professional Fees & Services,SUPPLIES & SERVICES,SERVICES,REVENUE
Walsall Council,http://opendatacommunities.org/id/metropolitan-district-council/walsall ,WC155-390,31.10.2023,CHILDRENS,ACORN CARE & EDUCATION LTD (SALES),18/10/2023,"6,389.17",1220-Professional Fees & Services,SUPPLIES & SERVICES,SERVICES,REVENUE
Walsall Council,http://opendatacommunities.org/id/metropolitan-district-council/walsall ,WC155-391,31.10.2023,CHILDRENS,ACORN CARE & EDUCATION LTD (SALES),25/10/2023,"19,226.66",1220-Top Up Funding -Grants to Schools,SUPPLIES & SERVICES,GRANTS (EXP) & SUBSCRIPTIONS,REVENUE
Walsall Council,http://opendatacommunities.org/id/metropolitan-district-council/walsall ,WC155-392,31.10.2023,CHILDRENS,ACORN CARE & EDUCATION LTD (SALES),09/10/2023,"-26,005.96",1220-Professional Fees & Services,SUPPLIES & SERVICES,SERVICES,REVENUE
Walsall Council,http://opendatacommunities.org/id/metropolitan-district-council/walsall ,WC155-393,31.10.2023,CHILDRENS,ACORN CARE & EDUCATION LTD (SALES),03/10/2023,"21,011.60",6223-External Residential Care-Oth Agency Provision,THIRD PARTY PAYMENTS,PRIVATE CONTRACTOR,REVENUE
Walsall Council,http://opendatacommunities.org/id/metropolitan-district-council/walsall ,WC155-394,31.10.2023,CHILDRENS,ACORN CARE & EDUCATION LTD (SALES),30/10/2023,"21,011.60",6223-External Residential Care-Oth Agency Provision,THIRD PARTY PAYMENTS,PRIVATE CONTRACTOR,REVENUE
Walsall Council,http://opendatacommunities.org/id/metropolitan-district-council/walsall ,WC155-395,31.10.2023,CHILDRENS,ACORN FOSTERING SERVICES LTD,03/10/2023,"3,340.00",6223-Independent Foster Care-Oth Agency Provision,THIRD PARTY PAYMENTS,PRIVATE CONTRACTOR,REVENUE
Walsall Council,http://opendatacommunities.org/id/metropolitan-district-council/walsall ,WC155-396,31.10.2023,CHILDRENS,ACORN FOSTERING SERVICES LTD,30/10/2023,"3,340.00",6223-Independent Foster Care-Oth Agency Provision,THIRD PARTY PAYMENTS,PRIVATE CONTRACTOR,REVENUE
Walsall Council,http://opendatacommunities.org/id/metropolitan-district-council/walsall ,WC155-397,31.10.2023,CHILDRENS CAPITAL,ACORN MOBILITY SERVICES LTD/ACORN STAIRLIFTS,23/10/2023,"1,595.00",7100-Private Grants,CAPITAL,CAPITAL GRANTS,CAPITAL GRANTS
Walsall Council,http://opendatacommunities.org/id/metropolitan-district-council/walsall ,WC155-398,31.10.2023,CHILDRENS CAPITAL,ACORN MOBILITY SERVICES LTD/ACORN STAIRLIFTS,03/10/2023,"7,485.00",7100-Private Grants,CAPITAL,CAPITAL GRANTS,CAPITAL GRANTS
Walsall Council,http://opendatacommunities.org/id/metropolitan-district-council/walsall ,WC155-399,31.10.2023,CHILDRENS,ACPAS LIMITED,03/10/2023,269.10,6220-School Only Payments - Catering,THIRD PARTY PAYMENTS,INDEPENDENT UNIT WITHIN COUNCIL,REVENUE
Walsall Council,http://opendatacommunities.org/id/metropolitan-district-council/walsall ,WC155-400,31.10.2023,CHILDRENS,ACPAS LIMITED,11/10/2023,"1,076.40",6222-Consultant Fees,SUPPLIES & SERVICES,SERVICES,REVENUE
Walsall Council,http://opendatacommunities.org/id/metropolitan-district-council/walsall ,WC155-401,31.10.2023,CHILDRENS,ACPAS LIMITED,11/10/2023,"1,076.40",6222-Consultant Fees,SUPPLIES & SERVICES,SERVICES,REVENUE
Walsall Council,http://opendatacommunities.org/id/metropolitan-district-council/walsall ,WC155-402,31.10.2023,CHILDRENS,ACPAS LIMITED,17/10/2023,368.09,6220-School Only Payments - Catering,THIRD PARTY PAYMENTS,INDEPENDENT UNIT WITHIN COUNCIL,REVENUE
Walsall Council,http://opendatacommunities.org/id/metropolitan-district-council/walsall ,WC155-403,31.10.2023,CHILDRENS,ACPAS LIMITED,27/10/2023,889.20,6222-Professional Fees & Services,SUPPLIES & SERVICES,SERVICES,REVENUE
Walsall Council,http://opendatacommunities.org/id/metropolitan-district-council/walsall ,WC155-404,31.10.2023,CHILDRENS,ACTIVE CARE SOLUTIONS LTD,03/10/2023,"3,514.60",6223-Independent Foster Care-Oth Agency Provision,THIRD PARTY PAYMENTS,PRIVATE CONTRACTOR,REVENUE
Walsall Council,http://opendatacommunities.org/id/metropolitan-district-council/walsall ,WC155-405,31.10.2023,CHILDRENS,ACTIVE CARE SOLUTIONS LTD,03/10/2023,"3,514.80",6223-Independent Foster Care-Oth Agency Provision,THIRD PARTY PAYMENTS,PRIVATE CONTRACTOR,REVENUE
Walsall Council,http://opendatacommunities.org/id/metropolitan-district-council/walsall ,WC155-406,31.10.2023,CHILDRENS,ACTIVE CARE SOLUTIONS LTD,03/10/2023,"3,706.67",6223-Independent Foster Care-Oth Agency Provision,THIRD PARTY PAYMENTS,PRIVATE CONTRACTOR,REVENUE
Walsall Council,http://opendatacommunities.org/id/metropolitan-district-council/walsall ,WC155-407,31.10.2023,CHILDRENS,ACTIVE CARE SOLUTIONS LTD,30/10/2023,"3,514.80",6223-Independent Foster Care-Oth Agency Provision,THIRD PARTY PAYMENTS,PRIVATE CONTRACTOR,REVENUE
Walsall Council,http://opendatacommunities.org/id/metropolitan-district-council/walsall ,WC155-408,31.10.2023,CHILDRENS,ACTIVE CARE SOLUTIONS LTD,30/10/2023,"3,510.03",6223-Independent Foster Care-Oth Agency Provision,THIRD PARTY PAYMENTS,PRIVATE CONTRACTOR,REVENUE
Walsall Council,http://opendatacommunities.org/id/metropolitan-district-council/walsall ,WC155-409,31.10.2023,CHILDRENS,ACTIVE CARE SOLUTIONS LTD,30/10/2023,"3,384.40",6223-Independent Foster Care-Oth Agency Provision,THIRD PARTY PAYMENTS,PRIVATE CONTRACTOR,REVENUE
Walsall Council,http://opendatacommunities.org/id/metropolitan-district-council/walsall ,WC155-410,31.10.2023,CHILDRENS,ACTIVE YOUNG PEOPLE LTD/IVETSEY BANK HOSPITAL - FORMERLY HUNTERCOMBE YOUNG PEOPLE LTD,18/10/2023,"1,050.00",1220-Top Up Funding -Grants to Schools,SUPPLIES & SERVICES,GRANTS (EXP) & SUBSCRIPTIONS,REVENUE
Walsall Council,http://opendatacommunities.org/id/metropolitan-district-council/walsall ,WC155-411,31.10.2023,ADULT SOCIAL CARE,REDACTED,05/10/2023,747.92,6541-Direct Payment,THIRD PARTY PAYMENTS,PRIVATE CONTRACTOR,REVENUE
Walsall Council,http://opendatacommunities.org/id/metropolitan-district-council/walsall ,WC155-412,31.10.2023,CHILDRENS,REDACTED,19/10/2023,350.96,6223-Residents Orders,TRANSFER PAYMENTS,CHILDREN SOCIAL SERVICES CLIENT,REVENUE
Walsall Council,http://opendatacommunities.org/id/metropolitan-district-council/walsall ,WC155-413,31.10.2023,ADULT SOCIAL CARE,REDACTED,05/10/2023,"2,177.80",6541-Direct Payment,THIRD PARTY PAYMENTS,PRIVATE CONTRACTOR,REVENUE
Walsall Council,http://opendatacommunities.org/id/metropolitan-district-council/walsall ,WC155-414,31.10.2023,ADULT SOCIAL CARE,ADVANCE HEALTH CARE (UK) LTD,19/10/2023,822.00,6541-Domiciliary Care,THIRD PARTY PAYMENTS,PRIVATE CONTRACTOR,REVENUE
Walsall Council,http://opendatacommunities.org/id/metropolitan-district-council/walsall ,WC155-415,31.10.2023,ADULT SOCIAL CARE,ADVANCE HEALTH CARE (UK) LTD,19/10/2023,409.50,6541-Domiciliary Care,THIRD PARTY PAYMENTS,PRIVATE CONTRACTOR,REVENUE
Walsall Council,http://opendatacommunities.org/id/metropolitan-district-council/walsall ,WC155-416,31.10.2023,ADULT SOCIAL CARE,ADVANCE HEALTH CARE (UK) LTD,19/10/2023,744.00,6541-Domiciliary Care,THIRD PARTY PAYMENTS,PRIVATE CONTRACTOR,REVENUE
Walsall Council,http://opendatacommunities.org/id/metropolitan-district-council/walsall ,WC155-417,31.10.2023,ADULT SOCIAL CARE,ADVANCE HEALTH CARE (UK) LTD,19/10/2023,"1,134.00",6541-Domiciliary Care,THIRD PARTY PAYMENTS,PRIVATE CONTRACTOR,REVENUE
Walsall Council,http://opendatacommunities.org/id/metropolitan-district-council/walsall ,WC155-418,31.10.2023,ADULT SOCIAL CARE,ADVANCE HEALTH CARE (UK) LTD,19/10/2023,"1,050.00",6541-Domiciliary Care,THIRD PARTY PAYMENTS,PRIVATE CONTRACTOR,REVENUE
Walsall Council,http://opendatacommunities.org/id/metropolitan-district-council/walsall ,WC155-419,31.10.2023,ADULT SOCIAL CARE,ADVANCE HEALTH CARE (UK) LTD,19/10/2023,"1,134.00",6541-Domiciliary Care,THIRD PARTY PAYMENTS,PRIVATE CONTRACTOR,REVENUE
Walsall Council,http://opendatacommunities.org/id/metropolitan-district-council/walsall ,WC155-420,31.10.2023,ADULT SOCIAL CARE,ADVANCE HEALTH CARE (UK) LTD,19/10/2023,840.00,6541-Domiciliary Care,THIRD PARTY PAYMENTS,PRIVATE CONTRACTOR,REVENUE
Walsall Council,http://opendatacommunities.org/id/metropolitan-district-council/walsall ,WC155-421,31.10.2023,ADULT SOCIAL CARE,ADVANCE HEALTH CARE (UK) LTD,19/10/2023,270.00,6541-Domiciliary Care,THIRD PARTY PAYMENTS,PRIVATE CONTRACTOR,REVENUE
Walsall Council,http://opendatacommunities.org/id/metropolitan-district-council/walsall ,WC155-422,31.10.2023,ADULT SOCIAL CARE,ADVANCE HEALTH CARE (UK) LTD,19/10/2023,828.00,6541-Domiciliary Care,THIRD PARTY PAYMENTS,PRIVATE CONTRACTOR,REVENUE
Walsall Council,http://opendatacommunities.org/id/metropolitan-district-council/walsall ,WC155-423,31.10.2023,ADULT SOCIAL CARE,ADVANCE HEALTH CARE (UK) LTD,19/10/2023,"1,050.00",6541-Domiciliary Care,THIRD PARTY PAYMENTS,PRIVATE CONTRACTOR,REVENUE
Walsall Council,http://opendatacommunities.org/id/metropolitan-district-council/walsall ,WC155-424,31.10.2023,ADULT SOCIAL CARE,ADVANCE HEALTH CARE (UK) LTD,19/10/2023,733.50,6541-Domiciliary Care,THIRD PARTY PAYMENTS,PRIVATE CONTRACTOR,REVENUE
Walsall Council,http://opendatacommunities.org/id/metropolitan-district-council/walsall ,WC155-425,31.10.2023,ADULT SOCIAL CARE,ADVANCE HEALTH CARE (UK) LTD,19/10/2023,948.00,6541-Domiciliary Care,THIRD PARTY PAYMENTS,PRIVATE CONTRACTOR,REVENUE
Walsall Council,http://opendatacommunities.org/id/metropolitan-district-council/walsall ,WC155-426,31.10.2023,ADULT SOCIAL CARE,ADVANCE HEALTH CARE (UK) LTD,19/10/2023,546.00,6541-Domiciliary Care,THIRD PARTY PAYMENTS,PRIVATE CONTRACTOR,REVENUE
Walsall Council,http://opendatacommunities.org/id/metropolitan-district-council/walsall ,WC155-427,31.10.2023,ADULT SOCIAL CARE,ADVANCE HEALTH CARE (UK) LTD,19/10/2023,717.00,6541-Domiciliary Care,THIRD PARTY PAYMENTS,PRIVATE CONTRACTOR,REVENUE
Walsall Council,http://opendatacommunities.org/id/metropolitan-district-council/walsall ,WC155-428,31.10.2023,ADULT SOCIAL CARE,ADVANCE HEALTH CARE (UK) LTD,19/10/2023,"1,278.00",6541-Domiciliary Care,THIRD PARTY PAYMENTS,PRIVATE CONTRACTOR,REVENUE
Walsall Council,http://opendatacommunities.org/id/metropolitan-district-council/walsall ,WC155-429,31.10.2023,ADULT SOCIAL CARE,ADVANCE HEALTH CARE (UK) LTD,10/10/2023,963.00,6541-Domiciliary Care,THIRD PARTY PAYMENTS,PRIVATE CONTRACTOR,REVENUE
Walsall Council,http://opendatacommunities.org/id/metropolitan-district-council/walsall ,WC155-430,31.10.2023,ADULT SOCIAL CARE,ADVANCE HEALTH CARE (UK) LTD,10/10/2023,441.00,6541-Domiciliary Care,THIRD PARTY PAYMENTS,PRIVATE CONTRACTOR,REVENUE
Walsall Council,http://opendatacommunities.org/id/metropolitan-district-council/walsall ,WC155-431,31.10.2023,ADULT SOCIAL CARE,ADVANCE HEALTH CARE (UK) LTD,10/10/2023,567.00,6541-Domiciliary Care,THIRD PARTY PAYMENTS,PRIVATE CONTRACTOR,REVENUE
Walsall Council,http://opendatacommunities.org/id/metropolitan-district-council/walsall ,WC155-432,31.10.2023,ADULT SOCIAL CARE,ADVANCE HEALTH CARE (UK) LTD,10/10/2023,283.50,6541-Domiciliary Care,THIRD PARTY PAYMENTS,PRIVATE CONTRACTOR,REVENUE
Walsall Council,http://opendatacommunities.org/id/metropolitan-district-council/walsall ,WC155-433,31.10.2023,ADULT SOCIAL CARE,ADVANCE HEALTH CARE (UK) LTD,10/10/2023,420.00,6541-Domiciliary Care,THIRD PARTY PAYMENTS,PRIVATE CONTRACTOR,REVENUE
Walsall Council,http://opendatacommunities.org/id/metropolitan-district-council/walsall ,WC155-434,31.10.2023,ADULT SOCIAL CARE,ADVANCE HEALTH CARE (UK) LTD,10/10/2023,378.00,6541-Domiciliary Care,THIRD PARTY PAYMENTS,PRIVATE CONTRACTOR,REVENUE
Walsall Council,http://opendatacommunities.org/id/metropolitan-district-council/walsall ,WC155-435,31.10.2023,ADULT SOCIAL CARE,ADVANCE HEALTH CARE (UK) LTD,10/10/2023,666.00,6541-Domiciliary Care,THIRD PARTY PAYMENTS,PRIVATE CONTRACTOR,REVENUE
Walsall Council,http://opendatacommunities.org/id/metropolitan-district-council/walsall ,WC155-436,31.10.2023,ADULT SOCIAL CARE,ADVANCE HEALTH CARE (UK) LTD,10/10/2023,441.00,6541-Domiciliary Care,THIRD PARTY PAYMENTS,PRIVATE CONTRACTOR,REVENUE
Walsall Council,http://opendatacommunities.org/id/metropolitan-district-council/walsall ,WC155-437,31.10.2023,ADULT SOCIAL CARE,ADVANCE HEALTH CARE (UK) LTD,10/10/2023,283.50,6541-Domiciliary Care,THIRD PARTY PAYMENTS,PRIVATE CONTRACTOR,REVENUE
Walsall Council,http://opendatacommunities.org/id/metropolitan-district-council/walsall ,WC155-438,31.10.2023,ADULT SOCIAL CARE,ADVANCE HEALTH CARE (UK) LTD,10/10/2023,301.50,6541-Domiciliary Care,THIRD PARTY PAYMENTS,PRIVATE CONTRACTOR,REVENUE
Walsall Council,http://opendatacommunities.org/id/metropolitan-district-council/walsall ,WC155-439,31.10.2023,ADULT SOCIAL CARE,ADVANCE HEALTH CARE (UK) LTD,10/10/2023,378.00,6541-Domiciliary Care,THIRD PARTY PAYMENTS,PRIVATE CONTRACTOR,REVENUE
Walsall Council,http://opendatacommunities.org/id/metropolitan-district-council/walsall ,WC155-440,31.10.2023,ADULT SOCIAL CARE,ADVANCE HEALTH CARE (UK) LTD,10/10/2023,504.00,6541-Domiciliary Care,THIRD PARTY PAYMENTS,PRIVATE CONTRACTOR,REVENUE
Walsall Council,http://opendatacommunities.org/id/metropolitan-district-council/walsall ,WC155-441,31.10.2023,ADULT SOCIAL CARE,ADVANCE HEALTH CARE (UK) LTD,10/10/2023,283.50,6541-Domiciliary Care,THIRD PARTY PAYMENTS,PRIVATE CONTRACTOR,REVENUE
Walsall Council,http://opendatacommunities.org/id/metropolitan-district-council/walsall ,WC155-442,31.10.2023,ADULT SOCIAL CARE,ADVANCE HEALTH CARE (UK) LTD,10/10/2023,"2,376.00",6541-Domiciliary Care,THIRD PARTY PAYMENTS,PRIVATE CONTRACTOR,REVENUE
Walsall Council,http://opendatacommunities.org/id/metropolitan-district-council/walsall ,WC155-443,31.10.2023,ADULT SOCIAL CARE,ADVANCE HEALTH CARE (UK) LTD,10/10/2023,639.00,6541-Domiciliary Care,THIRD PARTY PAYMENTS,PRIVATE CONTRACTOR,REVENUE
Walsall Council,http://opendatacommunities.org/id/metropolitan-district-council/walsall ,WC155-444,31.10.2023,ADULT SOCIAL CARE,ADVANCE HEALTH CARE (UK) LTD,10/10/2023,567.00,6541-Domiciliary Care,THIRD PARTY PAYMENTS,PRIVATE CONTRACTOR,REVENUE
Walsall Council,http://opendatacommunities.org/id/metropolitan-district-council/walsall ,WC155-445,31.10.2023,ADULT SOCIAL CARE,ADVANCE HEALTH CARE (UK) LTD,10/10/2023,301.50,6541-Domiciliary Care,THIRD PARTY PAYMENTS,PRIVATE CONTRACTOR,REVENUE
Walsall Council,http://opendatacommunities.org/id/metropolitan-district-council/walsall ,WC155-446,31.10.2023,ADULT SOCIAL CARE,ADVANCE HEALTH CARE (UK) LTD,10/10/2023,756.00,6541-Domiciliary Care,THIRD PARTY PAYMENTS,PRIVATE CONTRACTOR,REVENUE
Walsall Council,http://opendatacommunities.org/id/metropolitan-district-council/walsall ,WC155-447,31.10.2023,ADULT SOCIAL CARE,ADVANCE HEALTH CARE (UK) LTD,10/10/2023,"1,296.00",6541-Domiciliary Care,THIRD PARTY PAYMENTS,PRIVATE CONTRACTOR,REVENUE
Walsall Council,http://opendatacommunities.org/id/metropolitan-district-council/walsall ,WC155-448,31.10.2023,ADULT SOCIAL CARE,ADVANCE HEALTH CARE (UK) LTD,10/10/2023,342.00,6541-Domiciliary Care,THIRD PARTY PAYMENTS,PRIVATE CONTRACTOR,REVENUE
Walsall Council,http://opendatacommunities.org/id/metropolitan-district-council/walsall ,WC155-449,31.10.2023,ADULT SOCIAL CARE,ADVANCE HEALTH CARE (UK) LTD,10/10/2023,567.00,6541-Domiciliary Care,THIRD PARTY PAYMENTS,PRIVATE CONTRACTOR,REVENUE
Walsall Council,http://opendatacommunities.org/id/metropolitan-district-council/walsall ,WC155-450,31.10.2023,ADULT SOCIAL CARE,ADVANCE HEALTH CARE (UK) LTD,10/10/2023,630.00,6541-Domiciliary Care,THIRD PARTY PAYMENTS,PRIVATE CONTRACTOR,REVENUE
Walsall Council,http://opendatacommunities.org/id/metropolitan-district-council/walsall ,WC155-451,31.10.2023,ADULT SOCIAL CARE,ADVANCE HEALTH CARE (UK) LTD,10/10/2023,441.00,6541-Domiciliary Care,THIRD PARTY PAYMENTS,PRIVATE CONTRACTOR,REVENUE
Walsall Council,http://opendatacommunities.org/id/metropolitan-district-council/walsall ,WC155-452,31.10.2023,ADULT SOCIAL CARE,ADVANCE HEALTH CARE (UK) LTD,10/10/2023,252.00,6541-Domiciliary Care,THIRD PARTY PAYMENTS,PRIVATE CONTRACTOR,REVENUE
Walsall Council,http://opendatacommunities.org/id/metropolitan-district-council/walsall ,WC155-453,31.10.2023,ADULT SOCIAL CARE,ADVANCE HEALTH CARE (UK) LTD,10/10/2023,-378.00,6541-Domiciliary Care,THIRD PARTY PAYMENTS,PRIVATE CONTRACTOR,REVENUE
Walsall Council,http://opendatacommunities.org/id/metropolitan-district-council/walsall ,WC155-454,31.10.2023,ADULT SOCIAL CARE,ADVANCE HEALTH CARE (UK) LTD,10/10/2023,567.00,6541-Domiciliary Care,THIRD PARTY PAYMENTS,PRIVATE CONTRACTOR,REVENUE
Walsall Council,http://opendatacommunities.org/id/metropolitan-district-council/walsall ,WC155-455,31.10.2023,ADULT SOCIAL CARE,ADVANCE HEALTH CARE (UK) LTD,10/10/2023,630.00,6541-Domiciliary Care,THIRD PARTY PAYMENTS,PRIVATE CONTRACTOR,REVENUE
Walsall Council,http://opendatacommunities.org/id/metropolitan-district-council/walsall ,WC155-456,31.10.2023,ADULT SOCIAL CARE,ADVANCE HEALTH CARE (UK) LTD,10/10/2023,441.00,6541-Domiciliary Care,THIRD PARTY PAYMENTS,PRIVATE CONTRACTOR,REVENUE
Walsall Council,http://opendatacommunities.org/id/metropolitan-district-council/walsall ,WC155-457,31.10.2023,ADULT SOCIAL CARE,ADVANCE HEALTH CARE (UK) LTD,10/10/2023,567.00,6541-Domiciliary Care,THIRD PARTY PAYMENTS,PRIVATE CONTRACTOR,REVENUE
Walsall Council,http://opendatacommunities.org/id/metropolitan-district-council/walsall ,WC155-458,31.10.2023,ADULT SOCIAL CARE,ADVANCE HEALTH CARE (UK) LTD,10/10/2023,504.00,6541-Domiciliary Care,THIRD PARTY PAYMENTS,PRIVATE CONTRACTOR,REVENUE
Walsall Council,http://opendatacommunities.org/id/metropolitan-district-council/walsall ,WC155-459,31.10.2023,ADULT SOCIAL CARE,ADVANCE HEALTH CARE (UK) LTD,10/10/2023,"1,296.00",6541-Domiciliary Care,THIRD PARTY PAYMENTS,PRIVATE CONTRACTOR,REVENUE
Walsall Council,http://opendatacommunities.org/id/metropolitan-district-council/walsall ,WC155-460,31.10.2023,ADULT SOCIAL CARE,ADVANCE HEALTH CARE (UK) LTD,10/10/2023,283.50,6541-Domiciliary Care,THIRD PARTY PAYMENTS,PRIVATE CONTRACTOR,REVENUE
Walsall Council,http://opendatacommunities.org/id/metropolitan-district-council/walsall ,WC155-461,31.10.2023,ADULT SOCIAL CARE,ADVANCE HEALTH CARE (UK) LTD,10/10/2023,378.00,6541-Domiciliary Care,THIRD PARTY PAYMENTS,PRIVATE CONTRACTOR,REVENUE
Walsall Council,http://opendatacommunities.org/id/metropolitan-district-council/walsall ,WC155-462,31.10.2023,ADULT SOCIAL CARE,ADVANCE HEALTH CARE (UK) LTD,10/10/2023,283.50,6541-Domiciliary Care,THIRD PARTY PAYMENTS,PRIVATE CONTRACTOR,REVENUE
Walsall Council,http://opendatacommunities.org/id/metropolitan-district-council/walsall ,WC155-463,31.10.2023,ADULT SOCIAL CARE,ADVANCE HEALTH CARE (UK) LTD,10/10/2023,420.00,6541-Domiciliary Care,THIRD PARTY PAYMENTS,PRIVATE CONTRACTOR,REVENUE
Walsall Council,http://opendatacommunities.org/id/metropolitan-district-council/walsall ,WC155-464,31.10.2023,ADULT SOCIAL CARE,ADVANCE HEALTH CARE (UK) LTD,10/10/2023,378.00,6541-Domiciliary Care,THIRD PARTY PAYMENTS,PRIVATE CONTRACTOR,REVENUE
Walsall Council,http://opendatacommunities.org/id/metropolitan-district-council/walsall ,WC155-465,31.10.2023,ADULT SOCIAL CARE,ADVANCE HEALTH CARE (UK) LTD,10/10/2023,567.00,6541-Domiciliary Care,THIRD PARTY PAYMENTS,PRIVATE CONTRACTOR,REVENUE
Walsall Council,http://opendatacommunities.org/id/metropolitan-district-council/walsall ,WC155-466,31.10.2023,ADULT SOCIAL CARE,ADVANCE HEALTH CARE (UK) LTD,10/10/2023,630.00,6541-Domiciliary Care,THIRD PARTY PAYMENTS,PRIVATE CONTRACTOR,REVENUE
Walsall Council,http://opendatacommunities.org/id/metropolitan-district-council/walsall ,WC155-467,31.10.2023,ADULT SOCIAL CARE,ADVANCE HEALTH CARE (UK) LTD,10/10/2023,441.00,6541-Domiciliary Care,THIRD PARTY PAYMENTS,PRIVATE CONTRACTOR,REVENUE
Walsall Council,http://opendatacommunities.org/id/metropolitan-district-council/walsall ,WC155-468,31.10.2023,ADULT SOCIAL CARE,ADVANCE HEALTH CARE (UK) LTD,10/10/2023,252.00,6541-Domiciliary Care,THIRD PARTY PAYMENTS,PRIVATE CONTRACTOR,REVENUE
Walsall Council,http://opendatacommunities.org/id/metropolitan-district-council/walsall ,WC155-469,31.10.2023,ADULT SOCIAL CARE,ADVANCE HEALTH CARE (UK) LTD,10/10/2023,567.00,6541-Domiciliary Care,THIRD PARTY PAYMENTS,PRIVATE CONTRACTOR,REVENUE
Walsall Council,http://opendatacommunities.org/id/metropolitan-district-council/walsall ,WC155-470,31.10.2023,ADULT SOCIAL CARE,ADVANCE HEALTH CARE (UK) LTD,10/10/2023,630.00,6541-Domiciliary Care,THIRD PARTY PAYMENTS,PRIVATE CONTRACTOR,REVENUE
Walsall Council,http://opendatacommunities.org/id/metropolitan-district-council/walsall ,WC155-471,31.10.2023,ADULT SOCIAL CARE,ADVANCE HEALTH CARE (UK) LTD,10/10/2023,441.00,6541-Domiciliary Care,THIRD PARTY PAYMENTS,PRIVATE CONTRACTOR,REVENUE
Walsall Council,http://opendatacommunities.org/id/metropolitan-district-council/walsall ,WC155-472,31.10.2023,ADULT SOCIAL CARE,ADVANCE HEALTH CARE (UK) LTD,10/10/2023,567.00,6541-Domiciliary Care,THIRD PARTY PAYMENTS,PRIVATE CONTRACTOR,REVENUE
Walsall Council,http://opendatacommunities.org/id/metropolitan-district-council/walsall ,WC155-473,31.10.2023,ADULT SOCIAL CARE,ADVANCE HEALTH CARE (UK) LTD,10/10/2023,504.00,6541-Domiciliary Care,THIRD PARTY PAYMENTS,PRIVATE CONTRACTOR,REVENUE
Walsall Council,http://opendatacommunities.org/id/metropolitan-district-council/walsall ,WC155-474,31.10.2023,ADULT SOCIAL CARE,ADVANCE HEALTH CARE (UK) LTD,10/10/2023,567.00,6541-Domiciliary Care,THIRD PARTY PAYMENTS,PRIVATE CONTRACTOR,REVENUE
Walsall Council,http://opendatacommunities.org/id/metropolitan-district-council/walsall ,WC155-475,31.10.2023,ADULT SOCIAL CARE,ADVANCE HEALTH CARE (UK) LTD,10/10/2023,963.00,6541-Domiciliary Care,THIRD PARTY PAYMENTS,PRIVATE CONTRACTOR,REVENUE
Walsall Council,http://opendatacommunities.org/id/metropolitan-district-council/walsall ,WC155-476,31.10.2023,ADULT SOCIAL CARE,ADVANCE HEALTH CARE (UK) LTD,10/10/2023,441.00,6541-Domiciliary Care,THIRD PARTY PAYMENTS,PRIVATE CONTRACTOR,REVENUE
Walsall Council,http://opendatacommunities.org/id/metropolitan-district-council/walsall ,WC155-477,31.10.2023,ADULT SOCIAL CARE,ADVANCE HEALTH CARE (UK) LTD,10/10/2023,301.50,6541-Domiciliary Care,THIRD PARTY PAYMENTS,PRIVATE CONTRACTOR,REVENUE
Walsall Council,http://opendatacommunities.org/id/metropolitan-district-council/walsall ,WC155-478,31.10.2023,ADULT SOCIAL CARE,ADVANCE HEALTH CARE (UK) LTD,10/10/2023,441.00,6541-Domiciliary Care,THIRD PARTY PAYMENTS,PRIVATE CONTRACTOR,REVENUE
Walsall Council,http://opendatacommunities.org/id/metropolitan-district-council/walsall ,WC155-479,31.10.2023,ADULT SOCIAL CARE,ADVANCE HEALTH CARE (UK) LTD,10/10/2023,283.50,6541-Domiciliary Care,THIRD PARTY PAYMENTS,PRIVATE CONTRACTOR,REVENUE
Walsall Council,http://opendatacommunities.org/id/metropolitan-district-council/walsall ,WC155-480,31.10.2023,ADULT SOCIAL CARE,ADVANCE HEALTH CARE (UK) LTD,10/10/2023,891.00,6541-Domiciliary Care,THIRD PARTY PAYMENTS,PRIVATE CONTRACTOR,REVENUE
Walsall Council,http://opendatacommunities.org/id/metropolitan-district-council/walsall ,WC155-481,31.10.2023,ADULT SOCIAL CARE,ADVANCE HEALTH CARE (UK) LTD,10/10/2023,441.00,6541-Domiciliary Care,THIRD PARTY PAYMENTS,PRIVATE CONTRACTOR,REVENUE
Walsall Council,http://opendatacommunities.org/id/metropolitan-district-council/walsall ,WC155-482,31.10.2023,ADULT SOCIAL CARE,ADVANCE HEALTH CARE (UK) LTD,10/10/2023,301.50,6541-Domiciliary Care,THIRD PARTY PAYMENTS,PRIVATE CONTRACTOR,REVENUE
Walsall Council,http://opendatacommunities.org/id/metropolitan-district-council/walsall ,WC155-483,31.10.2023,ADULT SOCIAL CARE,ADVANCE HEALTH CARE (UK) LTD,10/10/2023,504.00,6541-Domiciliary Care,THIRD PARTY PAYMENTS,PRIVATE CONTRACTOR,REVENUE
Walsall Council,http://opendatacommunities.org/id/metropolitan-district-council/walsall ,WC155-484,31.10.2023,ADULT SOCIAL CARE,ADVANCE HEALTH CARE (UK) LTD,10/10/2023,283.50,6541-Domiciliary Care,THIRD PARTY PAYMENTS,PRIVATE CONTRACTOR,REVENUE
Walsall Council,http://opendatacommunities.org/id/metropolitan-district-council/walsall ,WC155-485,31.10.2023,ADULT SOCIAL CARE,ADVANCE HEALTH CARE (UK) LTD,10/10/2023,639.00,6541-Domiciliary Care,THIRD PARTY PAYMENTS,PRIVATE CONTRACTOR,REVENUE
Walsall Council,http://opendatacommunities.org/id/metropolitan-district-council/walsall ,WC155-486,31.10.2023,ADULT SOCIAL CARE,ADVANCE HEALTH CARE (UK) LTD,10/10/2023,567.00,6541-Domiciliary Care,THIRD PARTY PAYMENTS,PRIVATE CONTRACTOR,REVENUE
Walsall Council,http://opendatacommunities.org/id/metropolitan-district-council/walsall ,WC155-487,31.10.2023,ADULT SOCIAL CARE,ADVANCE HEALTH CARE (UK) LTD,10/10/2023,756.00,6541-Domiciliary Care,THIRD PARTY PAYMENTS,PRIVATE CONTRACTOR,REVENUE
Walsall Council,http://opendatacommunities.org/id/metropolitan-district-council/walsall ,WC155-488,31.10.2023,ADULT SOCIAL CARE,ADVANCE HEALTH CARE (UK) LTD,10/10/2023,342.00,6541-Domiciliary Care,THIRD PARTY PAYMENTS,PRIVATE CONTRACTOR,REVENUE
Walsall Council,http://opendatacommunities.org/id/metropolitan-district-council/walsall ,WC155-489,31.10.2023,ADULT SOCIAL CARE,ADVANCE HEALTH CARE (UK) LTD,10/10/2023,666.00,6541-Domiciliary Care,THIRD PARTY PAYMENTS,PRIVATE CONTRACTOR,REVENUE
Walsall Council,http://opendatacommunities.org/id/metropolitan-district-council/walsall ,WC155-490,31.10.2023,ADULT SOCIAL CARE,ADVANCE HEALTH CARE (UK) LTD,10/10/2023,283.50,6541-Domiciliary Care,THIRD PARTY PAYMENTS,PRIVATE CONTRACTOR,REVENUE
Walsall Council,http://opendatacommunities.org/id/metropolitan-district-council/walsall ,WC155-491,31.10.2023,ADULT SOCIAL CARE,ADVANCE HEALTH CARE (UK) LTD,19/10/2023,270.00,6554-Professional Services-Priv Contractor & Other Agencies,THIRD PARTY PAYMENTS,PRIVATE CONTRACTOR,REVENUE
Walsall Council,http://opendatacommunities.org/id/metropolitan-district-council/walsall ,WC155-492,31.10.2023,ADULT SOCIAL CARE,ADVANCE HEALTH CARE (UK) LTD,19/10/2023,"1,296.00",6554-Professional Services-Priv Contractor & Other Agencies,THIRD PARTY PAYMENTS,PRIVATE CONTRACTOR,REVENUE
Walsall Council,http://opendatacommunities.org/id/metropolitan-district-council/walsall ,WC155-493,31.10.2023,ADULT SOCIAL CARE,ADVANCE HEALTH CARE (UK) LTD,23/10/2023,963.00,6541-Domiciliary Care,THIRD PARTY PAYMENTS,PRIVATE CONTRACTOR,REVENUE
Walsall Council,http://opendatacommunities.org/id/metropolitan-district-council/walsall ,WC155-494,31.10.2023,ADULT SOCIAL CARE,ADVANCE HEALTH CARE (UK) LTD,23/10/2023,441.00,6541-Domiciliary Care,THIRD PARTY PAYMENTS,PRIVATE CONTRACTOR,REVENUE
Walsall Council,http://opendatacommunities.org/id/metropolitan-district-council/walsall ,WC155-495,31.10.2023,ADULT SOCIAL CARE,ADVANCE HEALTH CARE (UK) LTD,23/10/2023,378.00,6541-Domiciliary Care,THIRD PARTY PAYMENTS,PRIVATE CONTRACTOR,REVENUE
Walsall Council,http://opendatacommunities.org/id/metropolitan-district-council/walsall ,WC155-496,31.10.2023,ADULT SOCIAL CARE,ADVANCE HEALTH CARE (UK) LTD,23/10/2023,666.00,6541-Domiciliary Care,THIRD PARTY PAYMENTS,PRIVATE CONTRACTOR,REVENUE
Walsall Council,http://opendatacommunities.org/id/metropolitan-district-council/walsall ,WC155-497,31.10.2023,ADULT SOCIAL CARE,ADVANCE HEALTH CARE (UK) LTD,23/10/2023,283.50,6541-Domiciliary Care,THIRD PARTY PAYMENTS,PRIVATE CONTRACTOR,REVENUE
Walsall Council,http://opendatacommunities.org/id/metropolitan-district-council/walsall ,WC155-498,31.10.2023,ADULT SOCIAL CARE,ADVANCE HEALTH CARE (UK) LTD,23/10/2023,420.00,6541-Domiciliary Care,THIRD PARTY PAYMENTS,PRIVATE CONTRACTOR,REVENUE
Walsall Council,http://opendatacommunities.org/id/metropolitan-district-council/walsall ,WC155-499,31.10.2023,ADULT SOCIAL CARE,ADVANCE HEALTH CARE (UK) LTD,23/10/2023,378.00,6541-Domiciliary Care,THIRD PARTY PAYMENTS,PRIVATE CONTRACTOR,REVENUE
Walsall Council,http://opendatacommunities.org/id/metropolitan-district-council/walsall ,WC155-500,31.10.2023,ADULT SOCIAL CARE,ADVANCE HEALTH CARE (UK) LTD,23/10/2023,441.00,6541-Domiciliary Care,THIRD PARTY PAYMENTS,PRIVATE CONTRACTOR,REVENUE
Walsall Council,http://opendatacommunities.org/id/metropolitan-district-council/walsall ,WC155-501,31.10.2023,ADULT SOCIAL CARE,ADVANCE HEALTH CARE (UK) LTD,23/10/2023,567.00,6541-Domiciliary Care,THIRD PARTY PAYMENTS,PRIVATE CONTRACTOR,REVENUE
Walsall Council,http://opendatacommunities.org/id/metropolitan-district-council/walsall ,WC155-502,31.10.2023,ADULT SOCIAL CARE,ADVANCE HEALTH CARE (UK) LTD,23/10/2023,630.00,6541-Domiciliary Care,THIRD PARTY PAYMENTS,PRIVATE CONTRACTOR,REVENUE
Walsall Council,http://opendatacommunities.org/id/metropolitan-district-council/walsall ,WC155-503,31.10.2023,ADULT SOCIAL CARE,ADVANCE HEALTH CARE (UK) LTD,23/10/2023,441.00,6541-Domiciliary Care,THIRD PARTY PAYMENTS,PRIVATE CONTRACTOR,REVENUE
Walsall Council,http://opendatacommunities.org/id/metropolitan-district-council/walsall ,WC155-504,31.10.2023,ADULT SOCIAL CARE,ADVANCE HEALTH CARE (UK) LTD,23/10/2023,252.00,6541-Domiciliary Care,THIRD PARTY PAYMENTS,PRIVATE CONTRACTOR,REVENUE
Walsall Council,http://opendatacommunities.org/id/metropolitan-district-council/walsall ,WC155-505,31.10.2023,ADULT SOCIAL CARE,ADVANCE HEALTH CARE (UK) LTD,23/10/2023,301.50,6541-Domiciliary Care,THIRD PARTY PAYMENTS,PRIVATE CONTRACTOR,REVENUE
Walsall Council,http://opendatacommunities.org/id/metropolitan-district-council/walsall ,WC155-506,31.10.2023,ADULT SOCIAL CARE,ADVANCE HEALTH CARE (UK) LTD,23/10/2023,567.00,6541-Domiciliary Care,THIRD PARTY PAYMENTS,PRIVATE CONTRACTOR,REVENUE
Walsall Council,http://opendatacommunities.org/id/metropolitan-district-council/walsall ,WC155-507,31.10.2023,ADULT SOCIAL CARE,ADVANCE HEALTH CARE (UK) LTD,23/10/2023,630.00,6541-Domiciliary Care,THIRD PARTY PAYMENTS,PRIVATE CONTRACTOR,REVENUE
Walsall Council,http://opendatacommunities.org/id/metropolitan-district-council/walsall ,WC155-508,31.10.2023,ADULT SOCIAL CARE,ADVANCE HEALTH CARE (UK) LTD,23/10/2023,441.00,6541-Domiciliary Care,THIRD PARTY PAYMENTS,PRIVATE CONTRACTOR,REVENUE
Walsall Council,http://opendatacommunities.org/id/metropolitan-district-council/walsall ,WC155-509,31.10.2023,ADULT SOCIAL CARE,ADVANCE HEALTH CARE (UK) LTD,23/10/2023,567.00,6541-Domiciliary Care,THIRD PARTY PAYMENTS,PRIVATE CONTRACTOR,REVENUE
Walsall Council,http://opendatacommunities.org/id/metropolitan-district-council/walsall ,WC155-510,31.10.2023,ADULT SOCIAL CARE,ADVANCE HEALTH CARE (UK) LTD,23/10/2023,504.00,6541-Domiciliary Care,THIRD PARTY PAYMENTS,PRIVATE CONTRACTOR,REVENUE
Walsall Council,http://opendatacommunities.org/id/metropolitan-district-council/walsall ,WC155-511,31.10.2023,ADULT SOCIAL CARE,ADVANCE HEALTH CARE (UK) LTD,23/10/2023,504.00,6541-Domiciliary Care,THIRD PARTY PAYMENTS,PRIVATE CONTRACTOR,REVENUE
Walsall Council,http://opendatacommunities.org/id/metropolitan-district-council/walsall ,WC155-512,31.10.2023,ADULT SOCIAL CARE,ADVANCE HEALTH CARE (UK) LTD,23/10/2023,283.50,6541-Domiciliary Care,THIRD PARTY PAYMENTS,PRIVATE CONTRACTOR,REVENUE
Walsall Council,http://opendatacommunities.org/id/metropolitan-district-council/walsall ,WC155-513,31.10.2023,ADULT SOCIAL CARE,ADVANCE HEALTH CARE (UK) LTD,23/10/2023,639.00,6541-Domiciliary Care,THIRD PARTY PAYMENTS,PRIVATE CONTRACTOR,REVENUE
Walsall Council,http://opendatacommunities.org/id/metropolitan-district-council/walsall ,WC155-514,31.10.2023,ADULT SOCIAL CARE,ADVANCE HEALTH CARE (UK) LTD,23/10/2023,555.00,6541-Domiciliary Care,THIRD PARTY PAYMENTS,PRIVATE CONTRACTOR,REVENUE
Walsall Council,http://opendatacommunities.org/id/metropolitan-district-council/walsall ,WC155-515,31.10.2023,ADULT SOCIAL CARE,ADVANCE HEALTH CARE (UK) LTD,23/10/2023,567.00,6541-Domiciliary Care,THIRD PARTY PAYMENTS,PRIVATE CONTRACTOR,REVENUE
Walsall Council,http://opendatacommunities.org/id/metropolitan-district-council/walsall ,WC155-516,31.10.2023,ADULT SOCIAL CARE,ADVANCE HEALTH CARE (UK) LTD,23/10/2023,"2,970.00",6541-Domiciliary Care,THIRD PARTY PAYMENTS,PRIVATE CONTRACTOR,REVENUE
Walsall Council,http://opendatacommunities.org/id/metropolitan-district-council/walsall ,WC155-517,31.10.2023,ADULT SOCIAL CARE,ADVANCE HEALTH CARE (UK) LTD,23/10/2023,283.50,6541-Domiciliary Care,THIRD PARTY PAYMENTS,PRIVATE CONTRACTOR,REVENUE
Walsall Council,http://opendatacommunities.org/id/metropolitan-district-council/walsall ,WC155-518,31.10.2023,ADULT SOCIAL CARE,ADVANCE HEALTH CARE (UK) LTD,23/10/2023,891.00,6541-Domiciliary Care,THIRD PARTY PAYMENTS,PRIVATE CONTRACTOR,REVENUE
Walsall Council,http://opendatacommunities.org/id/metropolitan-district-council/walsall ,WC155-519,31.10.2023,ADULT SOCIAL CARE,ADVANCE HEALTH CARE (UK) LTD,23/10/2023,301.50,6541-Domiciliary Care,THIRD PARTY PAYMENTS,PRIVATE CONTRACTOR,REVENUE
Walsall Council,http://opendatacommunities.org/id/metropolitan-district-council/walsall ,WC155-520,31.10.2023,ADULT SOCIAL CARE,ADVANCE HEALTH CARE (UK) LTD,23/10/2023,"-3,150.00",6541-Domiciliary Care,THIRD PARTY PAYMENTS,PRIVATE CONTRACTOR,REVENUE
Walsall Council,http://opendatacommunities.org/id/metropolitan-district-council/walsall ,WC155-521,31.10.2023,ADULT SOCIAL CARE,ADVANCE HEALTH CARE (UK) LTD,23/10/2023,756.00,6541-Domiciliary Care,THIRD PARTY PAYMENTS,PRIVATE CONTRACTOR,REVENUE
Walsall Council,http://opendatacommunities.org/id/metropolitan-district-council/walsall ,WC155-522,31.10.2023,ADULT SOCIAL CARE,ADVANCE HEALTH CARE (UK) LTD,23/10/2023,783.00,6541-Domiciliary Care,THIRD PARTY PAYMENTS,PRIVATE CONTRACTOR,REVENUE
Walsall Council,http://opendatacommunities.org/id/metropolitan-district-council/walsall ,WC155-523,31.10.2023,ADULT SOCIAL CARE,ADVANCE HEALTH CARE (UK) LTD,23/10/2023,283.50,6541-Domiciliary Care,THIRD PARTY PAYMENTS,PRIVATE CONTRACTOR,REVENUE
Walsall Council,http://opendatacommunities.org/id/metropolitan-district-council/walsall ,WC155-524,31.10.2023,ADULT SOCIAL CARE,ADVANCE HEALTH CARE (UK) LTD,23/10/2023,420.00,6541-Domiciliary Care,THIRD PARTY PAYMENTS,PRIVATE CONTRACTOR,REVENUE
Walsall Council,http://opendatacommunities.org/id/metropolitan-district-council/walsall ,WC155-525,31.10.2023,ADULT SOCIAL CARE,ADVANCE HEALTH CARE (UK) LTD,23/10/2023,378.00,6541-Domiciliary Care,THIRD PARTY PAYMENTS,PRIVATE CONTRACTOR,REVENUE
Walsall Council,http://opendatacommunities.org/id/metropolitan-district-council/walsall ,WC155-526,31.10.2023,ADULT SOCIAL CARE,ADVANCE HEALTH CARE (UK) LTD,23/10/2023,963.00,6541-Domiciliary Care,THIRD PARTY PAYMENTS,PRIVATE CONTRACTOR,REVENUE
Walsall Council,http://opendatacommunities.org/id/metropolitan-district-council/walsall ,WC155-527,31.10.2023,ADULT SOCIAL CARE,ADVANCE HEALTH CARE (UK) LTD,23/10/2023,252.00,6541-Domiciliary Care,THIRD PARTY PAYMENTS,PRIVATE CONTRACTOR,REVENUE
Walsall Council,http://opendatacommunities.org/id/metropolitan-district-council/walsall ,WC155-528,31.10.2023,ADULT SOCIAL CARE,ADVANCE HEALTH CARE (UK) LTD,23/10/2023,441.00,6541-Domiciliary Care,THIRD PARTY PAYMENTS,PRIVATE CONTRACTOR,REVENUE
Walsall Council,http://opendatacommunities.org/id/metropolitan-district-council/walsall ,WC155-529,31.10.2023,ADULT SOCIAL CARE,ADVANCE HEALTH CARE (UK) LTD,23/10/2023,301.50,6541-Domiciliary Care,THIRD PARTY PAYMENTS,PRIVATE CONTRACTOR,REVENUE
Walsall Council,http://opendatacommunities.org/id/metropolitan-district-council/walsall ,WC155-530,31.10.2023,ADULT SOCIAL CARE,ADVANCE HEALTH CARE (UK) LTD,23/10/2023,666.00,6541-Domiciliary Care,THIRD PARTY PAYMENTS,PRIVATE CONTRACTOR,REVENUE
Walsall Council,http://opendatacommunities.org/id/metropolitan-district-council/walsall ,WC155-531,31.10.2023,ADULT SOCIAL CARE,ADVANCE HEALTH CARE (UK) LTD,23/10/2023,301.50,6541-Domiciliary Care,THIRD PARTY PAYMENTS,PRIVATE CONTRACTOR,REVENUE
Walsall Council,http://opendatacommunities.org/id/metropolitan-district-council/walsall ,WC155-532,31.10.2023,ADULT SOCIAL CARE,ADVANCE HEALTH CARE (UK) LTD,23/10/2023,504.00,6541-Domiciliary Care,THIRD PARTY PAYMENTS,PRIVATE CONTRACTOR,REVENUE
Walsall Council,http://opendatacommunities.org/id/metropolitan-district-council/walsall ,WC155-533,31.10.2023,ADULT SOCIAL CARE,ADVANCE HEALTH CARE (UK) LTD,23/10/2023,378.00,6541-Domiciliary Care,THIRD PARTY PAYMENTS,PRIVATE CONTRACTOR,REVENUE
Walsall Council,http://opendatacommunities.org/id/metropolitan-district-council/walsall ,WC155-534,31.10.2023,ADULT SOCIAL CARE,ADVANCE HEALTH CARE (UK) LTD,23/10/2023,756.00,6541-Domiciliary Care,THIRD PARTY PAYMENTS,PRIVATE CONTRACTOR,REVENUE
Walsall Council,http://opendatacommunities.org/id/metropolitan-district-council/walsall ,WC155-535,31.10.2023,ADULT SOCIAL CARE,ADVANCE HEALTH CARE (UK) LTD,23/10/2023,342.00,6541-Domiciliary Care,THIRD PARTY PAYMENTS,PRIVATE CONTRACTOR,REVENUE
Walsall Council,http://opendatacommunities.org/id/metropolitan-district-council/walsall ,WC155-536,31.10.2023,ADULT SOCIAL CARE,ADVANCE HEALTH CARE (UK) LTD,23/10/2023,283.50,6541-Domiciliary Care,THIRD PARTY PAYMENTS,PRIVATE CONTRACTOR,REVENUE
Walsall Council,http://opendatacommunities.org/id/metropolitan-district-council/walsall ,WC155-537,31.10.2023,ADULT SOCIAL CARE,ADVANCE HEALTH CARE (UK) LTD,23/10/2023,639.00,6541-Domiciliary Care,THIRD PARTY PAYMENTS,PRIVATE CONTRACTOR,REVENUE
Walsall Council,http://opendatacommunities.org/id/metropolitan-district-council/walsall ,WC155-538,31.10.2023,ADULT SOCIAL CARE,ADVANCE HEALTH CARE (UK) LTD,23/10/2023,567.00,6541-Domiciliary Care,THIRD PARTY PAYMENTS,PRIVATE CONTRACTOR,REVENUE
Walsall Council,http://opendatacommunities.org/id/metropolitan-district-council/walsall ,WC155-539,31.10.2023,ADULT SOCIAL CARE,ADVANCE HEALTH CARE (UK) LTD,23/10/2023,567.00,6541-Domiciliary Care,THIRD PARTY PAYMENTS,PRIVATE CONTRACTOR,REVENUE
Walsall Council,http://opendatacommunities.org/id/metropolitan-district-council/walsall ,WC155-540,31.10.2023,ADULT SOCIAL CARE,ADVANCE HEALTH CARE (UK) LTD,23/10/2023,630.00,6541-Domiciliary Care,THIRD PARTY PAYMENTS,PRIVATE CONTRACTOR,REVENUE
Walsall Council,http://opendatacommunities.org/id/metropolitan-district-council/walsall ,WC155-541,31.10.2023,ADULT SOCIAL CARE,ADVANCE HEALTH CARE (UK) LTD,23/10/2023,441.00,6541-Domiciliary Care,THIRD PARTY PAYMENTS,PRIVATE CONTRACTOR,REVENUE
Walsall Council,http://opendatacommunities.org/id/metropolitan-district-council/walsall ,WC155-542,31.10.2023,ADULT SOCIAL CARE,ADVANCE HEALTH CARE (UK) LTD,23/10/2023,252.00,6541-Domiciliary Care,THIRD PARTY PAYMENTS,PRIVATE CONTRACTOR,REVENUE
Walsall Council,http://opendatacommunities.org/id/metropolitan-district-council/walsall ,WC155-543,31.10.2023,ADULT SOCIAL CARE,ADVANCE HEALTH CARE (UK) LTD,23/10/2023,567.00,6541-Domiciliary Care,THIRD PARTY PAYMENTS,PRIVATE CONTRACTOR,REVENUE
Walsall Council,http://opendatacommunities.org/id/metropolitan-district-council/walsall ,WC155-544,31.10.2023,ADULT SOCIAL CARE,ADVANCE HEALTH CARE (UK) LTD,23/10/2023,630.00,6541-Domiciliary Care,THIRD PARTY PAYMENTS,PRIVATE CONTRACTOR,REVENUE
Walsall Council,http://opendatacommunities.org/id/metropolitan-district-council/walsall ,WC155-545,31.10.2023,ADULT SOCIAL CARE,ADVANCE HEALTH CARE (UK) LTD,23/10/2023,441.00,6541-Domiciliary Care,THIRD PARTY PAYMENTS,PRIVATE CONTRACTOR,REVENUE
Walsall Council,http://opendatacommunities.org/id/metropolitan-district-council/walsall ,WC155-546,31.10.2023,ADULT SOCIAL CARE,ADVANCE HEALTH CARE (UK) LTD,23/10/2023,567.00,6541-Domiciliary Care,THIRD PARTY PAYMENTS,PRIVATE CONTRACTOR,REVENUE
Walsall Council,http://opendatacommunities.org/id/metropolitan-district-council/walsall ,WC155-547,31.10.2023,ADULT SOCIAL CARE,ADVANCE HEALTH CARE (UK) LTD,23/10/2023,504.00,6541-Domiciliary Care,THIRD PARTY PAYMENTS,PRIVATE CONTRACTOR,REVENUE
Walsall Council,http://opendatacommunities.org/id/metropolitan-district-council/walsall ,WC155-548,31.10.2023,ADULT SOCIAL CARE,ADVANCE HEALTH CARE (UK) LTD,23/10/2023,441.00,6541-Domiciliary Care,THIRD PARTY PAYMENTS,PRIVATE CONTRACTOR,REVENUE
Walsall Council,http://opendatacommunities.org/id/metropolitan-district-council/walsall ,WC155-549,31.10.2023,ADULT SOCIAL CARE,ADVANCE HEALTH CARE (UK) LTD,23/10/2023,283.50,6541-Domiciliary Care,THIRD PARTY PAYMENTS,PRIVATE CONTRACTOR,REVENUE
Walsall Council,http://opendatacommunities.org/id/metropolitan-district-council/walsall ,WC155-550,31.10.2023,ADULT SOCIAL CARE,ADVANCE HEALTH CARE (UK) LTD,23/10/2023,891.00,6541-Domiciliary Care,THIRD PARTY PAYMENTS,PRIVATE CONTRACTOR,REVENUE
Walsall Council,http://opendatacommunities.org/id/metropolitan-district-council/walsall ,WC155-551,31.10.2023,CHILDRENS,ADVANCED CHILD CARE ASSESSMENTS LTD,20/10/2023,384.99,6220-School Only Payments - Catering,THIRD PARTY PAYMENTS,INDEPENDENT UNIT WITHIN COUNCIL,REVENUE
Walsall Council,http://opendatacommunities.org/id/metropolitan-district-council/walsall ,WC155-552,31.10.2023,CHILDRENS CAPITAL,ADVANCED CONTRACTS (MIDLANDS) LTD,03/10/2023,"1,440.00",7150-Site Works Contractors,CAPITAL,"NEW CONSTRUCTION,CONVERSION & RENOVATION",CAPITAL
Walsall Council,http://opendatacommunities.org/id/metropolitan-district-council/walsall ,WC155-553,31.10.2023,CHILDRENS,ADVENTURELAND DAY NURSERY,16/10/2023,"3,429.97",1184-Other-Grants to Other Orgs,SUPPLIES & SERVICES,GRANTS (EXP) & SUBSCRIPTIONS,REVENUE
Walsall Council,http://opendatacommunities.org/id/metropolitan-district-council/walsall ,WC155-554,31.10.2023,CHILDRENS,ADVENTURELAND DAY NURSERY,16/10/2023,"8,814.73",1184-Other-Grants to Other Orgs,SUPPLIES & SERVICES,GRANTS (EXP) & SUBSCRIPTIONS,REVENUE
Walsall Council,http://opendatacommunities.org/id/metropolitan-district-council/walsall ,WC155-555,31.10.2023,ADULT SOCIAL CARE,ADVINIA CARE HOMES LTD - HAMMERWICH HALL CARE HOME,23/10/2023,"2,137.32",6541-Residential,THIRD PARTY PAYMENTS,PRIVATE CONTRACTOR,REVENUE
Walsall Council,http://opendatacommunities.org/id/metropolitan-district-council/walsall ,WC155-556,31.10.2023,ADULT SOCIAL CARE,ADVINIA CARE HOMES LTD - HAMMERWICH HALL CARE HOME,23/10/2023,"2,413.36",6541-Residential EMI,THIRD PARTY PAYMENTS,PRIVATE CONTRACTOR,REVENUE
Walsall Council,http://opendatacommunities.org/id/metropolitan-district-council/walsall ,WC155-557,31.10.2023,ADULT SOCIAL CARE,ADVINIA CARE HOMES LTD - HAMMERWICH HALL CARE HOME,23/10/2023,280.00,6541-Residential EMI,THIRD PARTY PAYMENTS,PRIVATE CONTRACTOR,REVENUE
Walsall Council,http://opendatacommunities.org/id/metropolitan-district-council/walsall ,WC155-558,31.10.2023,ADULT SOCIAL CARE,ADVINIA CARE HOMES LTD - HAMMERWICH HALL CARE HOME,23/10/2023,280.00,6541-Residential,THIRD PARTY PAYMENTS,PRIVATE CONTRACTOR,REVENUE
Walsall Council,http://opendatacommunities.org/id/metropolitan-district-council/walsall ,WC155-559,31.10.2023,ECONOMY & ENVIRONMENT CAPITAL,AECOM INFRASTRUCTURE & ENVIRONMENT UK LIMITED,03/10/2023,"-39,245.55",7200-Consultants Fees,CAPITAL,"NEW CONSTRUCTION,CONVERSION & RENOVATION",CAPITAL
Walsall Council,http://opendatacommunities.org/id/metropolitan-district-council/walsall ,WC155-560,31.10.2023,ECONOMY & ENVIRONMENT CAPITAL,AECOM INFRASTRUCTURE & ENVIRONMENT UK LIMITED,03/10/2023,"39,245.55",7200-Consultants Fees,CAPITAL,"NEW CONSTRUCTION,CONVERSION & RENOVATION",CAPITAL
Walsall Council,http://opendatacommunities.org/id/metropolitan-district-council/walsall ,WC155-561,31.10.2023,CHILDRENS,REDACTED,19/10/2023,525.00,6223-Foster Carers Maintenance Allowance,TRANSFER PAYMENTS,CHILDREN SOCIAL SERVICES CLIENT,REVENUE
Walsall Council,http://opendatacommunities.org/id/metropolitan-district-council/walsall ,WC155-562,31.10.2023,CHILDRENS,REDACTED,27/10/2023,950.00,6223-Foster Carers Maintenance Allowance,TRANSFER PAYMENTS,CHILDREN SOCIAL SERVICES CLIENT,REVENUE
Walsall Council,http://opendatacommunities.org/id/metropolitan-district-council/walsall ,WC155-563,31.10.2023,ADULT SOCIAL CARE,REDACTED,05/10/2023,597.12,6541-Direct Payment,THIRD PARTY PAYMENTS,PRIVATE CONTRACTOR,REVENUE
Walsall Council,http://opendatacommunities.org/id/metropolitan-district-council/walsall ,WC155-564,31.10.2023,ADULT SOCIAL CARE,REDACTED,05/10/2023,"1,585.50",6541-Direct Payment,THIRD PARTY PAYMENTS,PRIVATE CONTRACTOR,REVENUE
Walsall Council,http://opendatacommunities.org/id/metropolitan-district-council/walsall ,WC155-565,31.10.2023,CHILDRENS,REDACTED,19/10/2023,535.08,6223-Special Guardianship Orders,TRANSFER PAYMENTS,CHILDREN SOCIAL SERVICES CLIENT,REVENUE
Walsall Council,http://opendatacommunities.org/id/metropolitan-district-council/walsall ,WC155-566,31.10.2023,"ECONOMY, ENVIRONMENT & COMMUNITIES",AGROVISTA UK LTD,23/10/2023,374.00,6410-Materials,SUPPLIES & SERVICES,EQUIPMENT FURNITURE & MATERIALS,REVENUE
Walsall Council,http://opendatacommunities.org/id/metropolitan-district-council/walsall ,WC155-567,31.10.2023,"ECONOMY, ENVIRONMENT & COMMUNITIES",AGROVISTA UK LTD,31/10/2023,486.20,6410-Materials,SUPPLIES & SERVICES,EQUIPMENT FURNITURE & MATERIALS,REVENUE
Walsall Council,http://opendatacommunities.org/id/metropolitan-district-council/walsall ,WC155-568,31.10.2023,ADULT SOCIAL CARE,REDACTED,05/10/2023,"2,836.32",6541-Direct Payment,THIRD PARTY PAYMENTS,PRIVATE CONTRACTOR,REVENUE
Walsall Council,http://opendatacommunities.org/id/metropolitan-district-council/walsall ,WC155-569,31.10.2023,CHILDRENS,AIREY CONSULTANCY SERVICES LTD,06/10/2023,650.00,6633-Computer Equipment,SUPPLIES & SERVICES,COMMUNICATIONS & COMPUTING,REVENUE
Walsall Council,http://opendatacommunities.org/id/metropolitan-district-council/walsall ,WC155-570,31.10.2023,CHILDRENS CAPITAL,AIRTECH CONTROLS LTD,03/10/2023,995.00,7150-Site Works Contractors,CAPITAL,"NEW CONSTRUCTION,CONVERSION & RENOVATION",CAPITAL
Walsall Council,http://opendatacommunities.org/id/metropolitan-district-council/walsall ,WC155-571,31.10.2023,RESOURCES AND TRANSFORMATION,AIRTECH CONTROLS LTD,03/10/2023,"1,200.00",6310-Planned Maintenance,PREMISES,REPAIRS & MAINTENANCE,REVENUE
Walsall Council,http://opendatacommunities.org/id/metropolitan-district-council/walsall ,WC155-572,31.10.2023,ADULT SOCIAL CARE,REDACTED,05/10/2023,"1,125.44",6541-Direct Payment,THIRD PARTY PAYMENTS,PRIVATE CONTRACTOR,REVENUE
Walsall Council,http://opendatacommunities.org/id/metropolitan-district-council/walsall ,WC155-573,31.10.2023,ADULT SOCIAL CARE,REDACTED,05/10/2023,513.88,6541-Direct Payment,THIRD PARTY PAYMENTS,PRIVATE CONTRACTOR,REVENUE
Walsall Council,http://opendatacommunities.org/id/metropolitan-district-council/walsall ,WC155-574,31.10.2023,ADULT SOCIAL CARE,REDACTED,05/10/2023,288.32,6541-Direct Payment,THIRD PARTY PAYMENTS,PRIVATE CONTRACTOR,REVENUE
Walsall Council,http://opendatacommunities.org/id/metropolitan-district-council/walsall ,WC155-575,31.10.2023,ADULT SOCIAL CARE,REDACTED,05/10/2023,528.00,6541-Direct Payment,THIRD PARTY PAYMENTS,PRIVATE CONTRACTOR,REVENUE
Walsall Council,http://opendatacommunities.org/id/metropolitan-district-council/walsall ,WC155-576,31.10.2023,ADULT SOCIAL CARE,REDACTED,05/10/2023,"1,464.00",6541-Direct Payment,THIRD PARTY PAYMENTS,PRIVATE CONTRACTOR,REVENUE
Walsall Council,http://opendatacommunities.org/id/metropolitan-district-council/walsall ,WC155-577,31.10.2023,ADULT SOCIAL CARE,REDACTED,05/10/2023,"1,393.28",6541-Direct Payment,THIRD PARTY PAYMENTS,PRIVATE CONTRACTOR,REVENUE
Walsall Council,http://opendatacommunities.org/id/metropolitan-district-council/walsall ,WC155-578,31.10.2023,ADULT SOCIAL CARE,ALDBOURNE NURSING HOME LTD,23/10/2023,"5,920.00",6541-Nursing EMI,THIRD PARTY PAYMENTS,PRIVATE CONTRACTOR,REVENUE
Walsall Council,http://opendatacommunities.org/id/metropolitan-district-council/walsall ,WC155-579,31.10.2023,CHILDRENS,ALDRIDGE & BARONS LIMITED,09/10/2023,"1,703.80",6241-Hire of Vehicle with Driver,TRANSPORT,DIRECT TRANSPORT COSTS,REVENUE
Walsall Council,http://opendatacommunities.org/id/metropolitan-district-council/walsall ,WC155-580,31.10.2023,CHILDRENS,ALDRIDGE & BARONS LIMITED,09/10/2023,"1,910.09",6241-Hire of Vehicle with Driver,TRANSPORT,DIRECT TRANSPORT COSTS,REVENUE
Walsall Council,http://opendatacommunities.org/id/metropolitan-district-council/walsall ,WC155-581,31.10.2023,CHILDRENS,ALDRIDGE & BARONS LIMITED,09/10/2023,"2,002.00",6241-Hire of Vehicle with Driver,TRANSPORT,DIRECT TRANSPORT COSTS,REVENUE
Walsall Council,http://opendatacommunities.org/id/metropolitan-district-council/walsall ,WC155-582,31.10.2023,CHILDRENS,ALDRIDGE & BARONS LIMITED,09/10/2023,"1,690.00",6241-Hire of Vehicle with Driver,TRANSPORT,DIRECT TRANSPORT COSTS,REVENUE
Walsall Council,http://opendatacommunities.org/id/metropolitan-district-council/walsall ,WC155-583,31.10.2023,CHILDRENS,ALDRIDGE & BARONS LIMITED,09/10/2023,"2,108.70",6241-Hire of Vehicle with Driver,TRANSPORT,DIRECT TRANSPORT COSTS,REVENUE
Walsall Council,http://opendatacommunities.org/id/metropolitan-district-council/walsall ,WC155-584,31.10.2023,CHILDRENS,ALDRIDGE & BARONS LIMITED,09/10/2023,"2,177.50",6241-Hire of Vehicle with Driver,TRANSPORT,DIRECT TRANSPORT COSTS,REVENUE
Walsall Council,http://opendatacommunities.org/id/metropolitan-district-council/walsall ,WC155-585,31.10.2023,CHILDRENS,ALDRIDGE & BARONS LIMITED,09/10/2023,"1,062.00",6241-Hire of Vehicle with Driver,TRANSPORT,DIRECT TRANSPORT COSTS,REVENUE
Walsall Council,http://opendatacommunities.org/id/metropolitan-district-council/walsall ,WC155-586,31.10.2023,CHILDRENS,ALDRIDGE & BARONS LIMITED,09/10/2023,"1,339.80",6241-Hire of Vehicle with Driver,TRANSPORT,DIRECT TRANSPORT COSTS,REVENUE
Walsall Council,http://opendatacommunities.org/id/metropolitan-district-council/walsall ,WC155-587,31.10.2023,CHILDRENS,ALDRIDGE & BARONS LIMITED,09/10/2023,"2,778.70",6241-Hire of Vehicle with Driver,TRANSPORT,DIRECT TRANSPORT COSTS,REVENUE
Walsall Council,http://opendatacommunities.org/id/metropolitan-district-council/walsall ,WC155-588,31.10.2023,CHILDRENS,ALDRIDGE & BARONS LIMITED,09/10/2023,"1,450.80",6241-Hire of Vehicle with Driver,TRANSPORT,DIRECT TRANSPORT COSTS,REVENUE
Walsall Council,http://opendatacommunities.org/id/metropolitan-district-council/walsall ,WC155-589,31.10.2023,CHILDRENS,ALDRIDGE & BARONS LIMITED,09/10/2023,"1,800.00",6241-Hire of Vehicle with Driver,TRANSPORT,DIRECT TRANSPORT COSTS,REVENUE
Walsall Council,http://opendatacommunities.org/id/metropolitan-district-council/walsall ,WC155-590,31.10.2023,CHILDRENS,ALDRIDGE & BARONS LIMITED,09/10/2023,"1,885.00",6241-Hire of Vehicle with Driver,TRANSPORT,DIRECT TRANSPORT COSTS,REVENUE
Walsall Council,http://opendatacommunities.org/id/metropolitan-district-council/walsall ,WC155-591,31.10.2023,CHILDRENS,ALDRIDGE & BARONS LIMITED,09/10/2023,"1,876.94",6241-Hire of Vehicle with Driver,TRANSPORT,DIRECT TRANSPORT COSTS,REVENUE
Walsall Council,http://opendatacommunities.org/id/metropolitan-district-council/walsall ,WC155-592,31.10.2023,CHILDRENS,ALDRIDGE & BARONS LIMITED,09/10/2023,"1,521.00",6241-Hire of Vehicle with Driver,TRANSPORT,DIRECT TRANSPORT COSTS,REVENUE
Walsall Council,http://opendatacommunities.org/id/metropolitan-district-council/walsall ,WC155-593,31.10.2023,CHILDRENS,ALDRIDGE & BARONS LIMITED,09/10/2023,"1,687.50",6241-Hire of Vehicle with Driver,TRANSPORT,DIRECT TRANSPORT COSTS,REVENUE
Walsall Council,http://opendatacommunities.org/id/metropolitan-district-council/walsall ,WC155-594,31.10.2023,CHILDRENS,ALDRIDGE & BARONS LIMITED,09/10/2023,"1,989.00",6241-Hire of Vehicle with Driver,TRANSPORT,DIRECT TRANSPORT COSTS,REVENUE
Walsall Council,http://opendatacommunities.org/id/metropolitan-district-council/walsall ,WC155-595,31.10.2023,CHILDRENS,ALDRIDGE & BARONS LIMITED,09/10/2023,"1,820.00",6241-Hire of Vehicle with Driver,TRANSPORT,DIRECT TRANSPORT COSTS,REVENUE
Walsall Council,http://opendatacommunities.org/id/metropolitan-district-council/walsall ,WC155-596,31.10.2023,CHILDRENS,ALDRIDGE & BARONS LIMITED,09/10/2023,"2,131.20",6241-Hire of Vehicle with Driver,TRANSPORT,DIRECT TRANSPORT COSTS,REVENUE
Walsall Council,http://opendatacommunities.org/id/metropolitan-district-council/walsall ,WC155-597,31.10.2023,CHILDRENS,ALDRIDGE & BARONS LIMITED,09/10/2023,"1,500.00",6241-Hire of Vehicle with Driver,TRANSPORT,DIRECT TRANSPORT COSTS,REVENUE
Walsall Council,http://opendatacommunities.org/id/metropolitan-district-council/walsall ,WC155-598,31.10.2023,CHILDRENS,ALDRIDGE & BARONS LIMITED,09/10/2023,"2,340.00",6241-Hire of Vehicle with Driver,TRANSPORT,DIRECT TRANSPORT COSTS,REVENUE
Walsall Council,http://opendatacommunities.org/id/metropolitan-district-council/walsall ,WC155-599,31.10.2023,CHILDRENS,ALDRIDGE & BARONS LIMITED,09/10/2023,"1,287.00",6241-Hire of Vehicle with Driver,TRANSPORT,DIRECT TRANSPORT COSTS,REVENUE
Walsall Council,http://opendatacommunities.org/id/metropolitan-district-council/walsall ,WC155-600,31.10.2023,CHILDRENS,ALDRIDGE & BARONS LIMITED,09/10/2023,"1,859.00",6241-Hire of Vehicle with Driver,TRANSPORT,DIRECT TRANSPORT COSTS,REVENUE
Walsall Council,http://opendatacommunities.org/id/metropolitan-district-council/walsall ,WC155-601,31.10.2023,CHILDRENS,ALDRIDGE & BARONS LIMITED,09/10/2023,"2,250.00",6241-Hire of Vehicle with Driver,TRANSPORT,DIRECT TRANSPORT COSTS,REVENUE
Walsall Council,http://opendatacommunities.org/id/metropolitan-district-council/walsall ,WC155-602,31.10.2023,CHILDRENS,ALDRIDGE & BARONS LIMITED,09/10/2023,"1,350.00",6241-Hire of Vehicle with Driver,TRANSPORT,DIRECT TRANSPORT COSTS,REVENUE
Walsall Council,http://opendatacommunities.org/id/metropolitan-district-council/walsall ,WC155-603,31.10.2023,CHILDRENS,ALDRIDGE & BARONS LIMITED,09/10/2023,"2,062.97",6241-Hire of Vehicle with Driver,TRANSPORT,DIRECT TRANSPORT COSTS,REVENUE
Walsall Council,http://opendatacommunities.org/id/metropolitan-district-council/walsall ,WC155-604,31.10.2023,CHILDRENS,ALDRIDGE & BARONS LIMITED,09/10/2023,250.00,6241-Hire of Vehicle with Driver,TRANSPORT,DIRECT TRANSPORT COSTS,REVENUE
Walsall Council,http://opendatacommunities.org/id/metropolitan-district-council/walsall ,WC155-605,31.10.2023,CHILDRENS,ALDRIDGE & BARONS LIMITED,09/10/2023,"2,021.76",6241-Hire of Vehicle with Driver,TRANSPORT,DIRECT TRANSPORT COSTS,REVENUE
Walsall Council,http://opendatacommunities.org/id/metropolitan-district-council/walsall ,WC155-606,31.10.2023,CHILDRENS,ALDRIDGE & BARONS LIMITED,09/10/2023,"1,578.00",6241-Hire of Vehicle with Driver,TRANSPORT,DIRECT TRANSPORT COSTS,REVENUE
Walsall Council,http://opendatacommunities.org/id/metropolitan-district-council/walsall ,WC155-607,31.10.2023,CHILDRENS,ALDRIDGE & BARONS LIMITED,09/10/2023,"1,952.60",6241-Hire of Vehicle with Driver,TRANSPORT,DIRECT TRANSPORT COSTS,REVENUE
Walsall Council,http://opendatacommunities.org/id/metropolitan-district-council/walsall ,WC155-608,31.10.2023,CHILDRENS,ALDRIDGE & BARONS LIMITED,09/10/2023,"1,440.00",6241-Hire of Vehicle with Driver,TRANSPORT,DIRECT TRANSPORT COSTS,REVENUE
Walsall Council,http://opendatacommunities.org/id/metropolitan-district-council/walsall ,WC155-609,31.10.2023,CHILDRENS,ALDRIDGE & BARONS LIMITED,09/10/2023,"1,859.00",6241-Hire of Vehicle with Driver,TRANSPORT,DIRECT TRANSPORT COSTS,REVENUE
Walsall Council,http://opendatacommunities.org/id/metropolitan-district-council/walsall ,WC155-610,31.10.2023,CHILDRENS,ALDRIDGE & BARONS LIMITED,09/10/2023,"1,875.00",6241-Hire of Vehicle with Driver,TRANSPORT,DIRECT TRANSPORT COSTS,REVENUE
Walsall Council,http://opendatacommunities.org/id/metropolitan-district-council/walsall ,WC155-611,31.10.2023,CHILDRENS,ALDRIDGE & BARONS LIMITED,09/10/2023,"1,540.00",6241-Hire of Vehicle with Driver,TRANSPORT,DIRECT TRANSPORT COSTS,REVENUE
Walsall Council,http://opendatacommunities.org/id/metropolitan-district-council/walsall ,WC155-612,31.10.2023,CHILDRENS,ALDRIDGE & BARONS LIMITED,09/10/2023,625.00,6241-Hire of Vehicle with Driver,TRANSPORT,DIRECT TRANSPORT COSTS,REVENUE
Walsall Council,http://opendatacommunities.org/id/metropolitan-district-council/walsall ,WC155-613,31.10.2023,ADULT SOCIAL CARE,REDACTED,05/10/2023,"1,728.00",6541-Direct Payment,THIRD PARTY PAYMENTS,PRIVATE CONTRACTOR,REVENUE
Walsall Council,http://opendatacommunities.org/id/metropolitan-district-council/walsall ,WC155-614,31.10.2023,ADULT SOCIAL CARE,ALEXANDRA HOUSE CARE SERVICES LTD T/A STONEBRIDGE NURSING HOME,23/10/2023,"7,546.24",6541-Residential,THIRD PARTY PAYMENTS,PRIVATE CONTRACTOR,REVENUE
Walsall Council,http://opendatacommunities.org/id/metropolitan-district-council/walsall ,WC155-615,31.10.2023,ADULT SOCIAL CARE,ALEXANDRA HOUSE SUPPORT SERVICES LTD,23/10/2023,"5,936.00",6541-Residential,THIRD PARTY PAYMENTS,PRIVATE CONTRACTOR,REVENUE
Walsall Council,http://opendatacommunities.org/id/metropolitan-district-council/walsall ,WC155-616,31.10.2023,ADULT SOCIAL CARE,REDACTED,05/10/2023,"1,094.72",6541-Direct Payment,THIRD PARTY PAYMENTS,PRIVATE CONTRACTOR,REVENUE
Walsall Council,http://opendatacommunities.org/id/metropolitan-district-council/walsall ,WC155-617,31.10.2023,CHILDRENS,REDACTED,19/10/2023,355.56,6223-Special Guardianship Orders,TRANSFER PAYMENTS,CHILDREN SOCIAL SERVICES CLIENT,REVENUE
Walsall Council,http://opendatacommunities.org/id/metropolitan-district-council/walsall ,WC155-618,31.10.2023,ADULT SOCIAL CARE,REDACTED,19/10/2023,702.00,6541-Shared Lives,THIRD PARTY PAYMENTS,PRIVATE CONTRACTOR,REVENUE
Walsall Council,http://opendatacommunities.org/id/metropolitan-district-council/walsall ,WC155-619,31.10.2023,ECONOMY & ENVIRONMENT CAPITAL,ALLIANCE LEISURE SERVICES LTD,11/10/2023,"30,626.61",7200-Site Works Contractors,CAPITAL,"NEW CONSTRUCTION,CONVERSION & RENOVATION",CAPITAL
Walsall Council,http://opendatacommunities.org/id/metropolitan-district-council/walsall ,WC155-620,31.10.2023,RESOURCES AND TRANSFORMATION,ALLIED PUBLICITY SERVICES (MANCHESTER) LIMITED T/A APS GROUP,09/10/2023,"1,610.20",6312-External Printing Services,SUPPLIES & SERVICES,PRINTING STATIONERY & GENERAL OFFICE,REVENUE
Walsall Council,http://opendatacommunities.org/id/metropolitan-district-council/walsall ,WC155-621,31.10.2023,ADULT SOCIAL CARE,ALMA COURT,23/10/2023,"4,861.00",6541-Nursing EMI,THIRD PARTY PAYMENTS,PRIVATE CONTRACTOR,REVENUE
Walsall Council,http://opendatacommunities.org/id/metropolitan-district-council/walsall ,WC155-622,31.10.2023,ADULT SOCIAL CARE,ALMA COURT,23/10/2023,"4,263.00",6541-Residential,THIRD PARTY PAYMENTS,PRIVATE CONTRACTOR,REVENUE
Walsall Council,http://opendatacommunities.org/id/metropolitan-district-council/walsall ,WC155-623,31.10.2023,ADULT SOCIAL CARE,ALMA COURT,23/10/2023,"4,055.28",6541-Nursing EMI,THIRD PARTY PAYMENTS,PRIVATE CONTRACTOR,REVENUE
Walsall Council,http://opendatacommunities.org/id/metropolitan-district-council/walsall ,WC155-624,31.10.2023,ADULT SOCIAL CARE,ALMA COURT,23/10/2023,"6,718.40",6541-Residential,THIRD PARTY PAYMENTS,PRIVATE CONTRACTOR,REVENUE
Walsall Council,http://opendatacommunities.org/id/metropolitan-district-council/walsall ,WC155-625,31.10.2023,ADULT SOCIAL CARE,ALMA COURT,23/10/2023,"5,200.00",6541-Nursing EMI,THIRD PARTY PAYMENTS,PRIVATE CONTRACTOR,REVENUE
Walsall Council,http://opendatacommunities.org/id/metropolitan-district-council/walsall ,WC155-626,31.10.2023,RESOURCES AND TRANSFORMATION,ALMADEN UK LTD,05/10/2023,"2,400.00",6623-Computer Equipment,SUPPLIES & SERVICES,COMMUNICATIONS & COMPUTING,REVENUE
Walsall Council,http://opendatacommunities.org/id/metropolitan-district-council/walsall ,WC155-627,31.10.2023,RESOURCES AND TRANSFORMATION CAPITAL,ALMADEN UK LTD,05/10/2023,"3,542.00",7300-Consultants Fees,CAPITAL,"NEW CONSTRUCTION,CONVERSION & RENOVATION",CAPITAL
Walsall Council,http://opendatacommunities.org/id/metropolitan-district-council/walsall ,WC155-628,31.10.2023,CHILDRENS,ALMOZENE NURSERY & CHILDRENS CENTRE,16/10/2023,"3,719.25",1184-Other-Grants to Other Orgs,SUPPLIES & SERVICES,GRANTS (EXP) & SUBSCRIPTIONS,REVENUE
Walsall Council,http://opendatacommunities.org/id/metropolitan-district-council/walsall ,WC155-629,31.10.2023,CHILDRENS,ALMOZENE NURSERY & CHILDRENS CENTRE,16/10/2023,"4,957.20",1184-Other-Grants to Other Orgs,SUPPLIES & SERVICES,GRANTS (EXP) & SUBSCRIPTIONS,REVENUE
Walsall Council,http://opendatacommunities.org/id/metropolitan-district-council/walsall ,WC155-630,31.10.2023,ADULT SOCIAL CARE,ALPHA HEALTH CARE LTD,23/10/2023,"7,105.00",6541-Residential,THIRD PARTY PAYMENTS,PRIVATE CONTRACTOR,REVENUE
Walsall Council,http://opendatacommunities.org/id/metropolitan-district-council/walsall ,WC155-631,31.10.2023,ADULT SOCIAL CARE,ALPHA HEALTH CARE LTD,23/10/2023,"3,422.28",6541-Residential EMI,THIRD PARTY PAYMENTS,PRIVATE CONTRACTOR,REVENUE
Walsall Council,http://opendatacommunities.org/id/metropolitan-district-council/walsall ,WC155-632,31.10.2023,ADULT SOCIAL CARE,ALPHA HEALTH CARE LTD,23/10/2023,"-5,500.09",6541-Residential EMI,THIRD PARTY PAYMENTS,PRIVATE CONTRACTOR,REVENUE
Walsall Council,http://opendatacommunities.org/id/metropolitan-district-council/walsall ,WC155-633,31.10.2023,ADULT SOCIAL CARE,ALPHA HEALTH CARE LTD,23/10/2023,"3,047.12",6541-Nursing,THIRD PARTY PAYMENTS,PRIVATE CONTRACTOR,REVENUE
Walsall Council,http://opendatacommunities.org/id/metropolitan-district-council/walsall ,WC155-634,31.10.2023,ADULT SOCIAL CARE,ALPHA HEALTH CARE LTD,23/10/2023,"7,600.00",6541-Residential,THIRD PARTY PAYMENTS,PRIVATE CONTRACTOR,REVENUE
Walsall Council,http://opendatacommunities.org/id/metropolitan-district-council/walsall ,WC155-635,31.10.2023,ADULT SOCIAL CARE,ALPHA HEALTH CARE LTD,23/10/2023,"7,600.00",6541-Residential,THIRD PARTY PAYMENTS,PRIVATE CONTRACTOR,REVENUE
Walsall Council,http://opendatacommunities.org/id/metropolitan-district-council/walsall ,WC155-636,31.10.2023,ADULT SOCIAL CARE,ALPHA HEALTH CARE LTD,23/10/2023,"8,388.00",6541-Nursing EMI,THIRD PARTY PAYMENTS,PRIVATE CONTRACTOR,REVENUE
Walsall Council,http://opendatacommunities.org/id/metropolitan-district-council/walsall ,WC155-637,31.10.2023,ADULT SOCIAL CARE,ALPHA HEALTH CARE LTD,23/10/2023,"3,800.00",6541-Residential EMI,THIRD PARTY PAYMENTS,PRIVATE CONTRACTOR,REVENUE
Walsall Council,http://opendatacommunities.org/id/metropolitan-district-council/walsall ,WC155-638,31.10.2023,ADULT SOCIAL CARE,ALPHA HEALTH CARE LTD,23/10/2023,"9,205.71",6541-Nursing EMI,THIRD PARTY PAYMENTS,PRIVATE CONTRACTOR,REVENUE
Walsall Council,http://opendatacommunities.org/id/metropolitan-district-council/walsall ,WC155-639,31.10.2023,ADULT SOCIAL CARE,ALPHA HEALTH CARE LTD,23/10/2023,"3,723.08",6541-Nursing EMI,THIRD PARTY PAYMENTS,PRIVATE CONTRACTOR,REVENUE
Walsall Council,http://opendatacommunities.org/id/metropolitan-district-council/walsall ,WC155-640,31.10.2023,ADULT SOCIAL CARE,ALPHA HEALTH CARE LTD,23/10/2023,"-14,561.70",6541-Residential,THIRD PARTY PAYMENTS,PRIVATE CONTRACTOR,REVENUE
Walsall Council,http://opendatacommunities.org/id/metropolitan-district-council/walsall ,WC155-641,31.10.2023,ADULT SOCIAL CARE,ALPHA HEALTH CARE LTD,23/10/2023,"2,819.08",6541-Nursing EMI,THIRD PARTY PAYMENTS,PRIVATE CONTRACTOR,REVENUE
Walsall Council,http://opendatacommunities.org/id/metropolitan-district-council/walsall ,WC155-642,31.10.2023,ADULT SOCIAL CARE,ALPHA HEALTH CARE LTD,23/10/2023,"7,123.08",6541-Nursing EMI,THIRD PARTY PAYMENTS,PRIVATE CONTRACTOR,REVENUE
Walsall Council,http://opendatacommunities.org/id/metropolitan-district-council/walsall ,WC155-643,31.10.2023,ADULT SOCIAL CARE,ALPHA HEALTH CARE LTD,23/10/2023,"4,175.28",6541-Nursing EMI,THIRD PARTY PAYMENTS,PRIVATE CONTRACTOR,REVENUE
Walsall Council,http://opendatacommunities.org/id/metropolitan-district-council/walsall ,WC155-644,31.10.2023,ADULT SOCIAL CARE,ALPHA HEALTH CARE LTD,23/10/2023,"1,289.56",6541-Nursing,THIRD PARTY PAYMENTS,PRIVATE CONTRACTOR,REVENUE
Walsall Council,http://opendatacommunities.org/id/metropolitan-district-council/walsall ,WC155-645,31.10.2023,ADULT SOCIAL CARE,ALPHA HEALTH CARE LTD,23/10/2023,"3,090.44",6541-Residential,THIRD PARTY PAYMENTS,PRIVATE CONTRACTOR,REVENUE
Walsall Council,http://opendatacommunities.org/id/metropolitan-district-council/walsall ,WC155-646,31.10.2023,ADULT SOCIAL CARE,ALPHA HEALTH CARE LTD,23/10/2023,"3,567.32",6541-Residential EMI,THIRD PARTY PAYMENTS,PRIVATE CONTRACTOR,REVENUE
Walsall Council,http://opendatacommunities.org/id/metropolitan-district-council/walsall ,WC155-647,31.10.2023,ADULT SOCIAL CARE,ALPHA HEALTH CARE LTD,23/10/2023,"4,855.28",6541-Nursing EMI,THIRD PARTY PAYMENTS,PRIVATE CONTRACTOR,REVENUE
Walsall Council,http://opendatacommunities.org/id/metropolitan-district-council/walsall ,WC155-648,31.10.2023,ADULT SOCIAL CARE,ALPHA HEALTH CARE LTD,23/10/2023,"5,055.28",6541-Nursing EMI,THIRD PARTY PAYMENTS,PRIVATE CONTRACTOR,REVENUE
Walsall Council,http://opendatacommunities.org/id/metropolitan-district-council/walsall ,WC155-649,31.10.2023,ADULT SOCIAL CARE,ALPHA HEALTH CARE LTD,23/10/2023,"2,936.84",6541-Residential EMI,THIRD PARTY PAYMENTS,PRIVATE CONTRACTOR,REVENUE
Walsall Council,http://opendatacommunities.org/id/metropolitan-district-council/walsall ,WC155-650,31.10.2023,ADULT SOCIAL CARE,ALPHA HEALTH CARE LTD,23/10/2023,"3,960.00",6541-Nursing,THIRD PARTY PAYMENTS,PRIVATE CONTRACTOR,REVENUE
Walsall Council,http://opendatacommunities.org/id/metropolitan-district-council/walsall ,WC155-651,31.10.2023,ADULT SOCIAL CARE,ALPHA HEALTH CARE LTD,23/10/2023,"3,257.14",6541-Residential,THIRD PARTY PAYMENTS,PRIVATE CONTRACTOR,REVENUE
Walsall Council,http://opendatacommunities.org/id/metropolitan-district-council/walsall ,WC155-652,31.10.2023,ADULT SOCIAL CARE,ALPHA HEALTH CARE LTD,23/10/2023,"21,521.43",6541-Residential,THIRD PARTY PAYMENTS,PRIVATE CONTRACTOR,REVENUE
Walsall Council,http://opendatacommunities.org/id/metropolitan-district-council/walsall ,WC155-653,31.10.2023,ADULT SOCIAL CARE,ALPHA HEALTH CARE LTD,23/10/2023,"3,445.36",6541-Residential EMI,THIRD PARTY PAYMENTS,PRIVATE CONTRACTOR,REVENUE
Walsall Council,http://opendatacommunities.org/id/metropolitan-district-council/walsall ,WC155-654,31.10.2023,ADULT SOCIAL CARE,ALPHA HEALTH CARE LTD,23/10/2023,"2,813.36",6541-Residential EMI,THIRD PARTY PAYMENTS,PRIVATE CONTRACTOR,REVENUE
Walsall Council,http://opendatacommunities.org/id/metropolitan-district-council/walsall ,WC155-655,31.10.2023,ADULT SOCIAL CARE,ALPHA HEALTH CARE LTD,23/10/2023,"4,027.32",6541-Residential EMI,THIRD PARTY PAYMENTS,PRIVATE CONTRACTOR,REVENUE
Walsall Council,http://opendatacommunities.org/id/metropolitan-district-council/walsall ,WC155-656,31.10.2023,ADULT SOCIAL CARE,ALPHA HEALTH CARE LTD,23/10/2023,"6,343.36",6541-Residential,THIRD PARTY PAYMENTS,PRIVATE CONTRACTOR,REVENUE
Walsall Council,http://opendatacommunities.org/id/metropolitan-district-council/walsall ,WC155-657,31.10.2023,ADULT SOCIAL CARE,ALPHA HEALTH CARE LTD,23/10/2023,"2,905.36",6541-Nursing,THIRD PARTY PAYMENTS,PRIVATE CONTRACTOR,REVENUE
Walsall Council,http://opendatacommunities.org/id/metropolitan-district-council/walsall ,WC155-658,31.10.2023,ADULT SOCIAL CARE,ALPHA HEALTH CARE LTD,23/10/2023,"3,829.36",6541-Residential EMI,THIRD PARTY PAYMENTS,PRIVATE CONTRACTOR,REVENUE
Walsall Council,http://opendatacommunities.org/id/metropolitan-district-council/walsall ,WC155-659,31.10.2023,ADULT SOCIAL CARE,ALPHA HEALTH CARE LTD,23/10/2023,"7,600.00",6541-Residential,THIRD PARTY PAYMENTS,PRIVATE CONTRACTOR,REVENUE
Walsall Council,http://opendatacommunities.org/id/metropolitan-district-council/walsall ,WC155-660,31.10.2023,ADULT SOCIAL CARE,ALPHA HEALTH CARE LTD,23/10/2023,"3,721.16",6541-Nursing EMI,THIRD PARTY PAYMENTS,PRIVATE CONTRACTOR,REVENUE
Walsall Council,http://opendatacommunities.org/id/metropolitan-district-council/walsall ,WC155-661,31.10.2023,ADULT SOCIAL CARE,ALPHA HEALTH CARE LTD,23/10/2023,"3,800.00",6541-Residential,THIRD PARTY PAYMENTS,PRIVATE CONTRACTOR,REVENUE
Walsall Council,http://opendatacommunities.org/id/metropolitan-district-council/walsall ,WC155-662,31.10.2023,ADULT SOCIAL CARE,ALPHA HEALTH CARE LTD,23/10/2023,570.00,6541-Residential,THIRD PARTY PAYMENTS,PRIVATE CONTRACTOR,REVENUE
Walsall Council,http://opendatacommunities.org/id/metropolitan-district-council/walsall ,WC155-663,31.10.2023,ADULT SOCIAL CARE,ALPHA HEALTH CARE LTD,23/10/2023,"3,514.29",6541-Residential,THIRD PARTY PAYMENTS,PRIVATE CONTRACTOR,REVENUE
Walsall Council,http://opendatacommunities.org/id/metropolitan-district-council/walsall ,WC155-664,31.10.2023,ADULT SOCIAL CARE,ALPHA HEALTH CARE LTD,23/10/2023,450.00,6541-Nursing EMI,THIRD PARTY PAYMENTS,PRIVATE CONTRACTOR,REVENUE
Walsall Council,http://opendatacommunities.org/id/metropolitan-district-council/walsall ,WC155-665,31.10.2023,ADULT SOCIAL CARE,ALPHA HEALTH CARE LTD,23/10/2023,"2,413.36",6541-Residential EMI,THIRD PARTY PAYMENTS,PRIVATE CONTRACTOR,REVENUE
Walsall Council,http://opendatacommunities.org/id/metropolitan-district-council/walsall ,WC155-666,31.10.2023,ADULT SOCIAL CARE,ALPHA HEALTH CARE LTD,23/10/2023,"6,836.00",6541-Nursing EMI,THIRD PARTY PAYMENTS,PRIVATE CONTRACTOR,REVENUE
Walsall Council,http://opendatacommunities.org/id/metropolitan-district-council/walsall ,WC155-667,31.10.2023,ADULT SOCIAL CARE,ALPHA HEALTH CARE LTD,23/10/2023,"4,560.00",6541-Nursing,THIRD PARTY PAYMENTS,PRIVATE CONTRACTOR,REVENUE
Walsall Council,http://opendatacommunities.org/id/metropolitan-district-council/walsall ,WC155-668,31.10.2023,ADULT SOCIAL CARE,ALPHA HEALTH CARE LTD,23/10/2023,"5,000.00",6541-Residential,THIRD PARTY PAYMENTS,PRIVATE CONTRACTOR,REVENUE
Walsall Council,http://opendatacommunities.org/id/metropolitan-district-council/walsall ,WC155-669,31.10.2023,ADULT SOCIAL CARE,ALPHA HEALTH CARE LTD,23/10/2023,"4,440.00",6541-Nursing EMI,THIRD PARTY PAYMENTS,PRIVATE CONTRACTOR,REVENUE
Walsall Council,http://opendatacommunities.org/id/metropolitan-district-council/walsall ,WC155-670,31.10.2023,ADULT SOCIAL CARE,ALPHA HEALTH CARE LTD,23/10/2023,"1,140.00",6541-Residential,THIRD PARTY PAYMENTS,PRIVATE CONTRACTOR,REVENUE
Walsall Council,http://opendatacommunities.org/id/metropolitan-district-council/walsall ,WC155-671,31.10.2023,ADULT SOCIAL CARE,ALPHA HEALTH CARE LTD,23/10/2023,"8,963.91",6541-Residential EMI,THIRD PARTY PAYMENTS,PRIVATE CONTRACTOR,REVENUE
Walsall Council,http://opendatacommunities.org/id/metropolitan-district-council/walsall ,WC155-672,31.10.2023,CHILDRENS,ALPHA TRAINING ACADEMY UK LTD,04/10/2023,"1,530.00",1187-Materials,SUPPLIES & SERVICES,EQUIPMENT FURNITURE & MATERIALS,REVENUE
Walsall Council,http://opendatacommunities.org/id/metropolitan-district-council/walsall ,WC155-673,31.10.2023,CHILDRENS,ALPHA TRAINING ACADEMY UK LTD,04/10/2023,"2,040.00",1187-Materials,SUPPLIES & SERVICES,EQUIPMENT FURNITURE & MATERIALS,REVENUE
Walsall Council,http://opendatacommunities.org/id/metropolitan-district-council/walsall ,WC155-674,31.10.2023,CHILDRENS,ALPHA TRAINING ACADEMY UK LTD,23/10/2023,"1,122.00",1187-Materials,SUPPLIES & SERVICES,EQUIPMENT FURNITURE & MATERIALS,REVENUE
Walsall Council,http://opendatacommunities.org/id/metropolitan-district-council/walsall ,WC155-675,31.10.2023,CHILDRENS,ALPHA TRAINING ACADEMY UK LTD,27/10/2023,"1,999.50",1220-Top Up Funding -Grants to Schools,SUPPLIES & SERVICES,GRANTS (EXP) & SUBSCRIPTIONS,REVENUE
Walsall Council,http://opendatacommunities.org/id/metropolitan-district-council/walsall ,WC155-676,31.10.2023,CHILDRENS,ALPHA TRAINING ACADEMY UK LTD,18/10/2023,"2,666.66",1220-Top Up Funding -Grants to Schools,SUPPLIES & SERVICES,GRANTS (EXP) & SUBSCRIPTIONS,REVENUE
Walsall Council,http://opendatacommunities.org/id/metropolitan-district-council/walsall ,WC155-677,31.10.2023,CHILDRENS,ALPHABIOLABS,04/10/2023,530.00,6222-Professional Fees & Services,SUPPLIES & SERVICES,SERVICES,REVENUE
Walsall Council,http://opendatacommunities.org/id/metropolitan-district-council/walsall ,WC155-678,31.10.2023,CHILDRENS,ALPHABIOLABS,11/10/2023,"1,505.00",6222-Professional Fees & Services,SUPPLIES & SERVICES,SERVICES,REVENUE
Walsall Council,http://opendatacommunities.org/id/metropolitan-district-council/walsall ,WC155-679,31.10.2023,RESOURCES AND TRANSFORMATION,ALTAIR ENGINEERING LTD,03/10/2023,"3,900.00",6623-Computer Equipment,SUPPLIES & SERVICES,COMMUNICATIONS & COMPUTING,REVENUE
Walsall Council,http://opendatacommunities.org/id/metropolitan-district-council/walsall ,WC155-680,31.10.2023,CHILDRENS,ALVAR KARTING CENTRE,23/10/2023,950.00,6211-Other Expenses,SUPPLIES & SERVICES,EXPENSES,REVENUE
Walsall Council,http://opendatacommunities.org/id/metropolitan-district-council/walsall ,WC155-681,31.10.2023,ADULT SOCIAL CARE,REDACTED,05/10/2023,708.32,6541-Direct Payment,THIRD PARTY PAYMENTS,PRIVATE CONTRACTOR,REVENUE
Walsall Council,http://opendatacommunities.org/id/metropolitan-district-council/walsall ,WC155-682,31.10.2023,CHILDRENS,AMAH NURSERIES LIMITED T/A BANANA MOON WALSALL,16/10/2023,"2,892.75",1184-Other-Grants to Other Orgs,SUPPLIES & SERVICES,GRANTS (EXP) & SUBSCRIPTIONS,REVENUE
Walsall Council,http://opendatacommunities.org/id/metropolitan-district-council/walsall ,WC155-683,31.10.2023,CHILDRENS,AMAH NURSERIES LIMITED T/A BANANA MOON WALSALL,16/10/2023,"2,332.80",1184-Other-Grants to Other Orgs,SUPPLIES & SERVICES,GRANTS (EXP) & SUBSCRIPTIONS,REVENUE
Walsall Council,http://opendatacommunities.org/id/metropolitan-district-council/walsall ,WC155-684,31.10.2023,CHILDRENS,LITTLE BLOSSOMS CHILDMINDING,16/10/2023,"1,102.00",6223-Creche Facilities,SUPPLIES & SERVICES,SERVICES,REVENUE
Walsall Council,http://opendatacommunities.org/id/metropolitan-district-council/walsall ,WC155-685,31.10.2023,CHILDRENS,AMANS TRAVEL LTD,09/10/2023,"2,018.25",6241-Hire of Vehicle with Driver,TRANSPORT,DIRECT TRANSPORT COSTS,REVENUE
Walsall Council,http://opendatacommunities.org/id/metropolitan-district-council/walsall ,WC155-686,31.10.2023,CHILDRENS,AMANS TRAVEL LTD,09/10/2023,"4,550.00",6241-Hire of Vehicle with Driver,TRANSPORT,DIRECT TRANSPORT COSTS,REVENUE
Walsall Council,http://opendatacommunities.org/id/metropolitan-district-council/walsall ,WC155-687,31.10.2023,CHILDRENS,AMANS TRAVEL LTD,09/10/2023,"2,840.50",6241-Hire of Vehicle with Driver,TRANSPORT,DIRECT TRANSPORT COSTS,REVENUE
Walsall Council,http://opendatacommunities.org/id/metropolitan-district-council/walsall ,WC155-688,31.10.2023,CHILDRENS,AMANS TRAVEL LTD,09/10/2023,"2,840.50",6241-Hire of Vehicle with Driver,TRANSPORT,DIRECT TRANSPORT COSTS,REVENUE
Walsall Council,http://opendatacommunities.org/id/metropolitan-district-council/walsall ,WC155-689,31.10.2023,CHILDRENS,AMANS TRAVEL LTD,09/10/2023,"2,840.50",6241-Hire of Vehicle with Driver,TRANSPORT,DIRECT TRANSPORT COSTS,REVENUE
Walsall Council,http://opendatacommunities.org/id/metropolitan-district-council/walsall ,WC155-690,31.10.2023,ADULT SOCIAL CARE,REDACTED,05/10/2023,"2,024.84",6541-Direct Payment,THIRD PARTY PAYMENTS,PRIVATE CONTRACTOR,REVENUE
Walsall Council,http://opendatacommunities.org/id/metropolitan-district-council/walsall ,WC155-691,31.10.2023,RESOURCES AND TRANSFORMATION,AMBUR RADIO,27/10/2023,"1,920.00",6312-Grants to Other Orgs,SUPPLIES & SERVICES,GRANTS (EXP) & SUBSCRIPTIONS,REVENUE
Walsall Council,http://opendatacommunities.org/id/metropolitan-district-council/walsall ,WC155-692,31.10.2023,ECONOMY & ENVIRONMENT CAPITAL,AMEY LG LIMITED,05/10/2023,"13,852.30",7200-Site Works Contractors,CAPITAL,"NEW CONSTRUCTION,CONVERSION & RENOVATION",CAPITAL
Walsall Council,http://opendatacommunities.org/id/metropolitan-district-council/walsall ,WC155-693,31.10.2023,CHILDRENS,AMG NURSING CARE SERVICES,16/10/2023,674.30,6220-Professional Fees & Services,SUPPLIES & SERVICES,SERVICES,REVENUE
Walsall Council,http://opendatacommunities.org/id/metropolitan-district-council/walsall ,WC155-694,31.10.2023,CHILDRENS,AMG NURSING CARE SERVICES,05/10/2023,535.30,6220-Professional Fees & Services,SUPPLIES & SERVICES,SERVICES,REVENUE
Walsall Council,http://opendatacommunities.org/id/metropolitan-district-council/walsall ,WC155-695,31.10.2023,CHILDRENS,AMG NURSING CARE SERVICES,05/10/2023,"-1,163.17",6220-Professional Fees & Services,SUPPLIES & SERVICES,SERVICES,REVENUE
Walsall Council,http://opendatacommunities.org/id/metropolitan-district-council/walsall ,WC155-696,31.10.2023,CHILDRENS,AMG NURSING CARE SERVICES,05/10/2023,"1,163.17",6220-Professional Fees & Services,SUPPLIES & SERVICES,SERVICES,REVENUE
Walsall Council,http://opendatacommunities.org/id/metropolitan-district-council/walsall ,WC155-697,31.10.2023,CHILDRENS,AMG NURSING CARE SERVICES,06/10/2023,272.90,6220-Professional Fees & Services,SUPPLIES & SERVICES,SERVICES,REVENUE
Walsall Council,http://opendatacommunities.org/id/metropolitan-district-council/walsall ,WC155-698,31.10.2023,CHILDRENS,AMG NURSING CARE SERVICES,16/10/2023,535.30,6220-Professional Fees & Services,SUPPLIES & SERVICES,SERVICES,REVENUE
Walsall Council,http://opendatacommunities.org/id/metropolitan-district-council/walsall ,WC155-699,31.10.2023,CHILDRENS,AMG NURSING CARE SERVICES,16/10/2023,"1,469.20",6220-Professional Fees & Services,SUPPLIES & SERVICES,SERVICES,REVENUE
Walsall Council,http://opendatacommunities.org/id/metropolitan-district-council/walsall ,WC155-700,31.10.2023,CHILDRENS,AMG NURSING CARE SERVICES,16/10/2023,521.86,6220-Professional Fees & Services,SUPPLIES & SERVICES,SERVICES,REVENUE
Walsall Council,http://opendatacommunities.org/id/metropolitan-district-council/walsall ,WC155-701,31.10.2023,CHILDRENS,AMG NURSING CARE SERVICES,20/10/2023,535.30,6220-Professional Fees & Services,SUPPLIES & SERVICES,SERVICES,REVENUE
Walsall Council,http://opendatacommunities.org/id/metropolitan-district-council/walsall ,WC155-702,31.10.2023,CHILDRENS,AMG NURSING CARE SERVICES,23/10/2023,"1,337.81",6220-Professional Fees & Services,SUPPLIES & SERVICES,SERVICES,REVENUE
Walsall Council,http://opendatacommunities.org/id/metropolitan-district-council/walsall ,WC155-703,31.10.2023,CHILDRENS,AMG NURSING CARE SERVICES,26/10/2023,464.41,6220-Professional Fees & Services,SUPPLIES & SERVICES,SERVICES,REVENUE
Walsall Council,http://opendatacommunities.org/id/metropolitan-district-council/walsall ,WC155-704,31.10.2023,CHILDRENS,AMG NURSING CARE SERVICES,30/10/2023,535.30,6220-Professional Fees & Services,SUPPLIES & SERVICES,SERVICES,REVENUE
Walsall Council,http://opendatacommunities.org/id/metropolitan-district-council/walsall ,WC155-705,31.10.2023,CHILDRENS,AMG NURSING CARE SERVICES,30/10/2023,"1,477.15",6220-Professional Fees & Services,SUPPLIES & SERVICES,SERVICES,REVENUE
Walsall Council,http://opendatacommunities.org/id/metropolitan-district-council/walsall ,WC155-706,31.10.2023,CHILDRENS,AMG NURSING CARE SERVICES,30/10/2023,507.50,6220-Professional Fees & Services,SUPPLIES & SERVICES,SERVICES,REVENUE
Walsall Council,http://opendatacommunities.org/id/metropolitan-district-council/walsall ,WC155-707,31.10.2023,CHILDRENS,AMMA CHILDCARE SERVICES LTD,30/10/2023,"18,570.00",6223-External Residential Care-Oth Agency Provision,THIRD PARTY PAYMENTS,PRIVATE CONTRACTOR,REVENUE
Walsall Council,http://opendatacommunities.org/id/metropolitan-district-council/walsall ,WC155-708,31.10.2023,CHILDRENS,REDACTED,19/10/2023,604.00,6223-Special Guardianship Orders,TRANSFER PAYMENTS,CHILDREN SOCIAL SERVICES CLIENT,REVENUE
Walsall Council,http://opendatacommunities.org/id/metropolitan-district-council/walsall ,WC155-709,31.10.2023,CHILDRENS,REDACTED,19/10/2023,374.00,6223-Special Guardianship Orders,TRANSFER PAYMENTS,CHILDREN SOCIAL SERVICES CLIENT,REVENUE
Walsall Council,http://opendatacommunities.org/id/metropolitan-district-council/walsall ,WC155-710,31.10.2023,ADULT SOCIAL CARE,ANCHOR HANOVER GROUP - BLOOMFIELD COURT,23/10/2023,"2,413.36",6541-Residential EMI,THIRD PARTY PAYMENTS,PRIVATE CONTRACTOR,REVENUE
Walsall Council,http://opendatacommunities.org/id/metropolitan-district-council/walsall ,WC155-711,31.10.2023,ADULT SOCIAL CARE,ANCHOR HANOVER GROUP - BLOOMFIELD COURT,23/10/2023,"15,859.22",6541-Residential EMI,THIRD PARTY PAYMENTS,PRIVATE CONTRACTOR,REVENUE
Walsall Council,http://opendatacommunities.org/id/metropolitan-district-council/walsall ,WC155-712,31.10.2023,ADULT SOCIAL CARE,ANCHOR HANOVER GROUP - HARDEN HALL CARE HOME,23/10/2023,"2,413.36",6541-Residential EMI,THIRD PARTY PAYMENTS,PRIVATE CONTRACTOR,REVENUE
Walsall Council,http://opendatacommunities.org/id/metropolitan-district-council/walsall ,WC155-713,31.10.2023,ADULT SOCIAL CARE,ANCHOR HANOVER GROUP - HARDEN HALL CARE HOME,23/10/2023,"2,413.36",6541-Residential EMI,THIRD PARTY PAYMENTS,PRIVATE CONTRACTOR,REVENUE
Walsall Council,http://opendatacommunities.org/id/metropolitan-district-council/walsall ,WC155-714,31.10.2023,ADULT SOCIAL CARE,ANCHOR HANOVER GROUP - HARDEN HALL CARE HOME,23/10/2023,"2,137.32",6541-Residential,THIRD PARTY PAYMENTS,PRIVATE CONTRACTOR,REVENUE
Walsall Council,http://opendatacommunities.org/id/metropolitan-district-council/walsall ,WC155-715,31.10.2023,ADULT SOCIAL CARE,ANCHOR HANOVER GROUP - HARDEN HALL CARE HOME,23/10/2023,"2,413.36",6541-Residential EMI,THIRD PARTY PAYMENTS,PRIVATE CONTRACTOR,REVENUE
Walsall Council,http://opendatacommunities.org/id/metropolitan-district-council/walsall ,WC155-716,31.10.2023,ADULT SOCIAL CARE,ANCHOR HANOVER GROUP - HARDEN HALL CARE HOME,23/10/2023,"2,413.36",6541-Residential EMI,THIRD PARTY PAYMENTS,PRIVATE CONTRACTOR,REVENUE
Walsall Council,http://opendatacommunities.org/id/metropolitan-district-council/walsall ,WC155-717,31.10.2023,ADULT SOCIAL CARE,ANCHOR HANOVER GROUP - HARDEN HALL CARE HOME,23/10/2023,"2,413.36",6541-Residential EMI,THIRD PARTY PAYMENTS,PRIVATE CONTRACTOR,REVENUE
Walsall Council,http://opendatacommunities.org/id/metropolitan-district-council/walsall ,WC155-718,31.10.2023,ADULT SOCIAL CARE,ANCHOR HANOVER GROUP - HARDEN HALL CARE HOME,23/10/2023,"2,773.36",6541-Residential EMI,THIRD PARTY PAYMENTS,PRIVATE CONTRACTOR,REVENUE
Walsall Council,http://opendatacommunities.org/id/metropolitan-district-council/walsall ,WC155-719,31.10.2023,ADULT SOCIAL CARE,ANCHOR HANOVER GROUP - HARDEN HALL CARE HOME,23/10/2023,"2,773.36",6541-Residential EMI,THIRD PARTY PAYMENTS,PRIVATE CONTRACTOR,REVENUE
Walsall Council,http://opendatacommunities.org/id/metropolitan-district-council/walsall ,WC155-720,31.10.2023,ADULT SOCIAL CARE,ANCHOR HANOVER GROUP - HARDEN HALL CARE HOME,23/10/2023,"2,693.36",6541-Residential EMI,THIRD PARTY PAYMENTS,PRIVATE CONTRACTOR,REVENUE
Walsall Council,http://opendatacommunities.org/id/metropolitan-district-council/walsall ,WC155-721,31.10.2023,ADULT SOCIAL CARE,ANCHOR HANOVER GROUP - HARDEN HALL CARE HOME,23/10/2023,"5,351.40",6541-Residential,THIRD PARTY PAYMENTS,PRIVATE CONTRACTOR,REVENUE
Walsall Council,http://opendatacommunities.org/id/metropolitan-district-council/walsall ,WC155-722,31.10.2023,ADULT SOCIAL CARE,ANCHOR HANOVER GROUP - HARDEN HALL CARE HOME,23/10/2023,"2,413.36",6541-Residential EMI,THIRD PARTY PAYMENTS,PRIVATE CONTRACTOR,REVENUE
Walsall Council,http://opendatacommunities.org/id/metropolitan-district-council/walsall ,WC155-723,31.10.2023,ADULT SOCIAL CARE,ANCHOR HANOVER GROUP - HARDEN HALL CARE HOME,23/10/2023,"2,413.36",6541-Residential EMI,THIRD PARTY PAYMENTS,PRIVATE CONTRACTOR,REVENUE
Walsall Council,http://opendatacommunities.org/id/metropolitan-district-council/walsall ,WC155-724,31.10.2023,ADULT SOCIAL CARE,ANCHOR HANOVER GROUP - HARDEN HALL CARE HOME,23/10/2023,"2,413.36",6541-Residential EMI,THIRD PARTY PAYMENTS,PRIVATE CONTRACTOR,REVENUE
Walsall Council,http://opendatacommunities.org/id/metropolitan-district-council/walsall ,WC155-725,31.10.2023,ADULT SOCIAL CARE,ANCHOR HANOVER GROUP - HARDEN HALL CARE HOME,23/10/2023,"2,773.36",6541-Residential EMI,THIRD PARTY PAYMENTS,PRIVATE CONTRACTOR,REVENUE
Walsall Council,http://opendatacommunities.org/id/metropolitan-district-council/walsall ,WC155-726,31.10.2023,ADULT SOCIAL CARE,ANCHOR HANOVER GROUP - HARDEN HALL CARE HOME,23/10/2023,"2,413.36",6541-Residential EMI,THIRD PARTY PAYMENTS,PRIVATE CONTRACTOR,REVENUE
Walsall Council,http://opendatacommunities.org/id/metropolitan-district-council/walsall ,WC155-727,31.10.2023,ADULT SOCIAL CARE,ANCHOR HANOVER GROUP - HARDEN HALL CARE HOME,23/10/2023,"2,773.36",6541-Residential EMI,THIRD PARTY PAYMENTS,PRIVATE CONTRACTOR,REVENUE
Walsall Council,http://opendatacommunities.org/id/metropolitan-district-council/walsall ,WC155-728,31.10.2023,ADULT SOCIAL CARE,ANCHOR HANOVER GROUP - HARDEN HALL CARE HOME,23/10/2023,"3,268.61",6541-Residential EMI,THIRD PARTY PAYMENTS,PRIVATE CONTRACTOR,REVENUE
Walsall Council,http://opendatacommunities.org/id/metropolitan-district-council/walsall ,WC155-729,31.10.2023,ADULT SOCIAL CARE,ANCHOR HANOVER GROUP - HARDEN HALL CARE HOME,23/10/2023,"2,613.36",6541-Residential EMI,THIRD PARTY PAYMENTS,PRIVATE CONTRACTOR,REVENUE
Walsall Council,http://opendatacommunities.org/id/metropolitan-district-council/walsall ,WC155-730,31.10.2023,ADULT SOCIAL CARE,ANCHOR HANOVER GROUP - HARDEN HALL CARE HOME,23/10/2023,"2,773.36",6541-Residential EMI,THIRD PARTY PAYMENTS,PRIVATE CONTRACTOR,REVENUE
Walsall Council,http://opendatacommunities.org/id/metropolitan-district-council/walsall ,WC155-731,31.10.2023,ADULT SOCIAL CARE,ANCHOR HANOVER GROUP - HARDEN HALL CARE HOME,23/10/2023,"-2,442.65",6541-Residential,THIRD PARTY PAYMENTS,PRIVATE CONTRACTOR,REVENUE
Walsall Council,http://opendatacommunities.org/id/metropolitan-district-council/walsall ,WC155-732,31.10.2023,ADULT SOCIAL CARE,ANCHOR HANOVER GROUP - HARDEN HALL CARE HOME,23/10/2023,"2,773.36",6541-Residential EMI,THIRD PARTY PAYMENTS,PRIVATE CONTRACTOR,REVENUE
Walsall Council,http://opendatacommunities.org/id/metropolitan-district-council/walsall ,WC155-733,31.10.2023,ADULT SOCIAL CARE,ANCHOR HANOVER GROUP - HARDEN HALL CARE HOME,23/10/2023,"2,497.32",6541-Residential,THIRD PARTY PAYMENTS,PRIVATE CONTRACTOR,REVENUE
Walsall Council,http://opendatacommunities.org/id/metropolitan-district-council/walsall ,WC155-734,31.10.2023,ADULT SOCIAL CARE,ANCHOR HANOVER GROUP - HARDEN HALL CARE HOME,23/10/2023,"2,773.36",6541-Residential EMI,THIRD PARTY PAYMENTS,PRIVATE CONTRACTOR,REVENUE
Walsall Council,http://opendatacommunities.org/id/metropolitan-district-council/walsall ,WC155-735,31.10.2023,ADULT SOCIAL CARE,ANCHOR HANOVER GROUP - HARDEN HALL CARE HOME,23/10/2023,"2,773.36",6541-Residential EMI,THIRD PARTY PAYMENTS,PRIVATE CONTRACTOR,REVENUE
Walsall Council,http://opendatacommunities.org/id/metropolitan-district-council/walsall ,WC155-736,31.10.2023,ADULT SOCIAL CARE,ANCHOR HANOVER GROUP - HARDEN HALL CARE HOME,23/10/2023,"2,773.36",6541-Residential EMI,THIRD PARTY PAYMENTS,PRIVATE CONTRACTOR,REVENUE
Walsall Council,http://opendatacommunities.org/id/metropolitan-district-council/walsall ,WC155-737,31.10.2023,ADULT SOCIAL CARE,ANCHOR HANOVER GROUP - HARDEN HALL CARE HOME,23/10/2023,"2,773.36",6541-Residential EMI,THIRD PARTY PAYMENTS,PRIVATE CONTRACTOR,REVENUE
Walsall Council,http://opendatacommunities.org/id/metropolitan-district-council/walsall ,WC155-738,31.10.2023,ADULT SOCIAL CARE,ANCHOR HANOVER GROUP - HARDEN HALL CARE HOME,23/10/2023,"2,137.32",6541-Residential,THIRD PARTY PAYMENTS,PRIVATE CONTRACTOR,REVENUE
Walsall Council,http://opendatacommunities.org/id/metropolitan-district-council/walsall ,WC155-739,31.10.2023,ADULT SOCIAL CARE,ANCHOR HANOVER GROUP - HARDEN HALL CARE HOME,23/10/2023,"2,137.32",6541-Residential,THIRD PARTY PAYMENTS,PRIVATE CONTRACTOR,REVENUE
Walsall Council,http://opendatacommunities.org/id/metropolitan-district-council/walsall ,WC155-740,31.10.2023,ADULT SOCIAL CARE,ANCHOR HANOVER GROUP - HARDEN HALL CARE HOME,23/10/2023,"4,657.52",6541-Residential,THIRD PARTY PAYMENTS,PRIVATE CONTRACTOR,REVENUE
Walsall Council,http://opendatacommunities.org/id/metropolitan-district-council/walsall ,WC155-741,31.10.2023,ADULT SOCIAL CARE,ANCHOR HANOVER GROUP - HARDEN HALL CARE HOME,23/10/2023,"6,339.11",6541-Residential EMI,THIRD PARTY PAYMENTS,PRIVATE CONTRACTOR,REVENUE
Walsall Council,http://opendatacommunities.org/id/metropolitan-district-council/walsall ,WC155-742,31.10.2023,CHILDRENS,REDACTED,19/10/2023,355.56,6223-Special Guardianship Orders,TRANSFER PAYMENTS,CHILDREN SOCIAL SERVICES CLIENT,REVENUE
Walsall Council,http://opendatacommunities.org/id/metropolitan-district-council/walsall ,WC155-743,31.10.2023,ADULT SOCIAL CARE,REDACTED,05/10/2023,763.80,6541-Direct Payment,THIRD PARTY PAYMENTS,PRIVATE CONTRACTOR,REVENUE
Walsall Council,http://opendatacommunities.org/id/metropolitan-district-council/walsall ,WC155-744,31.10.2023,ADULT SOCIAL CARE,REDACTED,05/10/2023,"3,132.00",6541-Direct Payment,THIRD PARTY PAYMENTS,PRIVATE CONTRACTOR,REVENUE
Walsall Council,http://opendatacommunities.org/id/metropolitan-district-council/walsall ,WC155-745,31.10.2023,CHILDRENS CAPITAL,ANDREWS ELECTRICAL LTD,02/10/2023,"6,485.00",7150-Site Works Contractors,CAPITAL,"NEW CONSTRUCTION,CONVERSION & RENOVATION",CAPITAL
Walsall Council,http://opendatacommunities.org/id/metropolitan-district-council/walsall ,WC155-746,31.10.2023,CHILDRENS CAPITAL,ANDREWS ELECTRICAL LTD,18/10/2023,"2,216.00",7155-Site Works Contractors,CAPITAL,"NEW CONSTRUCTION,CONVERSION & RENOVATION",CAPITAL
Walsall Council,http://opendatacommunities.org/id/metropolitan-district-council/walsall ,WC155-747,31.10.2023,CHILDRENS CAPITAL,ANDREWS ELECTRICAL LTD,25/10/2023,"2,150.00",7150-Site Works Contractors,CAPITAL,"NEW CONSTRUCTION,CONVERSION & RENOVATION",CAPITAL
Walsall Council,http://opendatacommunities.org/id/metropolitan-district-council/walsall ,WC155-748,31.10.2023,CHILDRENS,ANDY GALE HOUSING CONSULTANCY,09/10/2023,"9,900.00",6314-Professional Fees & Services,SUPPLIES & SERVICES,SERVICES,REVENUE
Walsall Council,http://opendatacommunities.org/id/metropolitan-district-council/walsall ,WC155-749,31.10.2023,CHILDRENS,REDACTED,19/10/2023,401.32,6223-Special Guardianship Orders,TRANSFER PAYMENTS,CHILDREN SOCIAL SERVICES CLIENT,REVENUE
Walsall Council,http://opendatacommunities.org/id/metropolitan-district-council/walsall ,WC155-750,31.10.2023,CHILDRENS,REDACTED,19/10/2023,352.00,6223-Special Guardianship Orders,TRANSFER PAYMENTS,CHILDREN SOCIAL SERVICES CLIENT,REVENUE
Walsall Council,http://opendatacommunities.org/id/metropolitan-district-council/walsall ,WC155-751,31.10.2023,CHILDRENS,ANGELS AND BUTTERFLIES CHILDMINDING,16/10/2023,826.50,1184-Other-Grants to Other Orgs,SUPPLIES & SERVICES,GRANTS (EXP) & SUBSCRIPTIONS,REVENUE
Walsall Council,http://opendatacommunities.org/id/metropolitan-district-council/walsall ,WC155-752,31.10.2023,CHILDRENS,ANGELS AND BUTTERFLIES CHILDMINDING,16/10/2023,"1,786.05",1184-Other-Grants to Other Orgs,SUPPLIES & SERVICES,GRANTS (EXP) & SUBSCRIPTIONS,REVENUE
Walsall Council,http://opendatacommunities.org/id/metropolitan-district-council/walsall ,WC155-753,31.10.2023,ADULT SOCIAL CARE,REDACTED,05/10/2023,"1,775.04",6541-Direct Payment,THIRD PARTY PAYMENTS,PRIVATE CONTRACTOR,REVENUE
Walsall Council,http://opendatacommunities.org/id/metropolitan-district-council/walsall ,WC155-754,31.10.2023,CHILDRENS,REDACTED,19/10/2023,534.00,6223-Internal Foster Carers-Carer Fees,TRANSFER PAYMENTS,CHILDREN SOCIAL SERVICES CLIENT,REVENUE
Walsall Council,http://opendatacommunities.org/id/metropolitan-district-council/walsall ,WC155-755,31.10.2023,CHILDRENS,REDACTED,19/10/2023,756.00,6223-Foster Carers Maintenance Allowance,TRANSFER PAYMENTS,CHILDREN SOCIAL SERVICES CLIENT,REVENUE
Walsall Council,http://opendatacommunities.org/id/metropolitan-district-council/walsall ,WC155-756,31.10.2023,ADULT SOCIAL CARE,REDACTED,04/10/2023,512.82,6541-Shared Lives,THIRD PARTY PAYMENTS,PRIVATE CONTRACTOR,REVENUE
Walsall Council,http://opendatacommunities.org/id/metropolitan-district-council/walsall ,WC155-757,31.10.2023,ADULT SOCIAL CARE,REDACTED,05/10/2023,579.84,6541-Direct Payment,THIRD PARTY PAYMENTS,PRIVATE CONTRACTOR,REVENUE
Walsall Council,http://opendatacommunities.org/id/metropolitan-district-council/walsall ,WC155-758,31.10.2023,ADULT SOCIAL CARE,ANSON COURT RESIDENTIAL HOME,23/10/2023,"2,413.36",6541-Residential EMI,THIRD PARTY PAYMENTS,PRIVATE CONTRACTOR,REVENUE
Walsall Council,http://opendatacommunities.org/id/metropolitan-district-council/walsall ,WC155-759,31.10.2023,ADULT SOCIAL CARE,ANSON COURT RESIDENTIAL HOME,23/10/2023,"2,413.36",6541-Residential EMI,THIRD PARTY PAYMENTS,PRIVATE CONTRACTOR,REVENUE
Walsall Council,http://opendatacommunities.org/id/metropolitan-district-council/walsall ,WC155-760,31.10.2023,ADULT SOCIAL CARE,ANSON COURT RESIDENTIAL HOME,23/10/2023,"2,413.36",6541-Residential EMI,THIRD PARTY PAYMENTS,PRIVATE CONTRACTOR,REVENUE
Walsall Council,http://opendatacommunities.org/id/metropolitan-district-council/walsall ,WC155-761,31.10.2023,ADULT SOCIAL CARE,ANSON COURT RESIDENTIAL HOME,23/10/2023,"2,413.36",6541-Residential EMI,THIRD PARTY PAYMENTS,PRIVATE CONTRACTOR,REVENUE
Walsall Council,http://opendatacommunities.org/id/metropolitan-district-council/walsall ,WC155-762,31.10.2023,ADULT SOCIAL CARE,ANSON COURT RESIDENTIAL HOME,23/10/2023,"2,413.36",6541-Residential EMI,THIRD PARTY PAYMENTS,PRIVATE CONTRACTOR,REVENUE
Walsall Council,http://opendatacommunities.org/id/metropolitan-district-council/walsall ,WC155-763,31.10.2023,ADULT SOCIAL CARE,ANSON COURT RESIDENTIAL HOME,23/10/2023,"2,257.32",6541-Residential,THIRD PARTY PAYMENTS,PRIVATE CONTRACTOR,REVENUE
Walsall Council,http://opendatacommunities.org/id/metropolitan-district-council/walsall ,WC155-764,31.10.2023,ADULT SOCIAL CARE,ANSON COURT RESIDENTIAL HOME,23/10/2023,"2,413.36",6541-Residential EMI,THIRD PARTY PAYMENTS,PRIVATE CONTRACTOR,REVENUE
Walsall Council,http://opendatacommunities.org/id/metropolitan-district-council/walsall ,WC155-765,31.10.2023,ADULT SOCIAL CARE,ANSON COURT RESIDENTIAL HOME,23/10/2023,"2,413.36",6541-Residential EMI,THIRD PARTY PAYMENTS,PRIVATE CONTRACTOR,REVENUE
Walsall Council,http://opendatacommunities.org/id/metropolitan-district-council/walsall ,WC155-766,31.10.2023,ADULT SOCIAL CARE,ANSON COURT RESIDENTIAL HOME,23/10/2023,"2,137.32",6541-Residential,THIRD PARTY PAYMENTS,PRIVATE CONTRACTOR,REVENUE
Walsall Council,http://opendatacommunities.org/id/metropolitan-district-council/walsall ,WC155-767,31.10.2023,ADULT SOCIAL CARE,ANSON COURT RESIDENTIAL HOME,23/10/2023,"2,060.99",6541-Residential,THIRD PARTY PAYMENTS,PRIVATE CONTRACTOR,REVENUE
Walsall Council,http://opendatacommunities.org/id/metropolitan-district-council/walsall ,WC155-768,31.10.2023,ADULT SOCIAL CARE,ANSON COURT RESIDENTIAL HOME,23/10/2023,"2,613.64",6541-Residential EMI,THIRD PARTY PAYMENTS,PRIVATE CONTRACTOR,REVENUE
Walsall Council,http://opendatacommunities.org/id/metropolitan-district-council/walsall ,WC155-769,31.10.2023,ADULT SOCIAL CARE,ANSON COURT RESIDENTIAL HOME,23/10/2023,"2,413.36",6541-Residential EMI,THIRD PARTY PAYMENTS,PRIVATE CONTRACTOR,REVENUE
Walsall Council,http://opendatacommunities.org/id/metropolitan-district-council/walsall ,WC155-770,31.10.2023,ADULT SOCIAL CARE,ANSON COURT RESIDENTIAL HOME,23/10/2023,"1,960.02",6541-Residential EMI,THIRD PARTY PAYMENTS,PRIVATE CONTRACTOR,REVENUE
Walsall Council,http://opendatacommunities.org/id/metropolitan-district-council/walsall ,WC155-771,31.10.2023,ADULT SOCIAL CARE,ANSON COURT RESIDENTIAL HOME,23/10/2023,"2,137.32",6541-Residential,THIRD PARTY PAYMENTS,PRIVATE CONTRACTOR,REVENUE
Walsall Council,http://opendatacommunities.org/id/metropolitan-district-council/walsall ,WC155-772,31.10.2023,ADULT SOCIAL CARE,ANSON COURT RESIDENTIAL HOME,23/10/2023,"2,413.36",6541-Residential EMI,THIRD PARTY PAYMENTS,PRIVATE CONTRACTOR,REVENUE
Walsall Council,http://opendatacommunities.org/id/metropolitan-district-council/walsall ,WC155-773,31.10.2023,ADULT SOCIAL CARE,ANSON COURT RESIDENTIAL HOME,23/10/2023,"2,413.36",6541-Residential EMI,THIRD PARTY PAYMENTS,PRIVATE CONTRACTOR,REVENUE
Walsall Council,http://opendatacommunities.org/id/metropolitan-district-council/walsall ,WC155-774,31.10.2023,ADULT SOCIAL CARE,ANSON COURT RESIDENTIAL HOME,23/10/2023,"2,413.36",6541-Residential EMI,THIRD PARTY PAYMENTS,PRIVATE CONTRACTOR,REVENUE
Walsall Council,http://opendatacommunities.org/id/metropolitan-district-council/walsall ,WC155-775,31.10.2023,ADULT SOCIAL CARE,ANSON COURT RESIDENTIAL HOME,23/10/2023,"2,413.36",6541-Residential EMI,THIRD PARTY PAYMENTS,PRIVATE CONTRACTOR,REVENUE
Walsall Council,http://opendatacommunities.org/id/metropolitan-district-council/walsall ,WC155-776,31.10.2023,ADULT SOCIAL CARE,ANSON COURT RESIDENTIAL HOME,23/10/2023,"1,960.02",6541-Residential EMI,THIRD PARTY PAYMENTS,PRIVATE CONTRACTOR,REVENUE
Walsall Council,http://opendatacommunities.org/id/metropolitan-district-council/walsall ,WC155-777,31.10.2023,ADULT SOCIAL CARE,ANSON COURT RESIDENTIAL HOME,23/10/2023,"3,587.64",6541-Residential,THIRD PARTY PAYMENTS,PRIVATE CONTRACTOR,REVENUE
Walsall Council,http://opendatacommunities.org/id/metropolitan-district-council/walsall ,WC155-778,31.10.2023,ADULT SOCIAL CARE,ANSON COURT RESIDENTIAL HOME,23/10/2023,"2,337.32",6541-Residential,THIRD PARTY PAYMENTS,PRIVATE CONTRACTOR,REVENUE
Walsall Council,http://opendatacommunities.org/id/metropolitan-district-council/walsall ,WC155-779,31.10.2023,ADULT SOCIAL CARE,ANSON COURT RESIDENTIAL HOME,23/10/2023,"2,413.36",6541-Residential EMI,THIRD PARTY PAYMENTS,PRIVATE CONTRACTOR,REVENUE
Walsall Council,http://opendatacommunities.org/id/metropolitan-district-council/walsall ,WC155-780,31.10.2023,ADULT SOCIAL CARE,ANSON COURT RESIDENTIAL HOME,23/10/2023,"2,413.36",6541-Residential EMI,THIRD PARTY PAYMENTS,PRIVATE CONTRACTOR,REVENUE
Walsall Council,http://opendatacommunities.org/id/metropolitan-district-council/walsall ,WC155-781,31.10.2023,ADULT SOCIAL CARE,ANSON COURT RESIDENTIAL HOME,23/10/2023,"2,613.36",6541-Residential EMI,THIRD PARTY PAYMENTS,PRIVATE CONTRACTOR,REVENUE
Walsall Council,http://opendatacommunities.org/id/metropolitan-district-council/walsall ,WC155-782,31.10.2023,ADULT SOCIAL CARE,ANSON COURT RESIDENTIAL HOME,23/10/2023,"3,546.70",6541-Residential EMI,THIRD PARTY PAYMENTS,PRIVATE CONTRACTOR,REVENUE
Walsall Council,http://opendatacommunities.org/id/metropolitan-district-council/walsall ,WC155-783,31.10.2023,ADULT SOCIAL CARE,ANSON COURT RESIDENTIAL HOME,23/10/2023,"6,833.37",6541-Short Stay Residential,THIRD PARTY PAYMENTS,PRIVATE CONTRACTOR,REVENUE
Walsall Council,http://opendatacommunities.org/id/metropolitan-district-council/walsall ,WC155-784,31.10.2023,ADULT SOCIAL CARE,ANSON COURT RESIDENTIAL HOME,19/10/2023,"2,137.32",6541-Residential,THIRD PARTY PAYMENTS,PRIVATE CONTRACTOR,REVENUE
Walsall Council,http://opendatacommunities.org/id/metropolitan-district-council/walsall ,WC155-785,31.10.2023,ADULT SOCIAL CARE,ANSON COURT RESIDENTIAL HOME,19/10/2023,"1,068.68",6541-Residential,THIRD PARTY PAYMENTS,PRIVATE CONTRACTOR,REVENUE
Walsall Council,http://opendatacommunities.org/id/metropolitan-district-council/walsall ,WC155-786,31.10.2023,ADULT SOCIAL CARE,ANSON COURT RESIDENTIAL HOME,19/10/2023,"1,306.68",6541-Residential,THIRD PARTY PAYMENTS,PRIVATE CONTRACTOR,REVENUE
Walsall Council,http://opendatacommunities.org/id/metropolitan-district-council/walsall ,WC155-787,31.10.2023,ADULT SOCIAL CARE,ANSON COURT RESIDENTIAL HOME,19/10/2023,"1,306.68",6541-Residential EMI,THIRD PARTY PAYMENTS,PRIVATE CONTRACTOR,REVENUE
Walsall Council,http://opendatacommunities.org/id/metropolitan-district-council/walsall ,WC155-788,31.10.2023,ADULT SOCIAL CARE,ANSON COURT RESIDENTIAL HOME,19/10/2023,"2,413.36",6541-Residential,THIRD PARTY PAYMENTS,PRIVATE CONTRACTOR,REVENUE
Walsall Council,http://opendatacommunities.org/id/metropolitan-district-council/walsall ,WC155-789,31.10.2023,ADULT SOCIAL CARE,REDACTED,05/10/2023,"1,134.00",6541-Direct Payment,THIRD PARTY PAYMENTS,PRIVATE CONTRACTOR,REVENUE
Walsall Council,http://opendatacommunities.org/id/metropolitan-district-council/walsall ,WC155-790,31.10.2023,CHILDRENS,REDACTED,19/10/2023,371.92,6223-Special Guardianship Orders,TRANSFER PAYMENTS,CHILDREN SOCIAL SERVICES CLIENT,REVENUE
Walsall Council,http://opendatacommunities.org/id/metropolitan-district-council/walsall ,WC155-791,31.10.2023,"ECONOMY, ENVIRONMENT & COMMUNITIES",APCOA PARKING SERVICES (UK) LTD,04/10/2023,"54,390.24",6411-Parking Enforcement Activity-Priv Contractor Fees,THIRD PARTY PAYMENTS,PRIVATE CONTRACTOR,REVENUE
Walsall Council,http://opendatacommunities.org/id/metropolitan-district-council/walsall ,WC155-792,31.10.2023,RESOURCES AND TRANSFORMATION,APCOA PARKING SERVICES (UK) LTD,04/10/2023,-788.66,6634-Oxygen Finance Rebates ,SUPPLIES & SERVICES,SERVICES,REVENUE
Walsall Council,http://opendatacommunities.org/id/metropolitan-district-council/walsall ,WC155-793,31.10.2023,CHILDRENS,APP CARZ,09/10/2023,630.50,6314-Other Travel Allowances,TRANSPORT,CAR ALLOWANCES,REVENUE
Walsall Council,http://opendatacommunities.org/id/metropolitan-district-council/walsall ,WC155-794,31.10.2023,CHILDRENS,APP CARZ,09/10/2023,"1,768.00",6241-Hire of Vehicle with Driver,TRANSPORT,DIRECT TRANSPORT COSTS,REVENUE
Walsall Council,http://opendatacommunities.org/id/metropolitan-district-council/walsall ,WC155-795,31.10.2023,CHILDRENS,APP CARZ,09/10/2023,"1,080.00",6241-Hire of Vehicle with Driver,TRANSPORT,DIRECT TRANSPORT COSTS,REVENUE
Walsall Council,http://opendatacommunities.org/id/metropolitan-district-council/walsall ,WC155-796,31.10.2023,CHILDRENS,APP CARZ,09/10/2023,"1,300.00",6241-Hire of Vehicle with Driver,TRANSPORT,DIRECT TRANSPORT COSTS,REVENUE
Walsall Council,http://opendatacommunities.org/id/metropolitan-district-council/walsall ,WC155-797,31.10.2023,CHILDRENS,APP CARZ,09/10/2023,"1,300.00",6241-Hire of Vehicle with Driver,TRANSPORT,DIRECT TRANSPORT COSTS,REVENUE
Walsall Council,http://opendatacommunities.org/id/metropolitan-district-council/walsall ,WC155-798,31.10.2023,CHILDRENS,APP CARZ,09/10/2023,975.00,6241-Hire of Vehicle with Driver,TRANSPORT,DIRECT TRANSPORT COSTS,REVENUE
Walsall Council,http://opendatacommunities.org/id/metropolitan-district-council/walsall ,WC155-799,31.10.2023,"ECONOMY, ENVIRONMENT & COMMUNITIES",APSE 001,31/10/2023,358.00,6413-Events & Visual Arts,SUPPLIES & SERVICES,SERVICES,REVENUE
Walsall Council,http://opendatacommunities.org/id/metropolitan-district-council/walsall ,WC155-800,31.10.2023,CHILDRENS,APT TRAINING AND CONSULTANCY LTD,31/10/2023,440.00,6220-Professional Fees & Services,SUPPLIES & SERVICES,SERVICES,REVENUE
Walsall Council,http://opendatacommunities.org/id/metropolitan-district-council/walsall ,WC155-801,31.10.2023,"ECONOMY, ENVIRONMENT & COMMUNITIES",AQUA FORCE SPECIAL WASTE LTD,24/10/2023,580.00,6410-Materials,SUPPLIES & SERVICES,EQUIPMENT FURNITURE & MATERIALS,REVENUE
Walsall Council,http://opendatacommunities.org/id/metropolitan-district-council/walsall ,WC155-802,31.10.2023,CHILDRENS,REDACTED,10/10/2023,651.43,6223-Accommodation and Related Costs-Assistance to S/S Clients,TRANSFER PAYMENTS,ADULT SOCIAL SERVICES CLIENT,REVENUE
Walsall Council,http://opendatacommunities.org/id/metropolitan-district-council/walsall ,WC155-803,31.10.2023,CHILDRENS,ARBORETUM HOUSE LTD T/A SAFE HAVEN ARBORETUM HOUSE,03/10/2023,"24,760.00",6223-External Residential Care-Oth Agency Provision,THIRD PARTY PAYMENTS,PRIVATE CONTRACTOR,REVENUE
Walsall Council,http://opendatacommunities.org/id/metropolitan-district-council/walsall ,WC155-804,31.10.2023,CHILDRENS,ARBORETUM HOUSE LTD T/A SAFE HAVEN ARBORETUM HOUSE,30/10/2023,"24,760.00",6223-External Residential Care-Oth Agency Provision,THIRD PARTY PAYMENTS,PRIVATE CONTRACTOR,REVENUE
Walsall Council,http://opendatacommunities.org/id/metropolitan-district-council/walsall ,WC155-805,31.10.2023,ADULT SOCIAL CARE,ARBORETUM NURSING HOME.,19/10/2023,686.34,6541-Nursing,THIRD PARTY PAYMENTS,PRIVATE CONTRACTOR,REVENUE
Walsall Council,http://opendatacommunities.org/id/metropolitan-district-council/walsall ,WC155-806,31.10.2023,ADULT SOCIAL CARE,ARBORETUM NURSING HOME.,23/10/2023,"2,685.36",6541-Nursing,THIRD PARTY PAYMENTS,PRIVATE CONTRACTOR,REVENUE
Walsall Council,http://opendatacommunities.org/id/metropolitan-district-council/walsall ,WC155-807,31.10.2023,ADULT SOCIAL CARE,ARBORETUM NURSING HOME.,23/10/2023,"2,505.36",6541-Nursing,THIRD PARTY PAYMENTS,PRIVATE CONTRACTOR,REVENUE
Walsall Council,http://opendatacommunities.org/id/metropolitan-district-council/walsall ,WC155-808,31.10.2023,ADULT SOCIAL CARE,ARBORETUM NURSING HOME.,23/10/2023,"2,505.36",6541-Nursing,THIRD PARTY PAYMENTS,PRIVATE CONTRACTOR,REVENUE
Walsall Council,http://opendatacommunities.org/id/metropolitan-district-council/walsall ,WC155-809,31.10.2023,ADULT SOCIAL CARE,ARBORETUM NURSING HOME.,23/10/2023,"2,685.36",6541-Nursing,THIRD PARTY PAYMENTS,PRIVATE CONTRACTOR,REVENUE
Walsall Council,http://opendatacommunities.org/id/metropolitan-district-council/walsall ,WC155-810,31.10.2023,ADULT SOCIAL CARE,ARBORETUM NURSING HOME.,23/10/2023,"2,705.36",6541-Nursing,THIRD PARTY PAYMENTS,PRIVATE CONTRACTOR,REVENUE
Walsall Council,http://opendatacommunities.org/id/metropolitan-district-council/walsall ,WC155-811,31.10.2023,ADULT SOCIAL CARE,ARBORETUM NURSING HOME.,23/10/2023,"3,649.12",6541-Nursing,THIRD PARTY PAYMENTS,PRIVATE CONTRACTOR,REVENUE
Walsall Council,http://opendatacommunities.org/id/metropolitan-district-council/walsall ,WC155-812,31.10.2023,ADULT SOCIAL CARE,ARBORETUM NURSING HOME.,23/10/2023,"2,705.36",6541-Nursing,THIRD PARTY PAYMENTS,PRIVATE CONTRACTOR,REVENUE
